Workbook

Sheet Campos_Ingreso_Datos (hidden)
A1: SEGMENTO | B1: Vinculo | C1: Rango | D1: Formato | E1: Lista | F1: Lista2 | G1: Restablacer | H1: Combinada | I1: Ajuste_Filas_Cols
A2: Datos Contribuyente | B2: =' '!D137 -> 0 | C2: =IFERROR(_xlfn.FORMULATEXT(Campos_Ingreso_Datos[[#This Row],[Vinculo]]),"") -> =' '!D137 | D2: General | I2: =ROW(' '!D137)&"_"&COLUMN(' '!D137) -> 137_4
A3: Datos Contribuyente | B3: =' '!D138 -> 0 | C3: =IFERROR(_xlfn.FORMULATEXT(Campos_Ingreso_Datos[[#This Row],[Vinculo]]),"") -> =' '!D138 | D3: #,##0 | I3: =ROW(' '!D138)&"_"&COLUMN(' '!D138) -> 138_4
A4: Datos Contribuyente | B4: =' '!D149 -> 00:00:00 | C4: =IFERROR(_xlfn.FORMULATEXT(Campos_Ingreso_Datos[[#This Row],[Vinculo]]),"") -> =' '!D149 | D4: dd/mm/yyyy;@ | E4: 2022-01-01 | F4: 2100-12-31 | I4: =ROW(' '!D149)&"_"&COLUMN(' '!D149) -> 149_4
A5: Datos Contribuyente | B5: =' '!D157 -> 2023-07-03 | C5: =IFERROR(_xlfn.FORMULATEXT(Campos_Ingreso_Datos[[#This Row],[Vinculo]]),"") -> =' '!D157 | D5: dd/mm/yyyy;@ | E5: 2022-01-01 | F5: 2100-12-31 | I5: =ROW(' '!D157)&"_"&COLUMN(' '!D157) -> 157_4

Sheet Comentarios (hidden)
A1: RUTA | B1: Formulada | C1: Comentario | D1: Largo | E1: Segmento | F1: Color
A2: =SUBSTITUTE(SUBSTITUTE(_xlfn.FORMULATEXT(B2),"=",""),"'","") -> !B137 | B2: =' '!B137 -> Razón social del contribuyente | C2: Esta información debe coincidir con los datos consignados en la casilla 35 del RUT (actualizado) | E2: =OFFSET(Ref_Segmento,ROW(INDIRECT(IF(SUBSTITUTE(Comentarios[[#This Row],[RUTA]]," ","")=Comentarios[[#This Row],[RUTA]],Comentarios[[#This Row],[RUTA]],"'"&SUBSTITUTE(Comentarios[[#This Row],[RUTA]],"!","'!"))))-1,0) -> Datos Contribuyente | F2: Azul
A3: !B277 | B3: =' '!B277 -> Descripción del dato y/o formato | C3: Registre la información que va a presentar de manera extemporánea sobre la cual se puede establecer una cuantía o valor. | E3: =OFFSET(Ref_Segmento,ROW(INDIRECT(IF(SUBSTITUTE(Comentarios[[#This Row],[RUTA]]," ","")=Comentarios[[#This Row],[RUTA]],Comentarios[[#This Row],[RUTA]],"'"&SUBSTITUTE(Comentarios[[#This Row],[RUTA]],"!","'!"))))-1,0) -> Sanciones extemporaneidad | F3: Azul
A4: !B285 | B4: =' '!B285 -> Descripción del dato y/o formato | C4: Registre la información que va a presentar de manera extemporánea sobre la cual NO se puede establecer una cuantía o valor. | E4: =OFFSET(Ref_Segmento,ROW(INDIRECT(IF(SUBSTITUTE(Comentarios[[#This Row],[RUTA]]," ","")=Comentarios[[#This Row],[RUTA]],Comentarios[[#This Row],[RUTA]],"'"&SUBSTITUTE(Comentarios[[#This Row],[RUTA]],"!","'!"))))-1,0) -> Sanciones extemporaneidad | F4: Azul
A5: !B314 | B5: =' '!B314 -> ¿Aplica reducción de la sanción al 10%? | C5: De acuerdo con el parágrafo 1 del artículo 651 del ET, el obligado a informar podrá subsanar de manera voluntaria las faltas señaladas en el artículo en mención, antes de que la Administración Tributaria profiera pliego de cargos, en cuyo caso deberá liquidar y pagar la sanción correspondiente reducida al diez por ciento (10%). | E5: =OFFSET(Ref_Segmento,ROW(INDIRECT(IF(SUBSTITUTE(Comentarios[[#This Row],[RUTA]]," ","")=Comentarios[[#This Row],[RUTA]],Comentarios[[#This Row],[RUTA]],"'"&SUBSTITUTE(Comentarios[[#This Row],[RUTA]],"!","'!"))))-1,0) -> Sanciones extemporaneidad | F5: Azul
A6: !B315 | B6: =' '!B315 -> ¿Aplica reducción de la sanción al 50%? | C6: De acuerdo con el artículo 651 del ET, la sanción liquidada podrá ser reducida al cincuenta por ciento (50%) de la suma determinada, si la omisión es subsanada antes de que se notifique la imposición de la sanción por parte de la Administración Tributaria. Para tal efecto, se deberá presentar ante la oficina que está conociendo de la investigación, un memorial de aceptación de la sanción reducida en el cual se acredite que la omisión fue subsanada, así como el pago o acuerdo de pago de la misma. | E6: =OFFSET(Ref_Segmento,ROW(INDIRECT(IF(SUBSTITUTE(Comentarios[[#This Row],[RUTA]]," ","")=Comentarios[[#This Row],[RUTA]],Comentarios[[#This Row],[RUTA]],"'"&SUBSTITUTE(Comentarios[[#This Row],[RUTA]],"!","'!"))))-1,0) -> Sanciones extemporaneidad | F6: Azul
A7: !B316 | B7: =' '!B316 -> ¿Aplica reducción de la sanción al 70%? | C7: De acuerdo con el artículo 651 del ET la sanción liquidada podrá ser reducida al setenta por ciento (70%) de la suma determinada, si la omisión es subsanada dentro de los dos (2) meses siguientes a la fecha en que se notifique la sanción. Para tal efecto, se deberá presentar ante la oficina que está conociendo de la investigación, un memorial de aceptación de la sanción reducida en el cual se acredite que la omisión fue subsanada, así como el pago o acuerdo de pago de la misma. | E7: =OFFSET(Ref_Segmento,ROW(INDIRECT(IF(SUBSTITUTE(Comentarios[[#This Row],[RUTA]]," ","")=Comentarios[[#This Row],[RUTA]],Comentarios[[#This Row],[RUTA]],"'"&SUBSTITUTE(Comentarios[[#This Row],[RUTA]],"!","'!"))))-1,0) -> Sanciones extemporaneidad | F7: Azul
A8: !B322 | B8: =' '!B322 -> ¿En los dos años anteriores a la generación de esta sanción por extemporaneidad, el contribuyente incurrió en la misma conducta sancionable? | C8: Mediante el numeral 1.1 del Concepto 14116 de 2017 (Concepto Unificado sobre Procedimiento Tributario), la DIAN precisa que en lo correspondiente a las sanciones por extemporaneidad (artículos 641, 642 y 645 del ET), por no declarar (artículo 643 del ET) y por corrección (artículos 644, 645 y 647-1 del ET), para efectos de la aplicación del artículo 640 del ET, es necesario verificar si la misma conducta sancionable se cometió en el pasado, independientemente del impuesto sobre el cual versa la declaración tributaria. | E8: =OFFSET(Ref_Segmento,ROW(INDIRECT(IF(SUBSTITUTE(Comentarios[[#This Row],[RUTA]]," ","")=Comentarios[[#This Row],[RUTA]],Comentarios[[#This Row],[RUTA]],"'"&SUBSTITUTE(Comentarios[[#This Row],[RUTA]],"!","'!"))))-1,0) -> Sanciones extemporaneidad | F8: Azul
A9: !B327 | B9: =' '!B327 -> ¿Aplica reducción de la sanción al 50%? | C9: De acuerdo con el numeral 1 del artículo 640 del ET, cuando la sanción deba ser liquidada por el contribuyente, podrá ser reducida al 50%, siempre y cuando se cumplan las siguientes condiciones: - Que dentro de los dos (2) años anteriores a la fecha de la comisión de la conducta sancionable no se hubiere cometido la misma; y - Que la Administración Tributaria no haya proferido pliego de cargos, requerimiento especial o emplazamiento previo por no declarar, según el caso. En caso de que no se cumplan las dos condiciones, el contribuyente no podrá acogerse al beneficio de la reducción de la sanción al 50%. | E9: =OFFSET(Ref_Segmento,ROW(INDIRECT(IF(SUBSTITUTE(Comentarios[[#This Row],[RUTA]]," ","")=Comentarios[[#This Row],[RUTA]],Comentarios[[#This Row],[RUTA]],"'"&SUBSTITUTE(Comentarios[[#This Row],[RUTA]],"!","'!"))))-1,0) -> Sanciones extemporaneidad | F9: Azul
A10: !B328 | B10: =' '!B328 -> ¿Aplica reducción de la sanción al 75%? | C10: El numeral 2 del artículo 640 del ET establece que, cuando la sanción deba ser liquidada por el contribuyente, podrá ser reducida al 75%, siempre y cuando se cumplan las siguientes condiciones: - Que dentro del año (1) año anterior a la fecha de la comisión de la conducta sancionable no se hubiere cometido la misma; y - Que la Administración Tributaria no haya proferido pliego de cargos, requerimiento especial o emplazamiento previo por no declarar, según el caso. En caso de que no se cumplan las dos condiciones, el contribuyente no podrá acogerse al beneficio de la reducción de la sanción al 75%. | E10: =OFFSET(Ref_Segmento,ROW(INDIRECT(IF(SUBSTITUTE(Comentarios[[#This Row],[RUTA]]," ","")=Comentarios[[#This Row],[RUTA]],Comentarios[[#This Row],[RUTA]],"'"&SUBSTITUTE(Comentarios[[#This Row],[RUTA]],"!","'!"))))-1,0) -> Sanciones extemporaneidad | F10: Azul
A11: !B338 | B11: =' '!B338 -> ¿Aplica reducción de la sanción al 50%? | C11: De acuerdo con el numeral 3 del artículo 640 del ET, cuando la sanción sea propuesta o determinada por la DIAN, podrá ser reducida al 50%, siempre y cuando se cumplan las siguientes condiciones: - Que dentro de los cuatro (4) años anteriores a la fecha de la comisión de la conducta sancionable no se hubiere cometido la misma, y esta se hubiere sancionado mediante acto administrativo en firme; y - Que la sanción sea aceptada y la infracción subsanada de conformidad con lo establecido en el tipo sancionatorio correspondiente. En caso de que no se cumplan las dos condiciones, el contribuyente no podrá acogerse al beneficio de la reducción de la sanción al 50%. | E11: =OFFSET(Ref_Segmento,ROW(INDIRECT(IF(SUBSTITUTE(Comentarios[[#This Row],[RUTA]]," ","")=Comentarios[[#This Row],[RUTA]],Comentarios[[#This Row],[RUTA]],"'"&SUBSTITUTE(Comentarios[[#This Row],[RUTA]],"!","'!"))))-1,0) -> Sanciones extemporaneidad | F11: Azul
A12: !B339 | B12: =' '!B339 -> ¿Aplica reducción de la sanción al 75%? | C12: El numeral 4 del artículo 640 del ET establece que, cuando la sanción sea propuesta o liquidada por la DIAN, podrá ser reducida al 75%, siempre y cuando se cumplan las siguientes condiciones: - Que dentro de los dos (2) años anteriores a la fecha de la comisión de la conducta sancionable no se hubiere cometido la misma, y esta se hubiere sancionado mediante acto administrativo en firme; y - Que la sanción sea aceptada y la infracción subsanada de conformidad con lo establecido en el tipo sancionatorio correspondiente. En caso de que no se cumplan las dos condiciones, el contribuyente no podrá acogerse al beneficio de la reducción de la sanción al 75%. | E12: =OFFSET(Ref_Segmento,ROW(INDIRECT(IF(SUBSTITUTE(Comentarios[[#This Row],[RUTA]]," ","")=Comentarios[[#This Row],[RUTA]],Comentarios[[#This Row],[RUTA]],"'"&SUBSTITUTE(Comentarios[[#This Row],[RUTA]],"!","'!"))))-1,0) -> Sanciones extemporaneidad | F12: Azul
A13: !B349 | B13: =' '!B349 -> Descripción del dato y/o formato | C13: Registre la información que se reportó de manera errónea e incluya también la información correcta, sobre la cual se puede establecer una cuantía o valor. | E13: =OFFSET(Ref_Segmento,ROW(INDIRECT(IF(SUBSTITUTE(Comentarios[[#This Row],[RUTA]]," ","")=Comentarios[[#This Row],[RUTA]],Comentarios[[#This Row],[RUTA]],"'"&SUBSTITUTE(Comentarios[[#This Row],[RUTA]],"!","'!"))))-1,0) -> Sanción por corrección | F13: Azul
A14: !B357 | B14: =' '!B357 -> Descripción del dato y/o formato | C14: Registre la información que se reportó de manera errónea, sobre la cual NO se puede establecer una cuantía o valor. | E14: =OFFSET(Ref_Segmento,ROW(INDIRECT(IF(SUBSTITUTE(Comentarios[[#This Row],[RUTA]]," ","")=Comentarios[[#This Row],[RUTA]],Comentarios[[#This Row],[RUTA]],"'"&SUBSTITUTE(Comentarios[[#This Row],[RUTA]],"!","'!"))))-1,0) -> Sanción por corrección | F14: Azul
A15: !B386 | B15: =' '!B386 -> ¿Aplica reducción de la sanción al 10%? | C15: De acuerdo con el parágrafo 1 del artículo 651 del ET, el obligado a informar podrá subsanar de manera voluntaria las faltas señaladas en el artículo en mención, antes de que la Administración Tributaria profiera pliego de cargos, en cuyo caso deberá liquidar y pagar la sanción correspondiente reducida al diez por ciento (10%). | E15: =OFFSET(Ref_Segmento,ROW(INDIRECT(IF(SUBSTITUTE(Comentarios[[#This Row],[RUTA]]," ","")=Comentarios[[#This Row],[RUTA]],Comentarios[[#This Row],[RUTA]],"'"&SUBSTITUTE(Comentarios[[#This Row],[RUTA]],"!","'!"))))-1,0) -> Sanción por corrección | F15: Azul
A16: !B387 | B16: =' '!B387 -> ¿Aplica reducción de la sanción al 50%? | C16: De acuerdo con el artículo 651 del ET, la sanción liquidada podrá ser reducida al cincuenta por ciento (50%) de la suma determinada, si la omisión es subsanada antes de que se notifique la imposición de la sanción por parte de la Administración Tributaria. Para tal efecto, se deberá presentar ante la oficina que está conociendo de la investigación, un memorial de aceptación de la sanción reducida en el cual se acredite que la omisión fue subsanada, así como el pago o acuerdo de pago de la misma. | E16: =OFFSET(Ref_Segmento,ROW(INDIRECT(IF(SUBSTITUTE(Comentarios[[#This Row],[RUTA]]," ","")=Comentarios[[#This Row],[RUTA]],Comentarios[[#This Row],[RUTA]],"'"&SUBSTITUTE(Comentarios[[#This Row],[RUTA]],"!","'!"))))-1,0) -> Sanción por corrección | F16: Azul
A17: !B388 | B17: =' '!B388 -> ¿Aplica reducción de la sanción al 70%? | C17: De acuerdo con el artículo 651 del ET la sanción liquidada podrá ser reducida al setenta por ciento (70%) de la suma determinada, si la omisión es subsanada dentro de los dos (2) meses siguientes a la fecha en que se notifique la sanción. Para tal efecto, se deberá presentar ante la oficina que está conociendo de la investigación, un memorial de aceptación de la sanción reducida en el cual se acredite que la omisión fue subsanada, así como el pago o acuerdo de pago de la misma. | E17: =OFFSET(Ref_Segmento,ROW(INDIRECT(IF(SUBSTITUTE(Comentarios[[#This Row],[RUTA]]," ","")=Comentarios[[#This Row],[RUTA]],Comentarios[[#This Row],[RUTA]],"'"&SUBSTITUTE(Comentarios[[#This Row],[RUTA]],"!","'!"))))-1,0) -> Sanción por corrección | F17: Azul
A18: !B394 | B18: =' '!B394 -> ¿En los dos años anteriores a la generación de esta sanción por extemporaneidad, el contribuyente incurrió en la misma conducta sancionable? | C18: Mediante el numeral 1.1 del Concepto 14116 de 2017 (Concepto Unificado sobre Procedimiento Tributario), la DIAN precisa que en lo correspondiente a las sanciones por extemporaneidad (artículos 641, 642 y 645 del ET), por no declarar (artículo 643 del ET) y por corrección (artículos 644, 645 y 647-1 del ET), para efectos de la aplicación del artículo 640 del ET, es necesario verificar si la misma conducta sancionable se cometió en el pasado, independientemente del impuesto sobre el cual versa la declaración tributaria. | E18: =OFFSET(Ref_Segmento,ROW(INDIRECT(IF(SUBSTITUTE(Comentarios[[#This Row],[RUTA]]," ","")=Comentarios[[#This Row],[RUTA]],Comentarios[[#This Row],[RUTA]],"'"&SUBSTITUTE(Comentarios[[#This Row],[RUTA]],"!","'!"))))-1,0) -> Sanción por corrección | F18: Azul
A19: !B399 | B19: =' '!B399 -> ¿Aplica reducción de la sanción al 50%? | C19: De acuerdo con el numeral 1 del artículo 640 del ET, cuando la sanción deba ser liquidada por el contribuyente, podrá ser reducida al 50%, siempre y cuando se cumplan las siguientes condiciones: - Que dentro de los dos (2) años anteriores a la fecha de la comisión de la conducta sancionable no se hubiere cometido la misma; y - Que la Administración Tributaria no haya proferido pliego de cargos, requerimiento especial o emplazamiento previo por no declarar, según el caso. En caso de que no se cumplan las dos condiciones, el contribuyente no podrá acogerse al beneficio de la reducción de la sanción al 50%. | E19: =OFFSET(Ref_Segmento,ROW(INDIRECT(IF(SUBSTITUTE(Comentarios[[#This Row],[RUTA]]," ","")=Comentarios[[#This Row],[RUTA]],Comentarios[[#This Row],[RUTA]],"'"&SUBSTITUTE(Comentarios[[#This Row],[RUTA]],"!","'!"))))-1,0) -> Sanción por corrección | F19: Azul
A20: !B400 | B20: =' '!B400 -> ¿Aplica reducción de la sanción al 75%? | C20: El numeral 2 del artículo 640 del ET establece que, cuando la sanción deba ser liquidada por el contribuyente, podrá ser reducida al 75%, siempre y cuando se cumplan las siguientes condiciones: - Que dentro del año (1) año anterior a la fecha de la comisión de la conducta sancionable no se hubiere cometido la misma; y - Que la Administración Tributaria no haya proferido pliego de cargos, requerimiento especial o emplazamiento previo por no declarar, según el caso. En caso de que no se cumplan las dos condiciones, el contribuyente no podrá acogerse al beneficio de la reducción de la sanción al 75%. | E20: =OFFSET(Ref_Segmento,ROW(INDIRECT(IF(SUBSTITUTE(Comentarios[[#This Row],[RUTA]]," ","")=Comentarios[[#This Row],[RUTA]],Comentarios[[#This Row],[RUTA]],"'"&SUBSTITUTE(Comentarios[[#This Row],[RUTA]],"!","'!"))))-1,0) -> Sanción por corrección | F20: Azul
A21: !B410 | B21: =' '!B410 -> ¿Aplica reducción de la sanción al 50%? | C21: De acuerdo con el numeral 3 del artículo 640 del ET, cuando la sanción sea propuesta o determinada por la DIAN, podrá ser reducida al 50%, siempre y cuando se cumplan las siguientes condiciones: - Que dentro de los cuatro (4) años anteriores a la fecha de la comisión de la conducta sancionable no se hubiere cometido la misma, y esta se hubiere sancionado mediante acto administrativo en firme; y - Que la sanción sea aceptada y la infracción subsanada de conformidad con lo establecido en el tipo sancionatorio correspondiente. En caso de que no se cumplan las dos condiciones, el contribuyente no podrá acogerse al beneficio de la reducción de la sanción al 50%. | E21: =OFFSET(Ref_Segmento,ROW(INDIRECT(IF(SUBSTITUTE(Comentarios[[#This Row],[RUTA]]," ","")=Comentarios[[#This Row],[RUTA]],Comentarios[[#This Row],[RUTA]],"'"&SUBSTITUTE(Comentarios[[#This Row],[RUTA]],"!","'!"))))-1,0) -> Sanción por corrección | F21: Azul
A22: !B411 | B22: =' '!B411 -> ¿Aplica reducción de la sanción al 75%? | C22: El numeral 4 del artículo 640 del ET establece que, cuando la sanción sea propuesta o liquidada por la DIAN, podrá ser reducida al 75%, siempre y cuando se cumplan las siguientes condiciones: - Que dentro de los dos (2) años anteriores a la fecha de la comisión de la conducta sancionable no se hubiere cometido la misma, y esta se hubiere sancionado mediante acto administrativo en firme; y - Que la sanción sea aceptada y la infracción subsanada de conformidad con lo establecido en el tipo sancionatorio correspondiente. En caso de que no se cumplan las dos condiciones, el contribuyente no podrá acogerse al beneficio de la reducción de la sanción al 75%. | E22: =OFFSET(Ref_Segmento,ROW(INDIRECT(IF(SUBSTITUTE(Comentarios[[#This Row],[RUTA]]," ","")=Comentarios[[#This Row],[RUTA]],Comentarios[[#This Row],[RUTA]],"'"&SUBSTITUTE(Comentarios[[#This Row],[RUTA]],"!","'!"))))-1,0) -> Sanción por corrección | F22: Azul
A23: !B421 | B23: =' '!B421 -> Descripción del dato y/o formato | C23: Registre la información que va a presentar de manera extemporánea sobre la cual se puede establecer una cuantía o valor. | E23: =OFFSET(Ref_Segmento,ROW(INDIRECT(IF(SUBSTITUTE(Comentarios[[#This Row],[RUTA]]," ","")=Comentarios[[#This Row],[RUTA]],Comentarios[[#This Row],[RUTA]],"'"&SUBSTITUTE(Comentarios[[#This Row],[RUTA]],"!","'!"))))-1,0) -> Sanción no envío info | F23: Azul
A24: !B430 | B24: =' '!B430 -> Descripción del dato y/o formato | C24: Registre la información que va a presentar de manera extemporánea sobre la cual NO se puede establecer una cuantía o valor. | E24: =OFFSET(Ref_Segmento,ROW(INDIRECT(IF(SUBSTITUTE(Comentarios[[#This Row],[RUTA]]," ","")=Comentarios[[#This Row],[RUTA]],Comentarios[[#This Row],[RUTA]],"'"&SUBSTITUTE(Comentarios[[#This Row],[RUTA]],"!","'!"))))-1,0) -> Sanción no envío info | F24: Azul
A25: !B457 | B25: =' '!B457 -> ¿Aplica reducción de la sanción al 70%? | C25: De acuerdo con el artículo 651 del ET la sanción liquidada podrá ser reducida al setenta por ciento (70%) de la suma determinada, si la omisión es subsanada dentro de los dos (2) meses siguientes a la fecha en que se notifique la sanción. Para tal efecto, se deberá presentar ante la oficina que está conociendo de la investigación, un memorial de aceptación de la sanción reducida en el cual se acredite que la omisión fue subsanada, así como el pago o acuerdo de pago de la misma. | E25: =OFFSET(Ref_Segmento,ROW(INDIRECT(IF(SUBSTITUTE(Comentarios[[#This Row],[RUTA]]," ","")=Comentarios[[#This Row],[RUTA]],Comentarios[[#This Row],[RUTA]],"'"&SUBSTITUTE(Comentarios[[#This Row],[RUTA]],"!","'!"))))-1,0) -> Sanción no envío info | F25: Azul
A26: !B463 | B26: =' '!B463 -> ¿En los dos años anteriores a la generación de esta sanción por extemporaneidad, el contribuyente incurrió en la misma conducta sancionable? | C26: Mediante el numeral 1.1 del Concepto 14116 de 2017 (Concepto Unificado sobre Procedimiento Tributario), la DIAN precisa que en lo correspondiente a las sanciones por extemporaneidad (artículos 641, 642 y 645 del ET), por no declarar (artículo 643 del ET) y por corrección (artículos 644, 645 y 647-1 del ET), para efectos de la aplicación del artículo 640 del ET, es necesario verificar si la misma conducta sancionable se cometió en el pasado, independientemente del impuesto sobre el cual versa la declaración tributaria. | E26: =OFFSET(Ref_Segmento,ROW(INDIRECT(IF(SUBSTITUTE(Comentarios[[#This Row],[RUTA]]," ","")=Comentarios[[#This Row],[RUTA]],Comentarios[[#This Row],[RUTA]],"'"&SUBSTITUTE(Comentarios[[#This Row],[RUTA]],"!","'!"))))-1,0) -> Sanción no envío info | F26: Azul
A27: !B468 | B27: =' '!B468 -> ¿Aplica reducción de la sanción al 50%? | C27: De acuerdo con el numeral 1 del artículo 640 del ET, cuando la sanción deba ser liquidada por el contribuyente, podrá ser reducida al 50%, siempre y cuando se cumplan las siguientes condiciones: - Que dentro de los dos (2) años anteriores a la fecha de la comisión de la conducta sancionable no se hubiere cometido la misma; y - Que la Administración Tributaria no haya proferido pliego de cargos, requerimiento especial o emplazamiento previo por no declarar, según el caso. En caso de que no se cumplan las dos condiciones, el contribuyente no podrá acogerse al beneficio de la reducción de la sanción al 50%. | E27: =OFFSET(Ref_Segmento,ROW(INDIRECT(IF(SUBSTITUTE(Comentarios[[#This Row],[RUTA]]," ","")=Comentarios[[#This Row],[RUTA]],Comentarios[[#This Row],[RUTA]],"'"&SUBSTITUTE(Comentarios[[#This Row],[RUTA]],"!","'!"))))-1,0) -> Sanción no envío info | F27: Azul
A28: !B469 | B28: =' '!B469 -> ¿Aplica reducción de la sanción al 75%? | C28: El numeral 2 del artículo 640 del ET establece que, cuando la sanción deba ser liquidada por el contribuyente, podrá ser reducida al 75%, siempre y cuando se cumplan las siguientes condiciones: - Que dentro del año (1) año anterior a la fecha de la comisión de la conducta sancionable no se hubiere cometido la misma; y - Que la Administración Tributaria no haya proferido pliego de cargos, requerimiento especial o emplazamiento previo por no declarar, según el caso. En caso de que no se cumplan las dos condiciones, el contribuyente no podrá acogerse al beneficio de la reducción de la sanción al 75%. | E28: =OFFSET(Ref_Segmento,ROW(INDIRECT(IF(SUBSTITUTE(Comentarios[[#This Row],[RUTA]]," ","")=Comentarios[[#This Row],[RUTA]],Comentarios[[#This Row],[RUTA]],"'"&SUBSTITUTE(Comentarios[[#This Row],[RUTA]],"!","'!"))))-1,0) -> Sanción no envío info | F28: Azul
A29: !B479 | B29: =' '!B479 -> ¿Aplica reducción de la sanción al 50%? | C29: De acuerdo con el numeral 3 del artículo 640 del ET, cuando la sanción sea propuesta o determinada por la DIAN, podrá ser reducida al 50%, siempre y cuando se cumplan las siguientes condiciones: - Que dentro de los cuatro (4) años anteriores a la fecha de la comisión de la conducta sancionable no se hubiere cometido la misma, y esta se hubiere sancionado mediante acto administrativo en firme; y - Que la sanción sea aceptada y la infracción subsanada de conformidad con lo establecido en el tipo sancionatorio correspondiente. En caso de que no se cumplan las dos condiciones, el contribuyente no podrá acogerse al beneficio de la reducción de la sanción al 50%. | E29: =OFFSET(Ref_Segmento,ROW(INDIRECT(IF(SUBSTITUTE(Comentarios[[#This Row],[RUTA]]," ","")=Comentarios[[#This Row],[RUTA]],Comentarios[[#This Row],[RUTA]],"'"&SUBSTITUTE(Comentarios[[#This Row],[RUTA]],"!","'!"))))-1,0) -> Sanción no envío info | F29: Azul
A30: !B480 | B30: =' '!B480 -> ¿Aplica reducción de la sanción al 75%? | C30: El numeral 4 del artículo 640 del ET establece que, cuando la sanción sea propuesta o liquidada por la DIAN, podrá ser reducida al 75%, siempre y cuando se cumplan las siguientes condiciones: - Que dentro de los dos (2) años anteriores a la fecha de la comisión de la conducta sancionable no se hubiere cometido la misma, y esta se hubiere sancionado mediante acto administrativo en firme; y - Que la sanción sea aceptada y la infracción subsanada de conformidad con lo establecido en el tipo sancionatorio correspondiente. En caso de que no se cumplan las dos condiciones, el contribuyente no podrá acogerse al beneficio de la reducción de la sanción al 75%. | E30: =OFFSET(Ref_Segmento,ROW(INDIRECT(IF(SUBSTITUTE(Comentarios[[#This Row],[RUTA]]," ","")=Comentarios[[#This Row],[RUTA]],Comentarios[[#This Row],[RUTA]],"'"&SUBSTITUTE(Comentarios[[#This Row],[RUTA]],"!","'!"))))-1,0) -> Sanción no envío info | F30: Azul

Sheet Desarrollador (hidden)
A1: Accion | B1: Grupo | C1: Tipo | D1: Imagen | E1: Left | F1: Top | G1: Height | H1: Width | I1: Visible | L1: Segmento | M1: Fila | N1: Alto | O1: Herramienta | P1: Version | Q1: Formato_Editar | R1: Avisos | S1: Alertas | T1: ESTADO_VALIDACION | U1: Tipo | V1: Inicio | W1: Hijos
A2: Siempre | C2: Imagen | D2: Titulo_Segmento | E2: =E4+G4+20 -> 218 | F2: 10 | G2: 90 | H2: 600 | I2: =IF(Parametros[Segmento]="Fondo_Menu",1,0) -> 1 | L2: Fondo_Menu | M2: =IFERROR(MATCH(Parametros[[#This Row],[Segmento]],' '!$P:$P,0),0) -> 6 | N2: =IFERROR(COUNTIF(OFFSET(Ref_Segmento,0,0,100000),Parametros[[#This Row],[Segmento]]),0) -> 35 | O2: Actualicese Exógena | P2: 2023050311 | R2: 0 | V2: 45061.62 | W2: =IFERROR(IF(INDEX(Tabla_Formatos_x_Informante[Hijos],MATCH(SUBSTITUTE(Parametros[[#This Row],[Segmento]],"Formato_",""),Tabla_Formatos_x_Informante[Número],0))="","",INDEX(Tabla_Formatos_x_Informante[Hijos],MATCH(SUBSTITUTE(Parametros[[#This Row],[Segmento]],"Formato_",""),Tabla_Formatos_x_Informante[Número],0))),"") -> 
A3: Siempre | C3: Imagen | D3: Logo | E3: 28 | F3: 18 | G3: 73.5 | H3: 171 | I3: 1 | L3: =IF(Parametros[Segmento]="Fondo_Menu","Preparación de la información exógena año gravable 2022","") -> Preparación de la información exógena año gravable 2022 | V3: =TEXT(MAX(Parametros[Inicio]+10/(24*60)-NOW(),0),"mm:ss") -> 00:00
A4: Siempre | C4: Imagen | D4: Division_1 | E4: 190 | F4: 50 | G4: 8 | H4: 84 | I4: 1 | L4: =IFERROR(SUBSTITUTE(VLOOKUP(SUBSTITUTE(Parametros[Segmento],"Formato_","")&" - "&"*",Tabla_Formatos_x_Informante[Listado],1,0)," - ",CHAR(13)),"") -> 
C5: Imagen | D5: Division_2 | E5: =IF(I44=1,E44+H44,IF(I43=1,E43+H43,$E$33+H33))+5 -> 1146 | F5: 50 | G5: 8 | H5: 84 | I5: =(LEFT(Parametros[Segmento],8)="Formato_")*1 -> 0
C6: Imagen | D6: Guardar | E6: =$E$4+70 -> 260 | F6: 26 | G6: 47 | H6: 150 | I6: =IFERROR((Parametros[Segmento]<>"Fondo_Menu")*1,1) -> 0
C7: Imagen | D7: Regresar_Al_Menu | E7: =$E$6+H6+20 -> 430 | F7: =$F$6 -> 26 | G7: 47 | H7: 150 | I7: =IFERROR((Parametros[Segmento]<>"Fondo_Menu")*(COUNTIF(Hijos[Hijo],SUBSTITUTE(Parametros[Segmento],"Formato_",""))=0),1) -> 0
C8: Imagen | D8: Barra Horizontal | E8: 55 | F8: 550 | G8: 14 | H8: 950 | I8: =IFERROR((Parametros[Segmento]="Fondo_Menu")*1,0) -> 1
C9: Imagen | D9: Exportar_PDF | E9: 721.2999878 | F9: 26.45000076 | G9: 45.28590393 | H9: 160
C10: Imagen | D10: Ajustar_Filas | E10: =$E$7+H7+20 -> 600 | F10: =$F$6 -> 26 | G10: 45.28590393 | H10: 175 | I10: =(OR(LEFT(Parametros[Segmento],8)="Formato_",Parametros[Segmento]="Consultas_Manuales_RUT")*1) -> 0
C11: Imagen | D11: Importar | E11: 604.5735474 | F11: 26.75 | G11: 45.28590393 | H11: 160
C12: Imagen | D12: Cronometro | E12: 312.6499939 | F12: 27.04999924 | G12: 47.90000153 | H12: 72.15000153
L13: m | M13: s | N13: l | O13: a
C14: Imagen | D14: Info de Orientacion | E14: 36 | F14: 130 | G14: 65 | H14: 214 | I14: =IFERROR((Parametros[Segmento]="Fondo_Menu")*1,0) -> 1
C15: Imagen | D15: Obligados | E15: =$E$14 -> 36 | F15: =$F$14+$G$14+14 -> 209 | G15: 50 | H15: 199 | I15: =IFERROR((Parametros[Segmento]="Fondo_Menu")*1,0) -> 1
C16: Imagen | D16: Formatos según informante | E16: =$E$14 -> 36 | F16: =F15+G15+10 -> 269 | G16: 50 | H16: 199 | I16: =IFERROR((Parametros[Segmento]="Fondo_Menu")*1,0) -> 1
C17: Imagen | D17: Consultas_Manuales_RUT | E17: =$E$14 -> 36 | F17: =F16+G16+10 -> 329 | G17: 35 | H17: 199 | I17: =IFERROR((Parametros[Segmento]="Fondo_Menu")*1,0) -> 1
B18: =IF(Parametros[Tipo]=2,"Esta sección no está disponible en la versión de prueba de Actualícese 110.xls. Si quieres realizar tu declaración de renta de personas jurídicas de forma rápida y en solo 3 pasos, adquiere nuestra herramienta ingresando a:","") ->  | C18: Imagen | D18: Información del Contribuyente | E18: 314 | F18: =$F$14 -> 130 | G18: 66 | H18: 216 | I18: =IFERROR((Parametros[Segmento]="Fondo_Menu")*1,0) -> 1
C19: Imagen | D19: Datos Contribuyente | E19: =$E$18 -> 314 | F19: =F18+G18+14 -> 210 | G19: 33 | H19: 200 | I19: =IFERROR((Parametros[Segmento]="Fondo_Menu")*1,0) -> 1
B20: =IF(Parametros[Tipo]=2,"Esta sección no está disponible en la versión de prueba de Actualícese 110.xls. Si quieres realizar tu declaración de renta de personas jurídicas de forma rápida y en solo 3 pasos, adquiere nuestra herramienta ingresando a:","") ->  | C20: Imagen | D20: Formatos | E20: =$E$18 -> 314 | F20: =F19+G19+27 -> 270 | G20: 66 | H20: 217 | I20: =IFERROR((Parametros[Segmento]="Fondo_Menu")*1,0) -> 1
B21: =IF(Parametros[Tipo]=2,"Esta sección no está disponible en la versión de prueba de Actualícese 110.xls. Si quieres realizar tu declaración de renta de personas jurídicas de forma rápida y en solo 3 pasos, adquiere nuestra herramienta ingresando a:","") ->  | C21: Imagen | D21: Consultar_Formato | E21: =$E$18 -> 314 | F21: =F20+G20+14 -> 350 | G21: 35 | H21: 201 | I21: =IFERROR((Parametros[Segmento]="Fondo_Menu")*1,0) -> 1
B22: =IF(Parametros[Tipo]=2,"Esta sección no está disponible en la versión de prueba de Actualícese 110.xls. Si quieres realizar tu declaración de renta de personas jurídicas de forma rápida y en solo 3 pasos, adquiere nuestra herramienta ingresando a:","") ->  | C22: Imagen | D22: Crear_Formato | E22: =$E$18 -> 314 | F22: =F21+G21+10 -> 395 | G22: 36 | H22: 199 | I22: =IFERROR((Parametros[Segmento]="Fondo_Menu")*1,0) -> 1
C23: Imagen | D23: Sanciones | E23: 613 | F23: =$F$14 -> 130 | G23: 66 | H23: 213 | I23: =IFERROR((Parametros[Segmento]="Fondo_Menu")*1,0) -> 1
C24: Imagen | D24: Vencimientos | E24: =$E$23 -> 613 | F24: =F23+G23+14 -> 210 | G24: 35 | H24: 197 | I24: =IFERROR((Parametros[Segmento]="Fondo_Menu")*1,0) -> 1
C25: Imagen | D25: Sanciones2 | E25: =$E$23 -> 613 | F25: =F24+G24+10 -> 255 | G25: 37 | H25: 202 | I25: =IFERROR((Parametros[Segmento]="Fondo_Menu")*1,0) -> 1
C26: Imagen | D26: Sanciones extemporaneidad | E26: =$E$23 -> 613 | F26: =F25+G25+10 -> 302 | G26: 33 | H26: 200 | I26: =IFERROR((Parametros[Segmento]="Fondo_Menu")*1,0) -> 1
C27: Imagen | D27: Sanción por corrección | E27: =$E$23 -> 613 | F27: =F26+G26+10 -> 345 | G27: 33 | H27: 200 | I27: =IFERROR((Parametros[Segmento]="Fondo_Menu")*1,0) -> 1
B28: =IF(Parametros[Tipo]=2,"Esta sección no está disponible en la versión de prueba de Actualícese 110.xls. Si quieres realizar tu declaración de renta de personas jurídicas de forma rápida y en solo 3 pasos, adquiere nuestra herramienta ingresando a:","") ->  | C28: Imagen | D28: Sanción no envío info | E28: =$E$23 -> 613 | F28: =F27+G27+10 -> 388 | G28: 47 | H28: 200 | I28: =IFERROR((Parametros[Segmento]="Fondo_Menu")*1,0) -> 1
C29: Imagen | D29: Validar_XML_a_Cargar | E29: =$E$18 -> 314 | F29: =F22+G22+10 -> 441 | G29: 36 | H29: 199 | I29: =IFERROR((Parametros[Segmento]="Fondo_Menu")*1,0) -> 1
C31: Imagen | D31: Comentarios_Desactivar | E31: =$E$10+H10+28 -> 803 | F31: 29 | G31: 42 | H31: 140 | I31: =(LEFT(Parametros[Segmento],8)="Formato_")*1 -> 0
C32: Imagen | D32: Comentarios_Activar | E32: =$E$10+H10+28 -> 803 | F32: 29 | G32: 42 | H32: 140 | I32: =(LEFT(Parametros[Segmento],8)="Formato_")*1 -> 0
C33: Imagen | D33: Consultar_Validacion | E33: =$E$31+H31+23 -> 966 | F33: =$F$6 -> 26 | G33: 47 | H33: 175 | I33: =IF(LEFT(Parametros[Segmento],8)="Formato_",IF(OR(Parametros[ESTADO_VALIDACION]="REVALIDAR ALERTAS",Parametros[ESTADO_VALIDACION]=""),0,(COUNTIF(Hijos[Hijo],MID(Parametros[Segmento],9,4)&"*")=0)*1),0) -> 0
C34: Imagen | D34: Generar_XML | E34: =$E$31+H31+23 -> 966 | F34: =$F$6 -> 26 | G34: 47 | H34: 175 | I34: =($I$33=0)*(COUNTIF(Hijos[Hijo],MID(Parametros[Segmento],9,4)&"*")=0)*(LEFT(Parametros[Segmento],8)="Formato_") -> 0
C36: Imagen | D36: Cargar_XML | E36: =$E$7+H7+20 -> 600 | F36: =$F$6 -> 26 | G36: 47 | H36: 160 | I36: =IF(Parametros[Segmento]="Datos_Encabezados_Cargar",(COUNTIF(Hijos[Hijo],MID(Parametros[Segmento],9,4)&"*")=0)*1,0) -> 0
C37: Imagen | D37: Export_XML | E37: =$E$7+H7+20 -> 600 | F37: =$F$6 -> 26 | G37: 47 | H37: 160 | I37: =IF(Parametros[Segmento]="Datos_Encabezados",(COUNTIF(Hijos[Hijo],MID(Parametros[Segmento],9,4)&"*")=0)*1,0) -> 0
C38: Imagen | D38: Validacion_Desactivar | E38: =$E$33+H33+20 -> 1161 | F38: =$F$6 -> 26 | G38: 47 | H38: 175 | I38: 0
C39: Imagen | D39: Validacion_Activar | E39: =$E$33+H33+20 -> 1161 | F39: =$F$6 -> 26 | G39: 47 | H39: 175 | I39: 0
C41: Imagen | D41: Formato_Actual | E41: =$E$5+H5+20 -> 1250 | F41: 18 | I41: =(LEFT(Parametros[Segmento],8)="Formato_")*1 -> 0
C42: Imagen | D42: Padre | E42: =$E$6+H6+20 -> 430 | F42: =$F$6 -> 26 | G42: 47 | H42: 130 | I42: =IFERROR((Parametros[Segmento]<>"Fondo_Menu")*(COUNTIF(Hijos[Hijo],SUBSTITUTE(Parametros[Segmento],"Formato_",""))>0),0) -> 0
A43: =IFERROR(VLOOKUP(SUBSTITUTE(Parametros[Segmento],"Formato_","")&"D",Hijos[],3,0),"") ->  | C43: Imagen | D43: Hijo_1 | E43: =$E$31+H31+23 -> 966 | F43: 29 | G43: 41 | H43: =IF(LEN(Botones_e_Imagenes[[#This Row],[Accion]])>30,250,170) -> 170 | I43: =IF(Botones_e_Imagenes[[#This Row],[Accion]]="",0,1) -> 0
A44: =IF(Parametros[Segmento]="Formato_1032",$D$55,IF(Parametros[Segmento]="Formato_1159D",$D$58,"")) ->  | C44: Imagen | D44: Hijo_2 | E44: =IF(I43=1,E43+H43+27,$E$31+H31+23) -> 966 | F44: 29 | G44: 41 | H44: =IF(LEN(Botones_e_Imagenes[[#This Row],[Accion]])>30,250,170) -> 170 | I44: =IF(Botones_e_Imagenes[[#This Row],[Accion]]="",0,1) -> 0
C45: Imagen | D45: Consultar_Detener | E45: =$E$10+H10+28 -> 803 | F45: 29 | G45: 41 | H45: 130 | I45: =IFERROR((Parametros[Segmento]="Consultas_Manuales_RUT")*1,0) -> 0
B49: Hijo | C49: Descripcion | D49: Botón
B50: 1019D | C50: 1019 Información de Titulares Secundarios y/o firmas autorizadas para cuentas corrientes y/o cuentas de ahorro. | D50: Registros secundarios
B51: 1020D | C51: 1020 Titulares secundarios en CDT | D51: Registros secundarios
B52: 1021D | C52: 1021 Titulares secundarios para inversiones en fondos con más de un titular | D52: Registros secundarios
B53: 1022D | C53: 1022 APORTES VOLUNTARIOS A PENSIONES, CUENTAS DE AHORRO AFC Y CUENTAS DE AHORRO AVC | D53: Registros secundarios
B54: 1032D | C54: 1032 Información Enajenates Secundarios | D54: Enajenante secundarios
B55: 1032E | C55: 1032 Información de Adquirientes Secundarios | D55: Adquirientes secundarios
B56: 1038D | C56: 1038 Información de sociedades creadas - Socios Cámaras de Comercio | D56: Registros secundarios
B57: 1159D | C57: 1159 Información de los contratos celebrados de cada uno de los convenios | D57: Registros de contratos
B58: 1159E | C58: 1159 Información de los pagos o abono en cuenta efectuados en el año | D58: Registro de pagos
B59: 2273D | C59: 2273 Información de los otros inversionistas o mancomunados registrados de cada cuenta | D59: Información inversionista o mancumunados
B60: 2274D | C60: 2274 Fondo de Cesantías | D60: Registros secundarios
B61: 2683D | C61: 2683 Datos de los representantes legales e integrantes de los órganos directivos | D61: Registros secundarios

Sheet 
O1: Conteo | P1: Segmento | Q1: Visible | R1: Alto_Celdas | S1: Celda_Filtro
Q2: 1 | R2: 15 | S2: 1
Q3: 1 | R3: 15 | S3: 1
Q4: 1 | R4: 15 | S4: 1
Q5: 1 | R5: 12 | S5: 1
A6: 1 | B6: 3 | C6: 35 | D6: 11 | E6: 4 | F6: 10 | G6: 5 | H6: 11 | I6: 11 | J6: 11 | K6: 12 | L6: 10 | M6: 13 | N6: 50 | P6: Fondo_Menu | Q6: 0 | S6: =(P6=Parametros[Segmento])*(Q6>0)*(R6>0) -> 0
P7: Fondo_Menu | Q7: 0 | R7: 20 | S7: =(P7=Parametros[Segmento])*(Q7>0)*(R7>0) -> 0
P8: Fondo_Menu | Q8: 1 | R8: 10 | S8: =(P8=Parametros[Segmento])*(Q8>0)*(R8>0) -> 1
P9: Fondo_Menu | Q9: 1 | R9: 20 | S9: =(P9=Parametros[Segmento])*(Q9>0)*(R9>0) -> 1
P10: Fondo_Menu | Q10: 1 | R10: 20 | S10: =(P10=Parametros[Segmento])*(Q10>0)*(R10>0) -> 1
P11: Fondo_Menu | Q11: 1 | R11: 20 | S11: =(P11=Parametros[Segmento])*(Q11>0)*(R11>0) -> 1
P12: Fondo_Menu | Q12: 1 | R12: 20 | S12: =(P12=Parametros[Segmento])*(Q12>0)*(R12>0) -> 1
P13: Fondo_Menu | Q13: 1 | R13: 20 | S13: =(P13=Parametros[Segmento])*(Q13>0)*(R13>0) -> 1
P14: Fondo_Menu | Q14: 1 | R14: 20 | S14: =(P14=Parametros[Segmento])*(Q14>0)*(R14>0) -> 1
P15: Fondo_Menu | Q15: 1 | R15: 20 | S15: =(P15=Parametros[Segmento])*(Q15>0)*(R15>0) -> 1
P16: Fondo_Menu | Q16: 1 | R16: 20 | S16: =(P16=Parametros[Segmento])*(Q16>0)*(R16>0) -> 1
P17: Fondo_Menu | Q17: 1 | R17: 20 | S17: =(P17=Parametros[Segmento])*(Q17>0)*(R17>0) -> 1
P18: Fondo_Menu | Q18: 1 | R18: 20 | S18: =(P18=Parametros[Segmento])*(Q18>0)*(R18>0) -> 1
P19: Fondo_Menu | Q19: 1 | R19: 20 | S19: =(P19=Parametros[Segmento])*(Q19>0)*(R19>0) -> 1
P20: Fondo_Menu | Q20: 1 | R20: 20 | S20: =(P20=Parametros[Segmento])*(Q20>0)*(R20>0) -> 1
P21: Fondo_Menu | Q21: 1 | R21: 20 | S21: =(P21=Parametros[Segmento])*(Q21>0)*(R21>0) -> 1
P22: Fondo_Menu | Q22: 1 | R22: 20 | S22: =(P22=Parametros[Segmento])*(Q22>0)*(R22>0) -> 1
P23: Fondo_Menu | Q23: 1 | R23: 20 | S23: =(P23=Parametros[Segmento])*(Q23>0)*(R23>0) -> 1
P24: Fondo_Menu | Q24: 1 | R24: 20 | S24: =(P24=Parametros[Segmento])*(Q24>0)*(R24>0) -> 1
P25: Fondo_Menu | Q25: 1 | R25: 20 | S25: =(P25=Parametros[Segmento])*(Q25>0)*(R25>0) -> 1
P26: Fondo_Menu | Q26: 1 | R26: 20 | S26: =(P26=Parametros[Segmento])*(Q26>0)*(R26>0) -> 1
P27: Fondo_Menu | Q27: 1 | R27: 20 | S27: =(P27=Parametros[Segmento])*(Q27>0)*(R27>0) -> 1
P28: Fondo_Menu | Q28: 1 | R28: 20 | S28: =(P28=Parametros[Segmento])*(Q28>0)*(R28>0) -> 1
P29: Fondo_Menu | Q29: 1 | R29: 20 | S29: =(P29=Parametros[Segmento])*(Q29>0)*(R29>0) -> 1
P30: Fondo_Menu | Q30: 1 | R30: 20 | S30: =(P30=Parametros[Segmento])*(Q30>0)*(R30>0) -> 1
P31: Fondo_Menu | Q31: 1 | R31: 20 | S31: =(P31=Parametros[Segmento])*(Q31>0)*(R31>0) -> 1
P32: Fondo_Menu | Q32: 1 | R32: 20 | S32: =(P32=Parametros[Segmento])*(Q32>0)*(R32>0) -> 1
P33: Fondo_Menu | Q33: 1 | R33: 20 | S33: =(P33=Parametros[Segmento])*(Q33>0)*(R33>0) -> 1
P34: Fondo_Menu | Q34: 1 | R34: 20 | S34: =(P34=Parametros[Segmento])*(Q34>0)*(R34>0) -> 1
P35: Fondo_Menu | Q35: 1 | R35: 20 | S35: =(P35=Parametros[Segmento])*(Q35>0)*(R35>0) -> 1
P36: Fondo_Menu | Q36: 1 | R36: 20 | S36: =(P36=Parametros[Segmento])*(Q36>0)*(R36>0) -> 1
P37: Fondo_Menu | Q37: 1 | R37: 20 | S37: =(P37=Parametros[Segmento])*(Q37>0)*(R37>0) -> 1
P38: Fondo_Menu | Q38: 1 | R38: 20 | S38: =(P38=Parametros[Segmento])*(Q38>0)*(R38>0) -> 1
P39: Fondo_Menu | Q39: 1 | R39: 20 | S39: =(P39=Parametros[Segmento])*(Q39>0)*(R39>0) -> 1
P40: Fondo_Menu | Q40: 1 | R40: 20 | S40: =(P40=Parametros[Segmento])*(Q40>0)*(R40>0) -> 1
A41: 3.78 | B41: 109.44 | C41: 45 | D41: 10 | P41: Obligados | Q41: 0 | R41: 20 | S41: =(P41=Parametros[Segmento])*(Q41>0)*(R41>0) -> 0
P42: Obligados | Q42: 1 | R42: 30 | S42: =(P42=Parametros[Segmento])*(Q42>0)*(R42>0) -> 0
B43: Obligados a presentar información exógena por el año gravable 2022 | P43: Obligados | Q43: 1 | R43: 30 | S43: =(P43=Parametros[Segmento])*(Q43>0)*(R43>0) -> 0
B44: Condición contribuyente | C44: Norma | P44: Obligados | Q44: 1 | R44: 30 | S44: =(P44=Parametros[Segmento])*(Q44>0)*(R44>0) -> 0
B45: Las entidades públicas o privadas que celebren convenios de cooperación y asistencia técnica para el apoyo y ejecución de sus programas o proyectos, con organismos internacionales. | C45: Literal a) del artículo 1 de la Resolución DIAN 000124 de 2021 | P45: Obligados | Q45: 1 | R45: 40.1 | S45: =(P45=Parametros[Segmento])*(Q45>0)*(R45>0) -> 0
B46: Las entidades vigiladas por la Superintendencia Financiera de Colombia, las cooperativas de ahorro y crédito, los organismos cooperativos de grado superior, las instituciones auxiliares del cooperativismo, las cooperativas multiactivas e integrales y los fondos de empleados que realicen actividades financieras. | C46: Literal b) del artículo 1 de la Resolución DIAN 000124 de 2022 | P46: Obligados | Q46: 1 | R46: 40.1 | S46: =(P46=Parametros[Segmento])*(Q46>0)*(R46>0) -> 0
B47: Las bolsas de valores y los comisionistas de bolsa. | C47: Literal c) del artículo 1 de la Resolución DIAN 000124 de 2023 | P47: Obligados | Q47: 1 | R47: 40.1 | S47: =(P47=Parametros[Segmento])*(Q47>0)*(R47>0) -> 0
B48: Las personas naturales y sus asimiladas que durante el año gravable 2021 o en el año gravable 2022 hayan obtenido ingresos brutos superiores a quinientos millones de pesos ($500.000.000) y que la suma de los Ingresos brutos obtenidos por rentas capital y/o rentas no laborales durante el año gravable 2022 superen los cien millones de pesos ($100.000.000). Debe tenerse en cuenta que, los ingresos brutos incluyen todos los ingresos ordinarios, extraordinarios y los correspondientes a las ganancias ocasionales. Adicionalmente, la información a reportar será la correspondiente a las rentas de capital y/o rentas no laborales. | C48: Literal d) y parágrafo 1 y 3 del artículo 1 de la Resolución DIAN 000124 de 2024 | P48: Obligados | Q48: 1 | R48: 120 | S48: =(P48=Parametros[Segmento])*(Q48>0)*(R48>0) -> 0
B49: Los contribuyentes personas naturales del régimen simple de tributación -SIMPLE que durante el año gravable 2021 o en el año gravable 2022, hayan obtenido ingresos brutos superiores a quinientos millones de pesos ($500.000.000), sin considerar el tipo de ingreso. Debe tenerse en cuenta que, los ingresos brutos incluyen todos los ingresos ordinarios, extraordinarios y los correspondientes a las ganancias ocasionales. | C49: Literal d) y parágrafo 1 del artículo 1 de la Resolución DIAN 000124 de 2025 | P49: Obligados | Q49: 1 | R49: 100.1 | S49: =(P49=Parametros[Segmento])*(Q49>0)*(R49>0) -> 0
B50: Las personas jurídicas y sus asimiladas y demás entidades públicas y privadas que en el año gravable 2021 o en el año gravable 2022 hayan obtenido ingresos brutos superiores a cien millones de pesos ($100.000.000). | C50: Literal e) del artículo 1 de la Resolución DIAN 000124 de 2026 | P50: Obligados | Q50: 1 | R50: 40.1 | S50: =(P50=Parametros[Segmento])*(Q50>0)*(R50>0) -> 0
B51: Las personas naturales y sus asimiladas, las personas jurídicas y sus asimiladas, entidades públicas y privadas, y demás obligados a practicar retenciones y autorretenciones en la fuente a título del impuesto sobre la renta, impuesto sobre las ventas (IVA) y Timbre, durante el año gravable 2022. Respecto a las personas naturales debe tenerse en cuenta que, la información a reportar será la correspondiente a las rentas de capital y/o rentas no laborales. | C51: Literal f) y parágrafo 3 del artículo 1 de la Resolución DIAN 000124 de 2027 | P51: Obligados | Q51: 1 | R51: 100.1 | S51: =(P51=Parametros[Segmento])*(Q51>0)*(R51>0) -> 0
B52: Establecimientos permanentes de personas naturales no residentes y de personas jurídicas y entidades extranjeras. | C52: Literal g) del artículo 1 de la Resolución DIAN 000124 de 2028 | P52: Obligados | Q52: 1 | R52: 40.1 | S52: =(P52=Parametros[Segmento])*(Q52>0)*(R52>0) -> 0
B53: Las personas o entidades que celebren contratos de colaboración tales como, consorcios, uniones temporales, contratos de mandato, administración delegada, contratos de exploración y explotación de hidrocarburos, gases y minerales, joint venture, cuentas en participación y convenios de cooperación con entidades públicas. | C53: Literal h) del artículo 1 de la Resolución DIAN 000124 de 2029 | P53: Obligados | Q53: 1 | R53: 60 | S53: =(P53=Parametros[Segmento])*(Q53>0)*(R53>0) -> 0
B54: Los entes públicos del Nivel Nacional y Territorial del orden central y descentralizado, contemplados en el artículo 22 del Estatuto Tributario, no obligados a presentar declaración de ingresos y patrimonio. | C54: Literal i) del artículo 1 de la Resolución DIAN 000124 de 2030 | P54: Obligados | Q54: 1 | R54: 40.1 | S54: =(P54=Parametros[Segmento])*(Q54>0)*(R54>0) -> 0
B55: Los Secretarios Generales o quienes hagan sus veces de los órganos que financien gastos con recursos del Tesoro Nacional. | C55: Literal j) del artículo 1 de la Resolución DIAN 000124 de 2031 | P55: Obligados | Q55: 1 | R55: 40.1 | S55: =(P55=Parametros[Segmento])*(Q55>0)*(R55>0) -> 0
B56: Los obligados a presentar estados financieros consolidados. | C56: Literal k) del artículo 1 de la Resolución DIAN 000124 de 2032 | P56: Obligados | Q56: 1 | R56: 40.1 | S56: =(P56=Parametros[Segmento])*(Q56>0)*(R56>0) -> 0
B57: Las Cámaras de Comercio. | C57: Literal l) del artículo 1 de la Resolución DIAN 000124 de 2033 | P57: Obligados | Q57: 1 | R57: 40.1 | S57: =(P57=Parametros[Segmento])*(Q57>0)*(R57>0) -> 0
B58: La Registraduría Nacional del Estado Civil. | C58: Literal m) del artículo 1 de la Resolución DIAN 000124 de 2034 | P58: Obligados | Q58: 1 | R58: 40.1 | S58: =(P58=Parametros[Segmento])*(Q58>0)*(R58>0) -> 0
B59: Los Notarios con relación a las operaciones realizadas durante el ejercicio de sus funciones. | C59: Literal n) del artículo 1 de la Resolución DIAN 000124 de 2035 | P59: Obligados | Q59: 1 | R59: 40.1 | S59: =(P59=Parametros[Segmento])*(Q59>0)*(R59>0) -> 0
B60: Las personas o entidades que elaboren facturas de venta o documentos equivalentes. | C60: Literal o) del artículo 1 de la Resolución DIAN 000124 de 2036 | P60: Obligados | Q60: 1 | R60: 40.1 | S60: =(P60=Parametros[Segmento])*(Q60>0)*(R60>0) -> 0
B61: Las alcaldías, los distritos y las gobernaciones. | C61: Literal p) del artículo 1 de la Resolución DIAN 000124 de 2037 | P61: Obligados | Q61: 1 | R61: 40.1 | S61: =(P61=Parametros[Segmento])*(Q61>0)*(R61>0) -> 0
B62: Las autoridades catastrales. | C62: Literal q) del artículo 1 de la Resolución DIAN 000124 de 2038 | P62: Obligados | Q62: 1 | R62: 40.1 | S62: =(P62=Parametros[Segmento])*(Q62>0)*(R62>0) -> 0
B63: Los responsables del Impuesto Nacional al Carbono. | C63: Literal r) del artículo 1 de la Resolución DIAN 000124 de 2039 | P63: Obligados | Q63: 1 | R63: 40.1 | S63: =(P63=Parametros[Segmento])*(Q63>0)*(R63>0) -> 0
B64: Las entidades que otorgan, reconocen, registran, cancelan o suspenden personerías jurídicas. | C64: Literal s) del artículo 1 de la Resolución DIAN 000124 de 2040 | P64: Obligados | Q64: 1 | R64: 40.1 | S64: =(P64=Parametros[Segmento])*(Q64>0)*(R64>0) -> 0
B65: Nota: No estarán obligadas a presentar la información que establece la presente Resolución las personas naturales y sus asimiladas, las personas jurídicas y sus asimiladas y, demás entidades que durante el año gravable 2022 adelanten el trámite de cancelación del Registro Único Tributario - RUT de oficio o a solicitud de parte, de acuerdo con lo establecido en los artículos 1.6.1.2.18. y siguientes del Decreto 1625 de 2016 Único Reglamentario en Materia Tributaria. En el caso de que la cancelación del Registro Único Tributario - RUT corresponda a un contrato de colaboración empresarial, las operaciones del contrato deberán ser informadas a nombre propio por los partícipes ocultos, consorciados, unidos temporalmente, mandantes, contratantes, asociados, ventures o demás partes de los contratos, de acuerdo con lo especificado en el artículo 27 y los plazos establecidos en la presente Resolución. | C65: Literal 2) del artículo 1 de la Resolución DIAN 000124 de 2041 | P65: Obligados | Q65: 1 | R65: 180 | S65: =(P65=Parametros[Segmento])*(Q65>0)*(R65>0) -> 0
P66: Obligados | Q66: 1 | R66: 30 | S66: =(P66=Parametros[Segmento])*(Q66>0)*(R66>0) -> 0
A67: 2.44 | B67: 2.44 | C67: 0 | D67: 55.33 | E67: 33.44 | F67: 10.67 | G67: 10.44 | H67: 16.11 | I67: 83 | J67: 16.22 | K67: 17 | L67: 17.78 | M67: 16.22 | N67: 10.67 | P67: Formatos según informante | Q67: 0 | R67: 20 | S67: =(P67=Parametros[Segmento])*(Q67>0)*(R67>0) -> 0
P68: Formatos según informante | Q68: 1 | R68: 30 | S68: =(P68=Parametros[Segmento])*(Q68>0)*(R68>0) -> 0
D69: Formatos de acuerdo con el informante | P69: Formatos según informante | Q69: 1 | R69: 35 | S69: =(P69=Parametros[Segmento])*(Q69>0)*(R69>0) -> 0
P70: Formatos según informante | Q70: 1 | R70: 10.1 | S70: =(P70=Parametros[Segmento])*(Q70>0)*(R70>0) -> 0
D71: Selecciona la categoría de la persona o entidad informante | I71: Informantes Tributarios | P71: Formatos según informante | Q71: 1 | R71: 30 | S71: =(P71=Parametros[Segmento])*(Q71>0)*(R71>0) -> 0
P72: Formatos según informante | Q72: 1 | R72: 10.1 | S72: =(P72=Parametros[Segmento])*(Q72>0)*(R72>0) -> 0
D73: Persona o entidad informante | E73: Formatos para utilizar | P73: Formatos según informante | Q73: 1 | R73: 30 | S73: =(P73=Parametros[Segmento])*(Q73>0)*(R73>0) -> 0
E74: Nombre del formato | F74: Número | G74: Versión | H74: ¿Cambió la versión para el reporte de este año? | I74: Información que debe reportarse en cada formato | J74: Corte con que se debe elaborar el formato | K74: Artículos de la Resolución 000124 que mencionan la exigencia de los reportes | L74: Artículos del Estatuto Tributario que son la base para solicitar la información | M74: Prevalidador que contiene a dicho formato | P74: Formatos según informante | Q74: 1 | R74: 130.8 | S74: =(P74=Parametros[Segmento])*(Q74>0)*(R74>0) -> 0
C75: Entidades financieras | D75: Entidades vigiladas por la Superintendencia Financiera, las cooperativas de ahorro y crédito, los organismos cooperativos de grado superior, las instituciones auxiliares del cooperativismo, las cooperativas multiactivas e integrales y los fondos de empleados que realicen actividades financieras. | E75: Movimiento en cuenta corriente y/o ahorro | F75: 1019 | G75: 9 | H75: No | I75: Se debe reportar el valor mensual acumulado de los movimientos de naturaleza crédito de las cuentas corrientes y/o de ahorro sea superior a un millón de pesos ($1.000.000) o cuando el saldo por el periodo a reportar de cada una o varias cuentas corrientes y/o de ahorro de un mismo cuentahabiente sea igual o superior a un millón de pesos ($1.000.000), aunque al discriminar por cuenta, los valores a reportar sean menores. | J75: Anual por periodos mensuales | K75: Artículo 3 | L75: Literal a) del 623, 623-2, 623-3 y 631-3 | M75: Prevalidador de Entidades financieras | P75: Formatos según informante | Q75: 1 | R75: 124.2 | S75: =(P75=Parametros[Segmento])*(Q75>0)*(R75>0) -> 0
C76: Entidades financieras | E76: Información de inversiones en CDT | F76: 1020 | G76: 8 | H76: No | I76: Se deben reportar los datos de cada una de las personas o entidades a quienes durante el mes, se les haya emitido, renovado, cancelado o tengan vigente a su favor uno o más certificados fijos y/o cualquier otro título, sin importar la cuantía. | J76: Anual por periodos mensuales | K76: Artículo 4 | L76: Literal a) del 623 y 631-3 | M76: Prevalidador de Entidades financieras | P76: Formatos según informante | Q76: 1 | R76: 88.8 | S76: =(P76=Parametros[Segmento])*(Q76>0)*(R76>0) -> 0
C77: Entidades financieras | E77: Información de fondos de inversión colectiva | F77: 1021 | G77: 7 | H77: No | I77: Las administradores de los fondos de inversión colectiva deben reportar la información de cada uno de los inversionistas y/o partícipes y/o ahorradores que hayan suscrito a su favor uno o más contratos y/o ahorros, sin importar su cuantía. Se deberá informar: el valor del saldo inicial, el valor de las inversiones y/o ahorros efectuados, los rendimientos y/o utilidades causados, los rendimientos y/o utilidades pagados, retención en la fuente practicada, el saldo final, el número del título o contrato y el tipo de fondo, independientemente de que a treinta y uno (31) de diciembre dichos títulos y/o contratos se hubieren cancelado. | J77: Anual | K77: Artículo 9 | L77: Literal a) del 623 y 631-3 | M77: Prevalidador de Entidades financieras | P77: Formatos según informante | Q77: 1 | R77: 179.4 | S77: =(P77=Parametros[Segmento])*(Q77>0)*(R77>0) -> 0
C78: Entidades financieras | E78: Aportes voluntarios a pensiones, cuentas de ahorro AFC y cuentas de ahorro AVC | F78: 1022 | G78: 9 | H78: No | I78: Se debe reportar la información de los aportes voluntarios realizados en fondos de pensiones y/o a cuentas AFC y/o AVC junto con sus respectivos retiros gravados y no gravados, sin importar su cuantía. Adicionalmente, se deberán reportar los rendimientos del año y el saldo en el fondo a diciembre 31 de 2022. Debe tenerse en cuenta que, la casilla “número de la cuenta” se debe diligenciar indicando el número de identificación del afiliado. | J78: Anual | K78: Numeral 10.2 del artículo 10 y artículo 11 | L78: Literal a) del 623 y 631-3 | M78: Prevalidador de Entidades Financieras | P78: Formatos según informante | Q78: 1 | R78: 125.4 | S78: =(P78=Parametros[Segmento])*(Q78>0)*(R78>0) -> 0
C79: Entidades financieras | E79: Consumos con tarjeta de crédito | F79: 1023 | G79: 6 | H79: No | I79: Se debe reportar el valor de las adquisiciones, consumos, avances o gastos realizados con tarjetas de crédito, cuando el valor anual acumulado sea superior a un millón de pesos ($1.000.000), aunque al discriminar por tarjeta los valores a reportar sean menores, indicando del valor total del movimiento realizado durante el año. | J79: Anual | K79: Artículo 6 | L79: Literal b) del 623 | M79: Prevalidador de Entidades financieras | P79: Formatos según informante | Q79: 1 | R79: 108.6 | S79: =(P79=Parametros[Segmento])*(Q79>0)*(R79>0) -> 0
C80: Entidades financieras | E80: Ventas con tarjeta de crédito | F80: 1024 | G80: 6 | H80: No | I80: Se debe reportar la información de las personas o entidades que durante el respectivo año hayan efectuado ventas o prestación de servicios con tarjeta de crédito, que en general hayan recibido ingresos a través del sistema de tarjetas de crédito, cuando la cuantía sea superior a un millón de pesos ($1.000.000), indicando el valor total del movimiento acumulado de las ventas y/o prestación de servicios efectuados durante el año y el valor del impuesto sobre las ventas. | J80: Anual | K80: Artículo 7 | L80: Literal c) del 623 | M80: Prevalidador de Entidades Financieras | P80: Formatos según informante | Q80: 1 | R80: 130.2 | S80: =(P80=Parametros[Segmento])*(Q80>0)*(R80>0) -> 0
C81: Entidades financieras | E81: Préstamos bancarios otorgados | F81: 1026 | G81: 6 | H81: No | I81: Se deben reportar la información de cada una de las personas o entidades a las cuales se les hayan efectuado préstamos cuyo valor anual acumulado sea superior a un millón de pesos ($1.000.000), sin importar que, al discriminar cada préstamo, los valores parciales a reportar sean menores. | J81: Anual | K81: Artículo 8 | L81: 623-2 (sic) | M81: Prevalidador de Entidades Financieras | P81: Formatos según informante | Q81: 1 | R81: 94.2 | S81: =(P81=Parametros[Segmento])*(Q81>0)*(R81>0) -> 0
C82: Deceval | D82: Sociedad Administradora del Depósito Centralizado de Valores - Deceval | E82: Depósitos de títulos valores y rendimientos o dividendos cancelados | F82: 2273 | G82: 2 | H82: No | I82: Se deberán reportar los datos, sin importar el monto, de las personas o entidades que realizaron a través de ella depósitos de títulos valores e instrumentos financieros, se encuentren o no inscritos en el registro nacional de valores e intermediarios, sean emitidos en Colombia o en el exterior. | J82: Anual por periodos mensuales | K82: Artículo 5 | L82: 631-3 | M82: Prevalidador de Deceval | P82: Formatos según informante | Q82: 1 | R82: 90.6 | S82: =(P82=Parametros[Segmento])*(Q82>0)*(R82>0) -> 0
C83: Entidades financieras | D83: Fondos de cesantías | E83: Fondo de Cesantías | F83: 2274 | G83: 2 | H83: Sí | I83: Los fondos de cesantías deberán reportar, sin importar el monto, todos los datos sobre saldos iniciales, movimientos, rendimientos, retenciones en la fuente y saldos finales que se tengan en todos los fondos de cesantías. Cabe mencionar que, en este formato se debe detallar si los retiros realizados durante el año correspondían a cesantías acumuladas a diciembre de 2016 o si correspondían a cesantías depositadas durante los años 2017 y siguientes. De igual manera, se debe detallar el valor del saldo final a diciembre 31 de 2022 que corresponde a cesantías de los años 2016 y anteriores y el valor que pertenece a cesantías de los años 2017 y siguientes. | J83: Anual | K83: Artículo 12 | L83: 631-3 | M83: Prevalidador de Entidades Financieras | P83: Formatos según informante | Q83: 1 | R83: 203.6 | S83: =(P83=Parametros[Segmento])*(Q83>0)*(R83>0) -> 0
C84: Entidades financieras | D84: Fondos de pensiones obligatorias | E84: Fondos de Pensiones Obligatorias | F84: 2277 | G84: 1 | H84: No | I84: Se debe reportar el valor de los aportes obligatorios realizados en el año por todo tipo de partícipe. Los aportes obligatorios se deben reportar cuando la suma anual de los aportes realizados por el empleador más los aportes efectuados por el trabajador o partícipe independiente o patrocinador, por este concepto, sea superior a cuatro millones de pesos ($4.000.000). | J84: Anual | K84: Numeral 10.1 del artículo 10 | L84: Literal a) del 623 y 631-3 | M84: Prevalidador de Entidades Financieras | P84: Formatos según informante | Q84: 1 | R84: 106.2 | S84: =(P84=Parametros[Segmento])*(Q84>0)*(R84>0) -> 0
C85: Otros informantes | D85: Cámaras de comercio | E85: Información de las sociedades creadas | F85: 1038 | G85: 6 | H85: No | I85: Se debe reportar la información de las sociedades creadas durante el 2022, incluyendo los datos de sus socios o accionistas. | J85: Anual | K85: Numeral 31.1 del artículo 31 | L85: 624 | M85: Prevalidador de Otros | P85: Formatos según informante | Q85: 1 | R85: 55.2 | S85: =(P85=Parametros[Segmento])*(Q85>0)*(R85>0) -> 0
C86: Otros informantes | E86: Sociedades liquidadas | F86: 1039 | G86: 6 | H86: No | I86: Se debe reportar la información de las sociedades liquidadas durante el 2022. | J86: Anual | K86: Numeral 31.2 del artículo 31 | L86: 624 | M86: Prevalidador de Otros | P86: Formatos según informante | Q86: 1 | R86: 55.2 | S86: =(P86=Parametros[Segmento])*(Q86>0)*(R86>0) -> 0
C87: Entidades financieras | D87: La Bolsa de Valores de Colombia, la Bolsa Mercantil de Colombia y las demás bolsas de valores | E87: Información de Bolsa de Valores | F87: 1041 | G87: 6 | H87: No | I87: La Bolsa de Valores de Colombia, la Bolsa Mercantil de Colombia y las demás bolsas de valores, deberán informar de cada uno de los comisionistas de bolsa, el valor total acumulado de las adquisiciones y enajenaciones realizadas durante el respectivo año gravable, por operaciones propias o a nombre de terceros. | J87: Anual | K87: Artículo 13 y 44 al 51 | L87: 625 | M87: Prevalidador de Entidades Financieras | P87: Formatos según informante | Q87: 1 | R87: 108 | S87: =(P87=Parametros[Segmento])*(Q87>0)*(R87>0) -> 0
C88: Otros informantes | D88: Registraduría Nacional | E88: Personas Fallecidas | F88: 1028 | G88: 7 | H88: No | I88: Se debe suministrar la información de los documentos de identidad y otros datos correspondientes a las personas colombianas fallecidas durante el año 2022. | J88: Anual | K88: Artículo 32 | L88: 627 | M88: Prevalidador de Otros | P88: Formatos según informante | Q88: 1 | R88: 72 | S88: =(P88=Parametros[Segmento])*(Q88>0)*(R88>0) -> 0
C89: Entidades financieras | D89: Comisionistas de bolsa de valores | E89: Información de Comisionistas de Bolsas | F89: 1042 | G89: 7 | H89: No | I89: Las comisionistas de bolsa deben reportar la información de las transacciones realizadas a nombre propio y la información de cada una de las personas o entidades que realizaron, a través de ellos, enajenaciones o adquisiciones de acciones y demás papeles transados en bolsa cuyo valor acumulado sea superior a un millón de pesos ($1.000.000), indicando el valor total acumulado de dichas operaciones. | J89: Anual | K89: Artículos 14 y 45 al 52 | L89: 628 | M89: Prevalidador de Entidades Financieras | P89: Formatos según informante | Q89: 1 | R89: 125.4 | S89: =(P89=Parametros[Segmento])*(Q89>0)*(R89>0) -> 0
C90: Otros informantes | D90: Notarios | E90: Información de Enajenaciones de Bienes y Derechos a través de Notarias | F90: 1032 | G90: 10 | H90: No | I90: Se debe reportar la información relativa a las operaciones realizadas en el ejercicio de sus funciones, suministrando los datos de cada una de las personas o entidades que efectuaron enajenación de bienes o derechos a título oneroso o gratuito, durante el año, independientemente del valor de la transacción. | J90: Anual | K90: Artículo 33 | L90: 629 y 631-3 | M90: Prevalidador de Otros | P90: Formatos según informante | Q90: 1 | R90: 95.4 | S90: =(P90=Parametros[Segmento])*(Q90>0)*(R90>0) -> 0
C91: Otros informantes | D91: Tipógrafos elaboradores de facturas de venta | E91: Elaboración de facturación por litógrafos y tipógrafos | F91: 1037 | G91: 7 | H91: No | I91: Se deben reportar los datos de cada una de las personas o entidades a quienes se elaboraron trabajos de impresión de facturas. | J91: Anual | K91: Artículo 34 | L91: 629-1 | M91: Prevalidador de Otros | P91: Formatos según informante | Q91: 1 | R91: 56.4 | S91: =(P91=Parametros[Segmento])*(Q91>0)*(R91>0) -> 0
C92: Informantes tributarios | D92: Las personas jurídicas y sus asimiladas con ánimo de lucro, las cooperativas y los fondos de empleados, obligadas a presentar información de acuerdo con los literal e) y f) del artículo 1 de la Resolución 000124 de 2021 | E92: Información de socios, accionistas, comuneros y/o cooperados | F92: 1010 | G92: 8 | H92: No | I92: Se debe reportar la información de los socios, accionistas, comuneros, cooperados y asociados de los fondos de empleados, a diciembre 31 de 2022, cuando el monto de sus aportes sociales a diciembre 31 de 2022 sea superior a $3.000.000. Para los socios, accionistas, comuneros, asociados y/o cooperados que sean entidades o sociedades del exterior, al reportar el número de identificación se debe diligenciar con el número, código o clave de identificación fiscal tributaria, tal como figura en el registro fiscal del país de residencia o domicilio y tipo de documento 42. Cuando en dicho país no se utilice número, código o clave fiscal, se debe informar con identificación 444444001 en forma ascendente, variando consecutivamente en una unidad hasta el 444449999 y con tipo de documento 43. Los campos de dirección, departamento y municipio no se deben registrar. | J92: Anual | K92: Artículos 1 y 6 | L92: Literal a) del 631 | M92: Prevalidador de Informantes tributarios | P92: Formatos según informante | Q92: 1 | R92: 250.8 | S92: =(P92=Parametros[Segmento])*(Q92>0)*(R92>0) -> 0
C93: Informantes tributarios | D93: Las personas naturales y sus asimiladas, las personas jurídicas y sus asimiladas y, demás entidades públicas y privadas enunciadas en los literales d), e), f), g) e i) del artículo 1 de la Resolución 000124 de 2021 | E93: Pagos o abonos en cuenta y retenciones practicadas | F93: 1001 | G93: 10 | H93: No | I93: Se deben informar los apellidos y nombres o razón social, identificación, dirección y país de residencia o domicilio de cada una de las personas o entidades beneficiarias de los pagos o abonos en cuenta (devengo) que constituyan costo o deducción o den derecho a impuesto descontable, incluida la compra de activos fijos o movibles y los pagos o abonos en cuenta (devengo) no solicitados fiscalmente como costo o deducción, los valores de las retenciones en la fuente practicadas o asumidas a título de los impuestos sobre la Renta, IVA y Timbre, según el concepto contable a que corresponda. Se reporta en forma individualizada a los terceros que superan los $100.000 de pagos o abonos en cuenta por todo concepto. A los terceros que no superen dicho monto se les puede agrupar en un solo registro, por cada diferente concepto diseñado por la Dian, utilizando el seudo-NIT 222222222 y el tipo de documento "43" (para uso definido por la Dian). Sin embargo, en el caso de las personas y entidades a las que les aplique el ítem 3 de este subgrupo de informantes (es decir, los que solo fueron agentes de retención durante el 2022), ellos sí reportarán la totalidad de los pagos o abonos en cuenta a terceros sin importar la cuantía. | J93: Anual | K93: Artículos 1 y 17 | L93: Literales b) y e) del 631 | M93: Prevalidador de Informantes tributarios | P93: Formatos según informante | Q93: 1 | R93: 321 | S93: =(P93=Parametros[Segmento])*(Q93>0)*(R93>0) -> 0
C94: Informantes tributarios | D94: Las personas naturales y sus asimiladas, las personas jurídicas y sus asimiladas y, demás entidades públicas y privadas enunciadas en los literales d), e) y g) del artículo 1 de la Resolución 000124 de 2021 | E94: Impuesto a las Ventas por Pagar (Descontable) | F94: 1005 | G94: 7 | H94: No | I94: Se debe reportar el valor del impuesto sobre las ventas - IVA descontable y el valor del impuesto sobre las ventas - IVA resultante por devoluciones en ventas anuladas, rescindidas o resueltas, correspondientes al año gravable, indicando los apellidos y nombres o razón social e identificación de cada uno de los terceros. | J94: Anual | K94: Numeral 20.1 del artículo 20 | L94: Literales e) y f) del 631 y 631-3 | M94: Prevalidador de Informantes Tributarios | P94: Formatos según informante | Q94: 1 | R94: 109.2 | S94: =(P94=Parametros[Segmento])*(Q94>0)*(R94>0) -> 0
C95: Informantes tributarios | D95: Las personas naturales y sus asimiladas, las personas jurídicas y sus asimiladas y demás entidades públicas y privadas enunciadas en los literales d), e) y g) del artículo 1 de la Resolución 000124 de 2021 | E95: Retenciones en la fuente que le practicaron | F95: 1003 | G95: 7 | H95: No | I95: Se deben reportar los apellidos y nombres o razón social, identificación y dirección de cada una de las personas o entidades que les practicaron retención en la fuente en el año gravable, con indicación del concepto, valor acumulado del pago o abono en cuenta, de las transacciones sobre las cuales le practicaron la retención, y el valor de la retención que le practicaron. | J95: Anual | K95: Artículos 1 y 18 | L95: Literal c) del 631 | M95: Prevalidador de Informantes Tributarios | P95: Formatos según informante | Q95: 1 | R95: 112.2 | S95: =(P95=Parametros[Segmento])*(Q95>0)*(R95>0) -> 0
C96: Informantes tributarios | D96: Las personas naturales y sus asimiladas, las personas jurídicas y sus asimiladas y, demás entidades públicas y privadas enunciadas en los literales), e), f) y g) del artículo 1 de la Resolución 000124 de 2021 | E96: Descuentos Tributarios Solicitados | F96: 1004 | G96: 8 | H96: No | I96: Se deberá suministrar la información de los terceros y los valores que dieron lugar a la solicitud de descuentos tributarios en la declaración de renta o en la declaración anual consolidada del Régimen Simple del año gravable. | J96: Anual | K96: Artículos 1 y Numeral 26.1 del artículo 26 | L96: Literal d) y k) del 631 | M96: Prevalidador de Informantes Tributarios | P96: Formatos según informante | Q96: 1 | R96: 107.4 | S96: =(P96=Parametros[Segmento])*(Q96>0)*(R96>0) -> 0
C97: Informantes tributarios | D97: Las personas naturales y sus asimiladas, las personas jurídicas y sus asimiladas y, demás entidades públicas y privadas enunciadas en los literales d), e) y g) del artículo 1 de la Resolución 000124 de 2021. | E97: Impuesto a las Ventas por Pagar (Generado) e Impuesto al Consumo | F97: 1006 | G97: 8 | H97: No | I97: Se debe reportar el valor del impuesto sobre las ventas - IVA generado y/o el impuesto nacional al consumo y el valor del impuesto sobre las ventas - IVA recuperado en devoluciones en compras anuladas, rescindidas o resueltas, correspondientes al año gravable, se debe reportar indicando los apellidos y nombres o razón social e identificación de cada uno de los terceros. | J97: Anual | K97: Artículos 1 y 19 | L97: Literal f) del 631 | M97: Prevalidador de Informantes Tributarios | P97: Formatos según informante | Q97: 1 | R97: 108.6 | S97: =(P97=Parametros[Segmento])*(Q97>0)*(R97>0) -> 0
C98: Informantes tributarios | D98: Las personas naturales y sus asimiladas, las personas jurídicas y sus asimiladas y, demás entidades públicas y privadas enunciadas en los literales d), e) y g) del artículo 1 de la Resolución 000124 de 2021 | E98: Ingresos Recibidos | F98: 1007 | G98: 9 | H98: No | I98: Se debe reportar el valor del impuesto sobre las ventas - IVA descontable y el valor del impuesto sobre las ventas - IVA resultante por devoluciones en ventas anuladas, rescindidas o resueltas, correspondientes al año gravable, indicando los apellidos y nombres o razón social e identificación de cada uno de los terceros. | J98: Anual | M98: Prevalidador de Informantes Tributarios | P98: Formatos según informante | Q98: 1 | R98: 112.8 | S98: =(P98=Parametros[Segmento])*(Q98>0)*(R98>0) -> 0
C99: Informantes tributarios | D99: Las personas naturales y sus asimiladas, las personas jurídicas y sus asimiladas y demás entidades públicas y privadas enunciadas en los literales d), e), f) y g) del artículo 1 de la Resolución 000124 de 2021 | E99: Ingresos Recibidos para Terceros | F99: 1647 | G99: 2 | H99: No | I99: Se deberán reportar apellidos y nombres o razón social, identificación y país de residencia o domicilio de cada una de las personas o entidades nacionales o extranjeras, de quienes se recibieron ingresos para terceros y los apellidos y nombres o razón social, identificación, dirección y país de residencia o domicilio de cada una de las personas o entidades nacionales o extranjeras del tercero para quien se recibió el ingreso, indicando el valor total de la operación, el valor de los ingresos reintegrados, transferidos o distribuidos al tercero y el valor de la retención en la fuente transferida o distribuida al tercero, con el concepto 4070. El valor mínimo a reportar corresponderá al valor anual acumulado de los ingresos recibidos para terceros, reintegrados, transferidos o distribuidos a cada beneficiario cuando la cuantía sea superior a un millón de pesos ($1.000.000). Para los ingresos obtenidos de entidades o sociedades del exterior, al reportar el número de identificación se debe diligenciar con el número, código o clave de identificación, tal como figura en el registro fiscal tributario del país de residencia o domicilio y tipo de documento 42. Cuando en dicho país no se utilice número, código o clave fiscal, se debe informar con identificación 444444001 en forma ascendente, variando consecutivamente en una unidad hasta el 444449999 y con tipo de documento 43. | J99: Anual | K99: Artículo 24 | L99: Literal g) del 631 | M99: Prevalidador de Informantes Tributarios | P99: Formatos según informante | Q99: 1 | R99: 412.2 | S99: =(P99=Parametros[Segmento])*(Q99>0)*(R99>0) -> 0
C100: Informantes tributarios | D100: Las personas naturales y sus asimiladas, las personas jurídicas y sus asimiladas y, demás entidades públicas y privadas enunciadas en los literales d), e), g) e i) del artículo 1 de la Resolución 000124 de 2021 | E100: Saldos de cuentas por pagar al 31 de diciembre | F100: 1009 | G100: 7 | H100: No | I100: Se debe reportar la información de los acreedores por pasivos de cualquier índole a 31 de diciembre de 2022, cuando el saldo acumulado por acreedor sea igual o superior a quinientos mil pesos ($500.000). Los saldos de los pasivos cuya cuantía sea menor a quinientos mil pesos ($500.000) se informarán acumulados en un solo registro con identificación 222222222, razón social “CUANTIAS MENORES” y tipo documento 43, en el concepto a que correspondan, reportando la dirección del informante. Para el saldo de los pasivos con entidades o sociedades del exterior, al reportar el número de identificación se debe diligenciar con el número, código o clave de identificación, tal como figura en el registro fiscal tributario del país de residencia o domicilio y tipo de documento 42. Cuando en dicho país no se utilice número, código o clave fiscal, se debe informar con identificación 444444001 en forma ascendente, variando consecutivamente en una unidad hasta el 444449999 y con tipo de documento 43. Los campos de dirección, departamento, y municipio no se deben diligenciar. | J100: Anual | K100: Artículo 21 | L100: Literal h) del 631 | M100: Prevalidador de Informantes Tributarios | P100: Formatos según informante | Q100: 1 | R100: 307.2 | S100: =(P100=Parametros[Segmento])*(Q100>0)*(R100>0) -> 0
C101: Informantes tributarios | D101: Las personas naturales y sus asimiladas, las personas jurídicas y sus asimiladas y, demás entidades públicas y privadas enunciadas en los literales d), e) y g) del artículo 1 de la Resolución 000124 de 2021 | E101: Saldos de cuentas por cobrar al 31 de diciembre | F101: 1008 | G101: 7 | H101: No | I101: Se debe reportar la información de los deudores de créditos activos a 31 de diciembre de 2022, cuando el saldo acumulado por deudor sea igual o superior a quinientos mil pesos ($500.000). Los saldos de los créditos cuya cuantía sea menor a quinientos mil pesos ($500.000) se informarán acumulados en un solo registro con identificación 222222222, razón social “CUANTIAS MENORES” y tipo documento 43, en el concepto a que correspondan, reportando la dirección del informante. Para saldo de los deudores que sean entidades o sociedades del exterior, al reportar el número de identificación se debe diligenciar con el número, código o clave de identificación, tal como figura en el registro fiscal tributario del país de residencia o domicilio y tipo de documento 42. Cuando en dicho país no se utilice número, código o clave fiscal, se debe informar con identificación 444444001 en forma ascendente, variando consecutivamente en una unidad hasta el 444449999 y con tipo de documento 43. Los campos de dirección, departamento, y municipio no se deben diligenciar. | J101: Anual | K101: Artículos 1 y 22 | L101: Literal i) del 631 | M101: Prevalidador de Informantes Tributarios | P101: Formatos según informante | Q101: 1 | R101: 303 | S101: =(P101=Parametros[Segmento])*(Q101>0)*(R101>0) -> 0
C102: Informantes tributarios | D102: Las personas naturales y sus asimiladas, las personas jurídicas y sus asimiladas y, demás entidades públicas y privadas enunciadas en los literales d), e), f), g), h) e i) del artículo 1 de la Resolución 000124 de 2021 | E102: Información de las Declaraciones Tributarias | F102: 1011 | G102: 6 | H102: No | I102: Se deben reportar el detalle de "otros datos" (sin importar su monto) tomados de las declaraciones de renta, o de ingresos y patrimonio del año gravable 2022, como algunos costos y deducciones especiales tomados en la declaración, y detalle de algunas rentas exentas tomadas en la declaración; no exige el detalle de los "ingresos no gravados", los cuales solo se reportarán en el formato 2275). También exige el detalle de algunos ingresos facturados como excluidos del IVA, exentos del IVA o gravados con IVA del 5 % llevados a las declaraciones del IVA del 2022. | J102: Anual | K102: Numerales 25.3 a 25.8 del artículo 25 | L102: Literal k) del 631 | M102: Prevalidador de Informantes Tributarios | P102: Formatos según informante | Q102: 1 | R102: 160.2 | S102: =(P102=Parametros[Segmento])*(Q102>0)*(R102>0) -> 0
C103: Informantes tributarios | D103: Las personas naturales y sus asimiladas, las personas jurídicas y sus asimiladas y, demás entidades públicas y privadas enunciadas en los literales d), e), f), g), h) e i) del artículo 1 de la Resolución 000124 de 2021 | E103: Información de las declaraciones tributarias, acciones y aportes e inversiones en bonos, certificados, títulos y demás inversiones tributarias | F103: 1012 | G103: 7 | H103: No | I103: Se debe reportar el detalle de los saldos fiscales a diciembre 31 de 2022 en bancos e inversiones financieras (en Colombia y en el exterior), al igual que el saldo a diciembre 31 de 2022 por bonos, CDT, títulos, derechos fiduciarios y demás inversiones (incluidas las acciones o cuotas en sociedades), y que se hayan llevado a la declaración de renta o de ingresos y patrimonio 2022 o la declaración anual del régimen simple del año gravable 2022. | J103: Anual | K103: Numerales 25.1 y 25.2 del artículo 25 | L103: Literal k) del 631 | M103: Prevalidador de Informantes Tributarios | P103: Formatos según informante | Q103: 1 | R103: 126.6 | S103: =(P103=Parametros[Segmento])*(Q103>0)*(R103>0) -> 0
C104: Informantes tributarios | D104: Las personas naturales y sus asimiladas, las personas jurídicas y sus asimiladas y, demás entidades públicas y privadas enunciadas en los literales d), e), f) y g) del artículo 1 de la Resolución 000124 de 2021 | E104: Ingresos no Constitutivos de renta ni ganancia ocasional | F104: 2275 | G104: 2 | H104: No | I104: Se debe reportar la información de los terceros que dieron lugar a la solicitud de ingresos no constitutivos de renta o ganancia ocasional en la declaración de renta o, en la declaración anual consolidada del Régimen Simple de Tributación - SIMPLE del año gravable. | J104: Anual | K104: Numeral 26.1 del artículo 26 | L104: Literal k) del 631 | M104: Prevalidador de Informantes Tributarios | P104: Formatos según informante | Q104: 1 | R104: 112.2 | S104: =(P104=Parametros[Segmento])*(Q104>0)*(R104>0) -> 0
C105: Contratos de cooperación empresarial | D105: Contratos de Colaboración Empresarial | E105: Pagos o abonos en cuenta y retenciones practicadas en contratos de colaboración empresarial | F105: 5247 | G105: 1 | H105: No | I105: Se debe reportar el valor total de las operaciones realizadas durante el año gravable inherentes a las actividades ejecutadas en desarrollo de cada uno de los contratos de colaboración, tales como, consorcios o uniones temporales, contratos de mandato o administración delegada, contratos de exploración y explotación de hidrocarburos, gases y minerales, joint venture, cuentas en participación y convenios de cooperación con entidades públicas. | J105: Anual | K105: Artículo 27 | L105: Literales b), e), f), h) e i) del 631 | M105: Prevalidador de CCE - Contratos, Consorcios y Exploración | P105: Formatos según informante | Q105: 1 | R105: 124.1 | S105: =(P105=Parametros[Segmento])*(Q105>0)*(R105>0) -> 0
C106: Contratos de cooperación empresarial | E106: Ingresos recibidos en contratos de colaboración empresarial | F106: 5248 | G106: 1 | H106: No | I106: Se deben reportar los ingresos recibidos (facturados) y las devoluciones, rebajas y descuentos, por cuenta de los miembros del contrato de colaboración. | J106: Anual | K106: Artículos 27 y 19 | L106: Literales b), e), f), h) e i) del 631 | M106: Prevalidador de CCE - Contratos, Consorcios y Exploración | P106: Formatos según informante | Q106: 1 | R106: 109.2 | S106: =(P106=Parametros[Segmento])*(Q106>0)*(R106>0) -> 0
C107: Contratos de cooperación empresarial | E107: IVA descontable en contratos de colaboración empresarial | F107: 5249 | G107: 1 | H107: No | I107: Se debe informar el IVA de los costos y gastos cubiertos por cuenta de los miembros del contrato de colaboración detallando cuál miembro del consorcio o unión temporal o mandante, etc., lo tomó como IVA descontable. Se reporta la totalidad de los IVA descontables. También se debe reportar el valor de IVA resultante por devoluciones en ventas anuladas, rescindidas o resueltas. | J107: Anual | K107: Artículo 27 y numeral 20.1 del artículo 20 | L107: Literales b), e), f), h) e i) del 631 | M107: Prevalidador de CCE - Contratos, Consorcios y Exploración | P107: Formatos según informante | Q107: 1 | R107: 117.5 | S107: =(P107=Parametros[Segmento])*(Q107>0)*(R107>0) -> 0
C108: Contratos de cooperación empresarial | E108: IVA generado en contratos de colaboración empresarial | F108: 5250 | G108: 1 | H108: No | I108: Se debe reportar la información del IVA generado, o del Impuesto Nacional al Consumo generado, cobrado en los ingresos facturados por cuenta de los miembros del contrato de colaboración. Se debe indicar cuál miembro lo debió declarar como IVA generado o como INC generado. Se reporta al tercero en forma individualizada sin importar el monto del ingreso sobre el cual se generó el IVA o el INC. | J108: Anual | K108: Artículo 27 y numeral 20.2 del artículo 20 | L108: Literales b), e), f), h) e i) del 631 | M108: Prevalidador de CCE - Contratos, Consorcios y Exploración | P108: Formatos según informante | Q108: 1 | R108: 124.1 | S108: =(P108=Parametros[Segmento])*(Q108>0)*(R108>0) -> 0
C109: Contratos de cooperación empresarial | E109: Saldos Cuentas por cobrar a 31 de diciembre en contratos de colaboración empresarial | F109: 5251 | G109: 1 | H109: No | I109: Se debe reportar la información de cuentas por cobrar a diciembre 31 de 2022 a favor del consorcio o a favor del mandante, etc., detallando cuál miembro del contrato de colaboración es el verdadero dueño de esa cuenta por cobrar. Sin importar el monto total de las cuentas por cobrar a diciembre 31, se deberán reportar los terceros con saldos totales superiores a $500.000. | J109: Anual | K109: Artículos 27 y 22 | L109: Literales b), e), f), h) e i) del 631 | M109: Prevalidador de CCE - Contratos, Consorcios y Exploración | P109: Formatos según informante | Q109: 1 | R109: 111 | S109: =(P109=Parametros[Segmento])*(Q109>0)*(R109>0) -> 0
C110: Contratos de cooperación empresarial | E110: Saldos de cuentas por pagar al 31 de diciembre en contratos de colaboración empresarial | F110: 5252 | G110: 1 | H110: No | I110: Se debe reportar la información de cuentas por pagar a diciembre 31 de 2022 a cargo del consorcio o del mandante, etc., detallando cuál miembro es el verdadero responsable de esa deuda. Sin importar el monto total de sus pasivos fiscales a diciembre 31, se deberán reportar los terceros con saldos totales superiores a $500.000. | J110: Anual | K110: Artículos 27 y 21 | L110: Literales b), e), f), h) e i) del 631 | M110: Prevalidador de CCE - Contratos, Consorcios y Exploración | P110: Formatos según informante | Q110: 1 | R110: 113.6 | S110: =(P110=Parametros[Segmento])*(Q110>0)*(R110>0) -> 0
C111: Entidades financieras | D111: Sociedades fiduciarias administradas por patrimonios autónomos | E111: Información de los fideicomisos que se administran | F111: 1013 | G111: 9 | H111: No | I111: Se debe informar debe especificar la identificación, apellidos y nombres o razón social, dirección física y electrónica, país de residencia o domicilio del fideicomitente o fiduciante y el número del fideicomiso mediante el cual se informa a la Superintendencia Financiera de Colombia, los tipos y subtipos del fideicomiso, de acuerdo a la clasificación de negocios fiduciarios, el valor patrimonial de los derechos fiduciarios, el valor de los aportes efectuados en el año al fideicomiso y el valor total de las utilidades causadas. Cuando los fideicomitentes, fiduciantes o beneficiarios diferentes a los fideicomitentes, sean entidades o sociedades del exterior, al reportar el número de identificación se debe diligenciar con el número, código o clave de identificación, tal como figura en el registro fiscal tributario del país de residencia o domicilio y tipo de documento 42. Cuando en dicho país no se utilice número, código o clave fiscal, se debe informar con identificación 444444001 en forma ascendente, variando consecutivamente en una unidad hasta el 444449999 y con tipo de documento 43. Los campos de dirección, departamento, y municipio no se deben diligenciar. | J111: Anual | K111: Numeral 15.1 del artículo 15 | L111: Literales b), e) y f) del 631 | M111: Prevalidador de Entidades Financieras | P111: Formatos según informante | Q111: 1 | R111: 330.5 | S111: =(P111=Parametros[Segmento])*(Q111>0)*(R111>0) -> 0
C112: Entidades financieras | E112: Pagos o abonos en cuenta y retenciones practicadas con recursos del fideicomiso | F112: 1014 | G112: 2 | H112: No | I112: Se deben reportar los pagos o abonos en cuenta realizados con recursos del fideicomiso y las retenciones de renta, IVA o timbre practicadas o asumidas durante el año. A los terceros se les reporta en forma individualizada si superan los $100.000 por todo concepto y usando los mismos conceptos con los que se elabora el formato 1001. | J112: Anual | K112: Numeral 15.3 del artículo 15 | L112: Literales b), e) y f) del 631 | M112: Prevalidador de Entidades financieras | P112: Formatos según informante | Q112: 1 | R112: 106.1 | S112: =(P112=Parametros[Segmento])*(Q112>0)*(R112>0) -> 0
C113: Entidades financieras | E113: Ingresos recibidos con cargo al fideicomiso o patrimonio autónomo | F113: 1058 | G113: 9 | H113: No | I113: Se debe reportar el valor de los ingresos recibidos (facturados) a favor del fideicomiso utilizando el concepto 4060. | J113: Anual | K113: Numeral 15.2 del artículo 15 | L113: Literales b), e) y f) del 631 | M113: Prevalidador de Entidades Financieras | P113: Formatos según informante | Q113: 1 | R113: 70.1 | S113: =(P113=Parametros[Segmento])*(Q113>0)*(R113>0) -> 0
C114: Informantes tributarios | D114: Los Secretarios Generales de los órganos que financien gastos con recursos del Tesoro Nacional, o quienes hagan sus veces | E114: Pagos o abonos en cuenta por secretarios generales que administran recursos del tesoro | F114: 1056 | G114: 10 | H114: No | I114: Se deben reportar los pagos o abonos en cuenta efectuados a terceros (en Colombia o en el exterior) y los valores de las retenciones a título de renta, IVA o timbre practicadas a tales terceros (incluyendo las direcciones del tercero). Se reportan en forma individualizada a los terceros que superan los $100.000 por todo concepto y usando los mismos conceptos del formato 1001. A los que no superen dicho monto se les puede agrupar en un solo registro, por cada diferente concepto, utilizando el seudo-NIT 222222222. | J114: Anual | K114: Artículo 23 | L114: Literales b) y 3) del 631 | M114: Prevalidador de Informantes Tributarios | P114: Formatos según informante | Q114: 1 | R114: 142.8 | S114: =(P114=Parametros[Segmento])*(Q114>0)*(R114>0) -> 0
D115: Entidades públicas o privadas que celebren convenios de cooperación y asistencia técnica para el apoyo y ejecución de sus programas o proyectos con organismos internacionales | E115: Información de Convenios de Cooperación con Organismos Internacionales | F115: 1159 | G115: 10 | H115: Sí | I115: Se debe reportar la relación anual de pagos de todos los contratos vigentes en el año gravable con cargo a los convenios de cooperación y asistencia técnica para el apoyo y ejecución de sus programas o proyectos con organismos internacionales (incluyendo retenciones e IVA). | J115: Anual | K115: Artículos 2 y 44 al 51 | L115: Literales b) y e) del 631 | M115: Prevalidador de Convenios de cooperación | P115: Formatos según informante | Q115: 1 | R115: 93 | S115: =(P115=Parametros[Segmento])*(Q115>0)*(R115>0) -> 0
C116: Otros informantes | D116: Todos los obligados a expedir estados financieros consolidados, y sin importar si existe o no un grupo económico o un grupo empresarial | E116: Información de estados financieros consolidados | F116: 1034 | G116: 6 | H116: No | I116: Se debe reportar la información de los estados financieros consolidados a diciembre 31 de 2022 conforme las normas vigentes en Colombia. | J116: Anual | K116: Artículo 28 | L116: 631-1 | M116: Prevalidador de Otros | P116: Formatos según informante | Q116: 1 | R116: 54.6 | S116: =(P116=Parametros[Segmento])*(Q116>0)*(R116>0) -> 0
C117: Otros informantes | E117: Información de vinculados económicos | F117: 1035 | G117: 8 | H117: Sí | I117: Se debe reportar la información de las compañías subordinadas nacionales a diciembre 31 de 2022. En la nueva versión se pide reportar el "Tipo de Aportante", "Tipo de documento del vinculado" y si "¿Es un vinculado incluido en el estado financiero consolidado?". | J117: Anual | K117: Numeral 29.1 del artículo 29 | L117: 631-3 | M117: Prevalidador de Otros | P117: Formatos según informante | Q117: 1 | R117: 89.4 | S117: =(P117=Parametros[Segmento])*(Q117>0)*(R117>0) -> 0
C118: Otros informantes | E118: Información de subordinadas, vinculadas del exterior o controladas del exterior sin residencia fiscal en Colombia - ECE | F118: 1036 | G118: 9 | H118: Sí | I118: Se debe reportar la información de las compañías subordinadas del exterior a diciembre 31 de 2022. En la nueva versión se pide reportar el "Tipo de persona". | J118: Anual | K118: Numeral 29.2 del artículo 29 | L118: 631-3 | M118: Prevalidador de Otros | P118: Formatos según informante | Q118: 1 | R118: 103.2 | S118: =(P118=Parametros[Segmento])*(Q118>0)*(R118>0) -> 0
C119: Informantes tributarios | D119: Reportantes que deben presentar cualquiera de los demás formatos mencionados dentro de la Resolución 000124 de 2021 y que durante el 2022 hayan realizado pagos o abonos en cuenta por rentas de trabajo | E119: Información de rentas de trabajo y pensiones | F119: 2276 | G119: 4 | H119: Sí | I119: Se debe reportar la información de las personas naturales a las cuales se les haya pagado o abonado en cuenta cualquier valor por concepto de rentas de trabajo (salarios, honorarios, servicios, emolumentos, compensaciones, etc.) y que hayan quedado certificados en los formularios 220 del año gravable 2022. En el caso de los asalariados, solo se reportan valores efectivamente pagados. Para aquellos que no tengan vínculo laboral y a los cuales se haya decidido entregarles también un formulario 220, se reportaría el valor pagado o abonado en cuenta. | J119: Anual | K119: Artículo 35 | L119: 631-3 | M119: Prevalidador de Informantes Tributarios | P119: Formatos según informante | Q119: 1 | R119: 160.8 | S119: =(P119=Parametros[Segmento])*(Q119>0)*(R119>0) -> 0
C120: Gobernaciones y Alcaldías | D120: Alcaldías, Distritos y Gobernaciones | E120: Información de registros catastrales | F120: 1406 | G120: 10 | H120: Sí | I120: Se debe reportar la información detallada de todos y cada uno de los predios sobre los cuales se recaudó el impuesto predial de la vigencia 2022. A través de la Resolución 000124 de 2021, se introdujo un parágrafo 5 que indica que el formato 1406 debe ser utilizado por los demás distritos y municipios diferentes a Bogotá, Medellín y Cali, para reportar la información del avalúo catastral. | J120: Anual | K120: Artículos 1 y 36.2 | L120: 631-3 | M120: Prevalidador de Gobernaciones y Alcaldías | P120: Formatos según informante | Q120: 1 | R120: 109.2 | S120: =(P120=Parametros[Segmento])*(Q120>0)*(R120>0) -> 0
C121: Gobernaciones y Alcaldías | E121: Información de registros catastrales | F121: 1476 | G121: 12 | H121: Sí | I121: Se debe reportar la información detallada de todos y cada uno de los predios sobre los cuales se recaudó el impuesto predial de la vigencia 2022. A través de la Resolución 000124 de 2021, se introdujo un parágrafo 5 que indica que "la casilla de “avalúo catastral” del formato 1476 solo debe ser diligenciada por el Distrito de Bogotá y los municipios de Cali y Medellín, los demás municipios o distritos deberán diligenciar esta casilla en cero (0). Para los demás municipios o distritos el avaluó catastral será reportado por la autoridad catastral correspondiente en el formato 1406. | J121: Anual | K121: Artículos 1 y 36.1 | L121: 631-3 | M121: Prevalidador de Gobernaciones y Alcaldías | P121: Formatos según informante | Q121: 1 | R121: 159 | S121: =(P121=Parametros[Segmento])*(Q121>0)*(R121>0) -> 0
C122: Gobernaciones y Alcaldías | E122: Información de vehículos | F122: 1480 | G122: 10 | H122: No | I122: Se debe reportar la información detallada de todos los vehículos sobre los cuales se recaudó el impuesto de vehículos de la vigencia 2022. | J122: Anual | K122: Artículos 1 y 36.3 | L122: 631-3 | M122: Prevalidador de Gobernaciones y Alcaldías | P122: Formatos según informante | Q122: 1 | R122: 95.4 | S122: =(P122=Parametros[Segmento])*(Q122>0)*(R122>0) -> 0
C123: Gobernaciones y Alcaldías | E123: Impuesto de Industria y Comercio, Avisos y Tableros - ICA | F123: 1481 | G123: 10 | H123: No | I123: Se debe reportar en forma consolidada las declaraciones iniciales, o las correcciones que presenten los contribuyentes respecto del año gravable a informar. En caso de existir correcciones a las declaraciones se debe tomar únicamente la última declaración de corrección presentada y cuyo estado sea vigente o válido. | J123: Anual | K123: Artículos 1 y 36.4 | L123: 631-3 | M123: Prevalidador de Gobernaciones y Alcaldías | P123: Formatos según informante | Q123: 1 | R123: 106.2 | S123: =(P123=Parametros[Segmento])*(Q123>0)*(R123>0) -> 0
C124: Gobernaciones y Alcaldías | E124: Información de resoluciones administrativas relacionadas con obligaciones tributarias del orden municipal o distrital | F124: 2631 | G124: 1 | H124: No | I124: Se deben reportar los actos administrativos por incumplimiento de obligaciones tributarias expedidos durante 2022 por las autoridades municipales o distritales, ya sean liquidaciones oficiales relacionadas con el impuesto de industria y comercio, avisos y tableros y la sobretasa bomberil, o resoluciones que imponen sanciones por el incumplimiento de obligaciones tributarias del orden territorial, así como aprobaciones de devoluciones y/o compensaciones por concepto del impuesto de industria y comercio consolidado. Solo se solicitan los actos administrativos relacionados con contribuyentes que en el año 2022 hayan obtenido ingresos brutos inferiores a 80.000 UVT. | J124: Anual | K124: Artículos 36 y 36.5 | L124: 631-3 | M124: Prevalidador de Gobernaciones y Alcaldías | P124: Formatos según informante | Q124: 1 | R124: 178.2 | S124: =(P124=Parametros[Segmento])*(Q124>0)*(R124>0) -> 0
C125: Otros informantes | D125: Todos los reportantes señalados en el artículo 1 de la Resolución 000124 de 2021, que durante el 2022 hayan dado empleo a mujeres víctimas de la violencia y hayan utilizado el beneficio de la deducción especial en el impuesto de renta. | E125: Deducciones empleadas victimas violencia | F125: 2280 | G125: 1 | H125: No | I125: Se debe reportar la identificación, cargo, salario y otros datos de todas las mujeres sobre las cuales se haya usado el beneficio tributario del artículo 23 de la Ley 1257 de 2008. | J125: Anual | K125: Artículo 40 | L125: 631-3 | M125: Prevalidador de Otros | P125: Formatos según informante | Q125: 1 | R125: 112.2 | S125: =(P125=Parametros[Segmento])*(Q125>0)*(R125>0) -> 0
C126: Otros informantes | D126: Entidades públicas (de nivel nacional o territorial) que hayan tenido que elaborar alguno o varios de los reportes mencionados en la Resolución 000124 de 2021. | E126: Código Único Institucional (CUIN) Entidades Públicas | F126: 2279 | G126: 2 | H126: No | I126: Todas las entidades públicas obligadas a reportar información de acuerdo con el artículo 1 de la Resolución 000124 de 2021, deberán informar el correspondiente Código Único Institucional (CUIN), asignado por la Contaduría General de la Nación. | J126: Anual | K126: Artículo 41 | L126: 631-3 | M126: Prevalidador de Otros | P126: Formatos según informante | Q126: 1 | R126: 91.2 | S126: =(P126=Parametros[Segmento])*(Q126>0)*(R126>0) -> 0
C127: Otros informantes | D127: Responsables del impuesto nacional al carbono | E127: Información de no causación del impuesto al carbono por certificación de carbono neutro | F127: 2574 | G127: 2 | H127: No | I127: Los responsables del Impuesto Nacional al Carbono deberán presentar la información en relación con la documentación que acompaña la solicitud de no causación del impuesto por parte de los sujetos pasivos que certifiquen ser carbono neutro. | J127: Anual | K127: Artículo 43 | L127: 631-3 | M127: Prevalidador de Otros | P127: Formatos según informante | Q127: 1 | R127: 90.6 | S127: =(P127=Parametros[Segmento])*(Q127>0)*(R127>0) -> 0
C128: Otros informantes | D128: Todas las entidades señaladas en los artículos 22 y 23 del ET que durante el 2022 recibieron donaciones y hayan sido certificadas. | E128: Donaciones recibidas y certificadas por entidades no contribuyentes | F128: 2575 | G128: 1 | H128: No | I128: Las entidades señaladas en los artículos 22 y 23 del Estatuto Tributario deberán informar las donaciones recibidas durante el 2022, que fueron debidamente certificadas a los donantes. Si una misma persona natural o jurídica realizó donaciones en diferentes formas, debe relacionar al donante tantas veces como formas de donación haya efectuado. | J128: Anual | K128: Artículo 42 | L128: 631-3 | M128: Prevalidador de Otros | P128: Formatos según informante | Q128: 1 | R128: 108.6 | S128: =(P128=Parametros[Segmento])*(Q128>0)*(R128>0) -> 0
C129: Otros informantes | D129: Personas o entidades que actuaron durante el 2022 como representantes de concesiones o asociaciones público-privadas –APP–. | E129: Información de Concesiones y Asociaciones Público-Privadas - APP | F129: 2625 | G129: 1 | H129: No | I129: Las personas o entidades que actúen como representantes de Concesiones o Asociaciones Público-Privadas – APP, debe reportar la información financiera relacionada con cada proyecto ejecutado durante el año 2022 bajo la figura de las APP. | J129: Anual | K129: Artículo 39 | L129: 631-3 | M129: Prevalidador de Otros | P129: Formatos según informante | Q129: 1 | R129: 91.2 | S129: =(P129=Parametros[Segmento])*(Q129>0)*(R129>0) -> 0
C130: Otros informantes | D130: Entidades que otorgan, cancelan o suspenden personerías jurídicas | E130: Información de las entidades que otorgan, reconocen, registran, cancelan o suspenden personerías jurídicas | F130: 2683 | G130: 1 | H130: No | I130: Se debe reportar la información de las entidades a las que se les haya otorgado, cancelado o suspendido la personería jurídica, así como la de las personas que actúan como representantes legales y de las que integran los órganos directivos. La información a reportar por el año gravable 2022 debe corresponder a la totalidad de las entidades a quienes se les otorga, reconoce, registra, cancela o suspende la personería jurídica en el respectivo año gravable. | J130: Anual | K130: Artículo 37 | L130: 631-3 | M130: Prevalidador de Otros | P130: Formatos según informante | Q130: 1 | R130: 143.4 | S130: =(P130=Parametros[Segmento])*(Q130>0)*(R130>0) -> 0
C131: Otros informantes | D131: Propiedades horizontales comerciales, industriales y mixtas que hayan obtenido ingresos brutos superiores a cien millones de pesos ($100.000.000) durante el año gravable 2022, y/o que hubiesen esta obligados a practicar retenciones y autorretenciones en la fuente a título del impuesto de renta, impuesto sobre las ventas (IVA) y Timbre, durante el año gravable 2022. | E131: Información de los bienes y áreas comunes destinados a la explotación comercial, industrial o mixta de la propiedad horizontal | F131: 2743 | G131: 1 | H131: Nuevo | I131: Las propiedades horizontales comerciales, industriales y mixtas obligadas a presentar información de acuerdo con los literales e) y f) del artículo 1 de la Resolución 000124 de 2021, deberán reportar la información de los bienes o áreas comunes destinados a la explotación comercial, industrial o mixta. | J131: Anual | K131: Artículo 38 | L131: 631-3 | M131: Prevalidador de Otros | P131: Formatos según informante | Q131: 1 | R131: 164.4 | S131: =(P131=Parametros[Segmento])*(Q131>0)*(R131>0) -> 0
P132: Formatos según informante | Q132: 1 | R132: 30 | S132: =(P132=Parametros[Segmento])*(Q132>0)*(R132>0) -> 0
A133: 3.78 | B133: 2 | C133: 124 | D133: 50 | E133: 10 | P133: Datos Contribuyente | Q133: 0 | R133: 20 | S133: =(P133=Parametros[Segmento])*(Q133>0)*(R133>0) -> 0
P134: Datos Contribuyente | Q134: 1 | R134: 30 | S134: =(P134=Parametros[Segmento])*(Q134>0)*(R134>0) -> 0
B135: Datos básicos del contribuyente | P135: Datos Contribuyente | Q135: 1 | R135: 30 | S135: =(P135=Parametros[Segmento])*(Q135>0)*(R135>0) -> 0
B136: Concepto | D136: Datos | P136: Datos Contribuyente | Q136: 1 | R136: 30 | S136: =(P136=Parametros[Segmento])*(Q136>0)*(R136>0) -> 0
B137: Razón social del contribuyente | P137: Datos Contribuyente | Q137: 1 | R137: 30 | S137: =(P137=Parametros[Segmento])*(Q137>0)*(R137>0) -> 0
B138: NIT del contribuyente | P138: Datos Contribuyente | Q138: 1 | R138: 30 | S138: =(P138=Parametros[Segmento])*(Q138>0)*(R138>0) -> 0
B139: Dígito de verificación | D139: =IF(MOD((VALUE(MID(TEXT(D138,"000000000000000"),15,1))*3+VALUE(MID(TEXT(D138,"000000000000000"),14,1))*7+VALUE(MID(TEXT(D138,"000000000000000"),13,1))*13+VALUE(MID(TEXT(D138,"000000000000000"),12,1))*17+VALUE(MID(TEXT(D138,"000000000000000"),11,1))*19+VALUE(MID(TEXT(D138,"000000000000000"),10,1))*23+VALUE(MID(TEXT(D138,"000000000000000"),9,1))*29+VALUE(MID(TEXT(D138,"000000000000000"),8,1))*37+VALUE(MID(TEXT(D138,"000000000000000"),7,1))*41+VALUE(MID(TEXT(D138,"000000000000000"),6,1))*43+VALUE(MID(TEXT(D138,"000000000000000"),5,1))*47+VALUE(MID(TEXT(D138,"000000000000000"),4,1))*53+VALUE(MID(TEXT(D138,"000000000000000"),3,1))*59+VALUE(MID(TEXT(D138,"000000000000000"),2,1))*67+VALUE(MID(TEXT(D138,"000000000000000"),1,1))*71),11)=0,0,IF(MOD((VALUE(MID(TEXT(D138,"000000000000000"),15,1))*3+VALUE(MID(TEXT(D138,"000000000000000"),14,1))*7+VALUE(MID(TEXT(D138,"000000000000000"),13,1))*13+VALUE(MID(TEXT(D138,"000000000000000"),12,1))*17+VALUE(MID(TEXT(D138,"000000000000000"),11,1))*19+VALUE(MID(TEXT(D138,"000000000000000"),10,1))*23+VALUE(MID(TEXT(D138,"000000000000000"),9,1))*29+VALUE(MID(TEXT(D138,"000000000000000"),8,1))*37+VALUE(MID(TEXT(D138,"000000000000000"),7,1))*41+VALUE(MID(TEXT(D138,"000000000000000"),6,1))*43+VALUE(MID(TEXT(D138,"000000000000000"),5,1))*47+VALUE(MID(TEXT(D138,"000000000000000"),4,1))*53+VALUE(MID(TEXT(D138,"000000000000000"),3,1))*59+VALUE(MID(TEXT(D138,"000000000000000"),2,1))*67+VALUE(MID(TEXT(D138,"000000000000000"),1,1))*71),11)=1,1,11-(MOD((VALUE(MID(TEXT(D138,"000000000000000"),15,1))*3+VALUE(MID(TEXT(D138,"000000000000000"),14,1))*7+VALUE(MID(TEXT(D138,"000000000000000"),13,1))*13+VALUE(MID(TEXT(D138,"000000000000000"),12,1))*17+VALUE(MID(TEXT(D138,"000000000000000"),11,1))*19+VALUE(MID(TEXT(D138,"000000000000000"),10,1))*23+VALUE(MID(TEXT(D138,"000000000000000"),9,1))*29+VALUE(MID(TEXT(D138,"000000000000000"),8,1))*37+VALUE(MID(TEXT(D138,"000000000000000"),7,1))*41+VALUE(MID(TEXT(D138,"000000000000000"),6,1))*43+VALUE(MID(TEXT(D138,"000000000000000"),5,1))*47+VALUE(MID(TEXT(D138,"000000000000000"),4,1))*53+VALUE(MID(TEXT(D138,"000000000000000"),3,1))*59+VALUE(MID(TEXT(D138,"000000000000000"),2,1))*67+VALUE(MID(TEXT(D138,"000000000000000"),1,1))*71),11)))) -> 0 | P139: Datos Contribuyente | Q139: 1 | R139: 30 | S139: =(P139=Parametros[Segmento])*(Q139>0)*(R139>0) -> 0
B140: Último dígito del NIT | D140: =+RIGHT(D138,1) ->  | P140: Datos Contribuyente | Q140: 0 | R140: 30 | S140: =(P140=Parametros[Segmento])*(Q140>0)*(R140>0) -> 0
B141: Últimos dos dígitos del NIT | D141: =+RIGHT(D138,2) ->  | P141: Datos Contribuyente | Q141: 0 | R141: 30 | S141: =(P141=Parametros[Segmento])*(Q141>0)*(R141>0) -> 0
B142: Actividad principal del contribuyente | P142: Datos Contribuyente | Q142: 1 | R142: =30+(INT(LEN($D$142)/30))*12 -> 30 | S142: =(P142=Parametros[Segmento])*(Q142>0)*(R142>0) -> 0
B143: Dirección seccional DIAN | P143: Datos Contribuyente | Q143: 1 | R143: =30+(INT(LEN($D$143)/30))*12 -> 30 | S143: =(P143=Parametros[Segmento])*(Q143>0)*(R143>0) -> 0
B144: El contribuyente es Gran Contribuyente | D144: No | P144: Datos Contribuyente | Q144: 1 | R144: 30 | S144: =(P144=Parametros[Segmento])*(Q144>0)*(R144>0) -> 0
P145: Datos Contribuyente | Q145: 1 | R145: 30 | S145: =(P145=Parametros[Segmento])*(Q145>0)*(R145>0) -> 0
B146: Plazo para presentar la declaración y pagar el impuesto de renta - Personas Jurídicas y Naturales | P146: Datos Contribuyente | Q146: =IF(Obligatorio_Gran_Contribuyente="No",1,0) -> 1 | R146: 30 | S146: =(P146=Parametros[Segmento])*(Q146>0)*(R146>0) -> 0
B147: Concepto | D147: Datos | P147: Datos Contribuyente | Q147: =IF(Obligatorio_Gran_Contribuyente="No",1,0) -> 1 | R147: 30 | S147: =(P147=Parametros[Segmento])*(Q147>0)*(R147>0) -> 0
B148: Fecha de vencimiento para presentar la información exógena del año gravable 2022 | D148: =IF(D144="No",IF(D138>0,VLOOKUP(D141,' '!B167:C266,2,0),""),"") ->  | P148: Datos Contribuyente | Q148: =IF(Obligatorio_Gran_Contribuyente="No",1,0) -> 1 | R148: 30 | S148: =(P148=Parametros[Segmento])*(Q148>0)*(R148>0) -> 0
B149: Fecha en la cual el contribuyente presentará la información exógena del año gravable 2022 | P149: Datos Contribuyente | Q149: =IF(Obligatorio_Gran_Contribuyente="No",1,0) -> 1 | R149: 30 | S149: =(P149=Parametros[Segmento])*(Q149>0)*(R149>0) -> 0
D150: =IFERROR(IF(ROUNDUP((DAYS360(D148,IF(DAY(D149)=31,D149+1,D149))/30),0)>0,ROUNDUP((DAYS360(D148,IF(DAY(D149)=31,D149+1,D149))/30),0),0),0) -> 0 | P150: Datos Contribuyente | Q150: 0 | R150: 30 | S150: =(P150=Parametros[Segmento])*(Q150>0)*(R150>0) -> 0
B151: La información exógena del año gravable 2022 se presentará de forma extemporánea | D151: =+IF(D150="","",IF(D150<=0,"No","Sí")) -> No | P151: Datos Contribuyente | Q151: =IF(Obligatorio_Gran_Contribuyente="No",1,0) -> 1 | R151: 30 | S151: =(P151=Parametros[Segmento])*(Q151>0)*(R151>0) -> 0
B152: ¿El contribuyente recibió un emplazamiento por no declarar? | P152: Datos Contribuyente | Q152: =IF($D$151="Sí",IF(Obligatorio_Gran_Contribuyente="No",1,0),0) -> 0 | R152: 30 | S152: =(P152=Parametros[Segmento])*(Q152>0)*(R152>0) -> 0
P153: Datos Contribuyente | Q153: 1 | R153: 30 | S153: =(P153=Parametros[Segmento])*(Q153>0)*(R153>0) -> 0
B154: Plazo para presentar la información exógena del año gravable 2022 - Grandes Contribuyentes | P154: Datos Contribuyente | Q154: =IF(Obligatorio_Gran_Contribuyente="Sí",1,0) -> 0 | R154: 30 | S154: =(P154=Parametros[Segmento])*(Q154>0)*(R154>0) -> 0
B155: Concepto | D155: Datos | P155: Datos Contribuyente | Q155: =IF(Obligatorio_Gran_Contribuyente="Sí",1,0) -> 0 | R155: 30 | S155: =(P155=Parametros[Segmento])*(Q155>0)*(R155>0) -> 0
B156: Fecha de vencimiento para presentar la información exógena del año gravable 2022 | D156: =+IF(D144="Sí",IF(D138>0,VLOOKUP(D140,' '!D167:E176,2,0),""),"") ->  | P156: Datos Contribuyente | Q156: =IF(Obligatorio_Gran_Contribuyente="Sí",1,0) -> 0 | R156: 30 | S156: =(P156=Parametros[Segmento])*(Q156>0)*(R156>0) -> 0
B157: Fecha en la cual el contribuyente presentará la información exógena del año gravable 2022 | D157: 2023-07-03 | P157: Datos Contribuyente | Q157: =IF(Obligatorio_Gran_Contribuyente="Sí",1,0) -> 0 | R157: 30 | S157: =(P157=Parametros[Segmento])*(Q157>0)*(R157>0) -> 0
B158: Mes o fracción de extemporaneidad | D158: =IFERROR(IF(AND(D156>0,D157>0),IF(ROUNDUP((DAYS360(D156,D157)/30),0)>0,ROUNDUP((DAYS360(D156,D157)/30),0),0),""),"") ->  | P158: Datos Contribuyente | Q158: 0 | R158: 30 | S158: =(P158=Parametros[Segmento])*(Q158>0)*(R158>0) -> 0
B159: La información exógena se presentará de forma extemporánea | D159: =+IF(D158="","",IF(D158<=0,"No","Sí")) ->  | P159: Datos Contribuyente | Q159: =IF(Obligatorio_Gran_Contribuyente="Sí",1,0) -> 0 | R159: 30 | S159: =(P159=Parametros[Segmento])*(Q159>0)*(R159>0) -> 0
B160: ¿El contribuyente recibió un emplazamiento por no declarar? | D160: No | P160: Datos Contribuyente | Q160: =IF(Obligatorio_Gran_Contribuyente="Sí",IF($D$159="Sí",1,0),0) -> 0 | R160: 30 | S160: =(P160=Parametros[Segmento])*(Q160>0)*(R160>0) -> 0
P161: Datos Contribuyente | Q161: =IF(Obligatorio_Gran_Contribuyente="Sí",1,0) -> 0 | R161: 30 | S161: =(P161=Parametros[Segmento])*(Q161>0)*(R161>0) -> 0
A162: 4.44 | B162: 29.78 | C162: 59.78 | D162: 29.78 | E162: 59.78 | F162: 10 | P162: Vencimientos | Q162: 0 | R162: 20 | S162: =(P162=Parametros[Segmento])*(Q162>0)*(R162>0) -> 0
P163: Vencimientos | Q163: 1 | R163: 30 | S163: =(P163=Parametros[Segmento])*(Q163>0)*(R163>0) -> 0
B164: Vencimientos para la presentación de la información exógena del año gravable 2022 | P164: Vencimientos | Q164: 1 | R164: 40 | S164: =(P164=Parametros[Segmento])*(Q164>0)*(R164>0) -> 0
B165: Personas jurídicas y naturales | D165: Grandes Contribuyentes | P165: Vencimientos | Q165: 1 | R165: 30 | S165: =(P165=Parametros[Segmento])*(Q165>0)*(R165>0) -> 0
B166: Último(s) dígito(s) del NIT | C166: Fecha límite | D166: Último dígito del NIT | E166: Fecha límite | P166: Vencimientos | Q166: 1 | R166: 30 | S166: =(P166=Parametros[Segmento])*(Q166>0)*(R166>0) -> 0
B167: 01 | C167: 2023-05-16 | D167: 1 | E167: 2023-05-02 | P167: Vencimientos | Q167: 1 | R167: 30 | S167: =(P167=Parametros[Segmento])*(Q167>0)*(R167>0) -> 0
B168: 02 | C168: 2023-05-16 | D168: 2 | E168: 2023-05-03 | P168: Vencimientos | Q168: 1 | R168: 30 | S168: =(P168=Parametros[Segmento])*(Q168>0)*(R168>0) -> 0
B169: 03 | C169: 2023-05-16 | D169: 3 | E169: 2023-05-04 | P169: Vencimientos | Q169: 1 | R169: 30 | S169: =(P169=Parametros[Segmento])*(Q169>0)*(R169>0) -> 0
B170: 04 | C170: 2023-05-16 | D170: 4 | E170: 2023-05-05 | P170: Vencimientos | Q170: 1 | R170: 30 | S170: =(P170=Parametros[Segmento])*(Q170>0)*(R170>0) -> 0
B171: 05 | C171: 2023-05-16 | D171: 5 | E171: 2023-05-08 | P171: Vencimientos | Q171: 1 | R171: 30 | S171: =(P171=Parametros[Segmento])*(Q171>0)*(R171>0) -> 0
B172: 06 | C172: 2023-05-17 | D172: 6 | E172: 2023-05-09 | P172: Vencimientos | Q172: 1 | R172: 30 | S172: =(P172=Parametros[Segmento])*(Q172>0)*(R172>0) -> 0
B173: 07 | C173: 2023-05-17 | D173: 7 | E173: 2023-05-10 | P173: Vencimientos | Q173: 1 | R173: 30 | S173: =(P173=Parametros[Segmento])*(Q173>0)*(R173>0) -> 0
B174: 08 | C174: 2023-05-17 | D174: 8 | E174: 2023-05-11 | P174: Vencimientos | Q174: 1 | R174: 30 | S174: =(P174=Parametros[Segmento])*(Q174>0)*(R174>0) -> 0
B175: 09 | C175: 2023-05-17 | D175: 9 | E175: 2023-05-12 | P175: Vencimientos | Q175: 1 | R175: 30 | S175: =(P175=Parametros[Segmento])*(Q175>0)*(R175>0) -> 0
B176: 10 | C176: 2023-05-17 | D176: 0 | E176: 2023-05-15 | P176: Vencimientos | Q176: 1 | R176: 30 | S176: =(P176=Parametros[Segmento])*(Q176>0)*(R176>0) -> 0
B177: 11 | C177: 2023-05-18 | P177: Vencimientos | Q177: 1 | R177: 30 | S177: =(P177=Parametros[Segmento])*(Q177>0)*(R177>0) -> 0
B178: 12 | C178: 2023-05-18 | P178: Vencimientos | Q178: 1 | R178: 30 | S178: =(P178=Parametros[Segmento])*(Q178>0)*(R178>0) -> 0
B179: 13 | C179: 2023-05-18 | P179: Vencimientos | Q179: 1 | R179: 30 | S179: =(P179=Parametros[Segmento])*(Q179>0)*(R179>0) -> 0
B180: 14 | C180: 2023-05-18 | P180: Vencimientos | Q180: 1 | R180: 30 | S180: =(P180=Parametros[Segmento])*(Q180>0)*(R180>0) -> 0
B181: 15 | C181: 2023-05-18 | P181: Vencimientos | Q181: 1 | R181: 30 | S181: =(P181=Parametros[Segmento])*(Q181>0)*(R181>0) -> 0
B182: 16 | C182: 2023-05-19 | P182: Vencimientos | Q182: 1 | R182: 30 | S182: =(P182=Parametros[Segmento])*(Q182>0)*(R182>0) -> 0
B183: 17 | C183: 2023-05-19 | P183: Vencimientos | Q183: 1 | R183: 30 | S183: =(P183=Parametros[Segmento])*(Q183>0)*(R183>0) -> 0
B184: 18 | C184: 2023-05-19 | P184: Vencimientos | Q184: 1 | R184: 30 | S184: =(P184=Parametros[Segmento])*(Q184>0)*(R184>0) -> 0
B185: 19 | C185: 2023-05-19 | P185: Vencimientos | Q185: 1 | R185: 30 | S185: =(P185=Parametros[Segmento])*(Q185>0)*(R185>0) -> 0
B186: 20 | C186: 2023-05-19 | P186: Vencimientos | Q186: 1 | R186: 30 | S186: =(P186=Parametros[Segmento])*(Q186>0)*(R186>0) -> 0
B187: 21 | C187: 2023-05-23 | P187: Vencimientos | Q187: 1 | R187: 30 | S187: =(P187=Parametros[Segmento])*(Q187>0)*(R187>0) -> 0
B188: 22 | C188: 2023-05-23 | P188: Vencimientos | Q188: 1 | R188: 30 | S188: =(P188=Parametros[Segmento])*(Q188>0)*(R188>0) -> 0
B189: 23 | C189: 2023-05-23 | P189: Vencimientos | Q189: 1 | R189: 30 | S189: =(P189=Parametros[Segmento])*(Q189>0)*(R189>0) -> 0
B190: 24 | C190: 2023-05-23 | P190: Vencimientos | Q190: 1 | R190: 30 | S190: =(P190=Parametros[Segmento])*(Q190>0)*(R190>0) -> 0
B191: 25 | C191: 2023-05-23 | P191: Vencimientos | Q191: 1 | R191: 30 | S191: =(P191=Parametros[Segmento])*(Q191>0)*(R191>0) -> 0
B192: 26 | C192: 2023-05-24 | P192: Vencimientos | Q192: 1 | R192: 30 | S192: =(P192=Parametros[Segmento])*(Q192>0)*(R192>0) -> 0
B193: 27 | C193: 2023-05-24 | P193: Vencimientos | Q193: 1 | R193: 30 | S193: =(P193=Parametros[Segmento])*(Q193>0)*(R193>0) -> 0
B194: 28 | C194: 2023-05-24 | P194: Vencimientos | Q194: 1 | R194: 30 | S194: =(P194=Parametros[Segmento])*(Q194>0)*(R194>0) -> 0
B195: 29 | C195: 2023-05-24 | P195: Vencimientos | Q195: 1 | R195: 30 | S195: =(P195=Parametros[Segmento])*(Q195>0)*(R195>0) -> 0
B196: 30 | C196: 2023-05-24 | P196: Vencimientos | Q196: 1 | R196: 30 | S196: =(P196=Parametros[Segmento])*(Q196>0)*(R196>0) -> 0
B197: 31 | C197: 2023-05-25 | P197: Vencimientos | Q197: 1 | R197: 30 | S197: =(P197=Parametros[Segmento])*(Q197>0)*(R197>0) -> 0
B198: 32 | C198: 2023-05-25 | P198: Vencimientos | Q198: 1 | R198: 30 | S198: =(P198=Parametros[Segmento])*(Q198>0)*(R198>0) -> 0
B199: 33 | C199: 2023-05-25 | P199: Vencimientos | Q199: 1 | R199: 30 | S199: =(P199=Parametros[Segmento])*(Q199>0)*(R199>0) -> 0
B200: 34 | C200: 2023-05-25 | P200: Vencimientos | Q200: 1 | R200: 30 | S200: =(P200=Parametros[Segmento])*(Q200>0)*(R200>0) -> 0
... 516 more rows

Sheet Pegar_Especial (hidden)

Sheet Alertas (hidden)
A1: ID | B1: Columna | C1: Fila | D1: Observación

Sheet Campos_x_Formato (hidden)
A1: Formato | B1: Ancho_Col | C1: Fichero_Prevalidador | D1: 1 | E1: 2 | F1: Tipo | G1: Longitud | H1: Obligatorio | I1: Comentario para el usuario - DIAN | J1: 8 | K1: 9 | L1: Atributo | M1: 12 | N1: Denominacion_Casilla | O1: Prevalidador | P1: Orden | Q1: Lista
A2: 1004 | B2: 25 | C2: Prevalidador_Tributario_Informantes_AG2022_v3.0.0-23.xlsm | D2: *24 | E2: Concepto | F2: N | G2: 4 | H2: S | I2: Seleccione el codigo concepto al cual pertecene el descuento tributario | L2: cpt | N2: Concepto | O2: Tributario_Informantes_AG2022 | P2: 35 | Q2: Concepto_1004
A3: 1004 | B3: 25 | C3: Prevalidador_Tributario_Informantes_AG2022_v3.0.0-23.xlsm | D3: *25 | E3: Tipo de documento del Tercero | F3: N | G3: 2 | H3: S | I3: Selección el Tipo de Documento del tercero | L3: tdoc | N3: Tipo de documento del Tercero | O3: Tributario_Informantes_AG2022 | P3: 36 | Q3: Tipo_Documento_Sin_ident
A4: 1004 | B4: 25 | C4: Prevalidador_Tributario_Informantes_AG2022_v3.0.0-23.xlsm | D4: *26 | E4: Número de Identificación del Tercero | F4: A | G4: 20 | H4: S | I4: Indique el numero de Identificacion del tercero | K4: E0149_3 | L4: nit | N4: Número de Identificación del Tercero | O4: Tributario_Informantes_AG2022 | P4: 37
A5: 1004 | B5: =INT(20+Campos_x_Formato[[#This Row],[Longitud]]/4) -> 35 | C5: Prevalidador_Tributario_Informantes_AG2022_v3.0.0-23.xlsm | D5: 27 | E5: Primer apellido | F5: A | G5: 60 | H5: N | I5: Indique el Primer Apellido del tercero . Si es una persona jurídica, deje este espacio en blanco | K5: E0072_2(31) | L5: pap | N5: Primer apellido | O5: Tributario_Informantes_AG2022 | P5: 38
A6: 1004 | B6: =INT(20+Campos_x_Formato[[#This Row],[Longitud]]/4) -> 35 | C6: Prevalidador_Tributario_Informantes_AG2022_v3.0.0-23.xlsm | D6: 28 | E6: Segundo apellido | F6: A | G6: 60 | H6: N | I6: Indique el Primer Apellido del tercero. Si no tiene segundo apellido o si es una persona jurídica, deje este espacio en blanco | K6: E0054_2 | L6: sap | N6: Segundo apellido | O6: Tributario_Informantes_AG2022 | P6: 39
A7: 1004 | B7: =INT(20+Campos_x_Formato[[#This Row],[Longitud]]/4) -> 35 | C7: Prevalidador_Tributario_Informantes_AG2022_v3.0.0-23.xlsm | D7: 29 | E7: Primer nombre | F7: A | G7: 60 | H7: N | I7: Indique el Primer Nombre del tercero . Si es una persona jurídica, deje este espacio en blanco | K7: E0072_2(31) | L7: pno | N7: Primer nombre | O7: Tributario_Informantes_AG2022 | P7: 40
A8: 1004 | B8: =INT(20+Campos_x_Formato[[#This Row],[Longitud]]/4) -> 35 | C8: Prevalidador_Tributario_Informantes_AG2022_v3.0.0-23.xlsm | D8: 30 | E8: Otros nombres | F8: A | G8: 60 | H8: N | I8: Indique el Otro Nombre del tercero. Si no tiene otro nombre o si es una persona jurídica, deje este espacio en blanco | K8: E0054_2 | L8: ono | N8: Otros nombres | O8: Tributario_Informantes_AG2022 | P8: 41
A9: 1004 | B9: =INT(20+Campos_x_Formato[[#This Row],[Longitud]]/4) -> 132 | C9: Prevalidador_Tributario_Informantes_AG2022_v3.0.0-23.xlsm | D9: 31 | E9: Razón Social | F9: A | G9: 450 | H9: N | I9: Indique la razón social del Tercero. Si es una persona natural, deje la casilla en blanco. | K9: E0073_1(27|29) | L9: raz | N9: Razón Social | O9: Tributario_Informantes_AG2022 | P9: 42
A10: 1004 | B10: =INT(20+Campos_x_Formato[[#This Row],[Longitud]]/4) -> 82 | C10: Prevalidador_Tributario_Informantes_AG2022_v3.0.0-23.xlsm | D10: 32 | E10: Dirección | F10: A | G10: 250 | H10: N | I10: Indique la dirreccion del tercero que esta informando | K10: E0131_1(35|169|8) | L10: dir | N10: Dirección | O10: Tributario_Informantes_AG2022 | P10: 43
A11: 1004 | B11: 25 | C11: Prevalidador_Tributario_Informantes_AG2022_v3.0.0-23.xlsm | D11: 33 | E11: Código dpto | F11: A | G11: 2 | H11: N | I11: Seleccione el codigo departamento de la direccion informada | K11: E0075_1 | L11: dpto | N11: Código dpto | O11: Tributario_Informantes_AG2022 | P11: 44 | Q11: ="Departamentos_@"&L13&"@" -> Departamentos_@pais@
A12: 1004 | B12: 25 | C12: Prevalidador_Tributario_Informantes_AG2022_v3.0.0-23.xlsm | D12: 34 | E12: Código mcp | F12: A | G12: 3 | H12: N | I12: Seleccione el codigo municipio de la direccion informada | K12: E0076_1 | L12: mun | N12: Código mcp | O12: Tributario_Informantes_AG2022 | P12: 45 | Q12: Municipios_@dpto@
A13: 1004 | B13: 25 | C13: Prevalidador_Tributario_Informantes_AG2022_v3.0.0-23.xlsm | D13: 35 | E13: Código País | F13: A | G13: 4 | H13: S | I13: Seleccióne el codgo del pais del tercero informado | K13: E0087_2 | L13: pais | N13: Código País | O13: Tributario_Informantes_AG2022 | P13: 46 | Q13: Paises
A14: 1004 | B14: =INT(20+Campos_x_Formato[[#This Row],[Longitud]]/4) -> 32 | C14: Prevalidador_Tributario_Informantes_AG2022_v3.0.0-23.xlsm | D14: 36 | E14: Buzón, correo o dirección electrónicos | F14: A | G14: 50 | H14: N | I14: Indique el correo electronico | K14: E0147_3 | L14: email | N14: Buzón, correo o dirección electrónicos | O14: Tributario_Informantes_AG2022 | P14: 47
A15: 1004 | B15: 25 | C15: Prevalidador_Tributario_Informantes_AG2022_v3.0.0-23.xlsm | D15: 37 | E15: Valor del descuento tributario total del año | F15: N | G15: 18 | H15: S | I15: Informe el valor del Pago o abono en CTA | K15: E0120_1 | L15: vdesc | N15: Valor del descuento tributario total del año | O15: Tributario_Informantes_AG2022 | P15: 48
A16: 1004 | B16: 25 | C16: Prevalidador_Tributario_Informantes_AG2022_v3.0.0-23.xlsm | D16: 38 | E16: Valor del descuento tributario efectivamente solicitado en el año gravable | F16: N | G16: 18 | H16: S | I16: Informe el valor del descuento tributario | K16: E0146_2 | L16: vdescsol | N16: Valor del descuento tributario efectivamente solicitado en el año gravable | O16: Tributario_Informantes_AG2022 | P16: 49
A17: 1005 | B17: 25 | C17: Prevalidador_Tributario_Informantes_AG2022_v3.0.0-23.xlsm | D17: *24 | E17: Tipo de documento | F17: N | G17: 2 | H17: S | I17: Seleccione el tipo de documento de identificación del tercero y/o proveedor que le facturó el correspondiente impuesto a las ventas. Cuando vaya a informar a personas o entidades del exterior que posean Número, Código o Clave Fiscal, Utilice 42, de lo contrario utilice el tipo de documento 43. | L17: tdoc | N17: Tipo de documento | O17: Tributario_Informantes_AG2022 | P17: 50 | Q17: Tipo_Documento_Sin_ident
A18: 1005 | B18: 25 | C18: Prevalidador_Tributario_Informantes_AG2022_v3.0.0-23.xlsm | D18: *25 | E18: Número identificación | F18: A | G18: 20 | H18: S | I18: Indique el número de identificación que corresponda al beneficiario del pago informado. Si es por cuantías menores indique el Nit 222222222. Cuando sean transacciones con personas o entidades del exterior que no posea Número, Código o Clave Fiscal deberá informarse con Nit 444444001 aumentando en una unidad cada relacionado hasta el 444449999. | K18: E0067_1 | L18: nid | N18: Número identificación | O18: Tributario_Informantes_AG2022 | P18: 51
A19: 1005 | B19: 6 | C19: Prevalidador_Tributario_Informantes_AG2022_v3.0.0-23.xlsm | D19: 26 | E19: DV | F19: N | G19: 1 | H19: N | I19: Si el número de identificación informado es un NIT, relacione el dígito de verificación respectivo. | K19: E0012_2 | L19: dv | N19: DV | O19: Tributario_Informantes_AG2022 | P19: 52 | Q19: Digito_Verificacion
A20: 1005 | B20: =INT(20+Campos_x_Formato[[#This Row],[Longitud]]/4) -> 35 | C20: Prevalidador_Tributario_Informantes_AG2022_v3.0.0-23.xlsm | D20: 27 | E20: Primer apellido del informado | F20: A | G20: 60 | H20: N | I20: Indique el primer apellido del proveedor y/o tercero informado. Si es una persona jurídica, deje este espacio en blanco. | K20: E0141_1(31) | L20: apl1 | N20: Primer apellido del informado | O20: Tributario_Informantes_AG2022 | P20: 53
A21: 1005 | B21: =INT(20+Campos_x_Formato[[#This Row],[Longitud]]/4) -> 35 | C21: Prevalidador_Tributario_Informantes_AG2022_v3.0.0-23.xlsm | D21: 28 | E21: Segundo apellido del informado | F21: A | G21: 60 | H21: N | I21: Indique el segundo apellido del proveedor y/o tercero informado. Si no tiene segundo apellido o es una persona jurídica, deje este espacio en blanco. | K21: E0143_1 | L21: apl2 | N21: Segundo apellido del informado | O21: Tributario_Informantes_AG2022 | P21: 54
A22: 1005 | B22: =INT(20+Campos_x_Formato[[#This Row],[Longitud]]/4) -> 35 | C22: Prevalidador_Tributario_Informantes_AG2022_v3.0.0-23.xlsm | D22: 29 | E22: Primer nombre del informado | F22: A | G22: 60 | H22: N | I22: Indique el primer nombre del proveedor y/o tercero informado. Si es una persona jurídica, deje este espacio en blanco. | K22: E0141_1(31) | L22: nom1 | N22: Primer nombre del informado | O22: Tributario_Informantes_AG2022 | P22: 55
A23: 1005 | B23: =INT(20+Campos_x_Formato[[#This Row],[Longitud]]/4) -> 35 | C23: Prevalidador_Tributario_Informantes_AG2022_v3.0.0-23.xlsm | D23: 30 | E23: Otros nombres del informado | F23: A | G23: 60 | H23: N | I23: Indique el segundo nombre u otros nombres del proveedor y/o tercero informado. Si no tiene más nombres o es una persona jurídica, deje este espacio en blanco. | K23: E0143_1 | L23: nom2 | N23: Otros nombres del informado | O23: Tributario_Informantes_AG2022 | P23: 56
A24: 1005 | B24: =INT(20+Campos_x_Formato[[#This Row],[Longitud]]/4) -> 132 | C24: Prevalidador_Tributario_Informantes_AG2022_v3.0.0-23.xlsm | D24: 31 | E24: Razón social informado | F24: A | G24: 450 | H24: N | I24: Indique la razón social del tercero y/o proveedor informado. Si es una persona natural, deje la casilla en blanco. Utilice la razón social o nombre que corresponda para Nits 444444001 en adelante. | K24: E0142_1(27|29) | L24: raz | N24: Razón social informado | O24: Tributario_Informantes_AG2022 | P24: 57
A25: 1005 | B25: 25 | C25: Prevalidador_Tributario_Informantes_AG2022_v3.0.0-23.xlsm | D25: 32 | E25: Impuesto Descontable | F25: N | G25: 20 | H25: S | I25: Informe el valor del Impuesto a las ventas por pagar Descontable. | K25: E0118_2 | L25: vimp | N25: Impuesto Descontable | O25: Tributario_Informantes_AG2022 | P25: 58
A26: 1005 | B26: 25 | C26: Prevalidador_Tributario_Informantes_AG2022_v3.0.0-23.xlsm | D26: 33 | E26: IVA resultante por devoluciones en ventas anuladas, rescindidas o resueltas | F26: N | G26: 20 | H26: S | I26: Informe el valor del IVA Resultante por Devoluciones en Ventas Anuladas, Rescindidas o Resultas. | K26: E0122_1(Impuesto Descontable) | L26: ivade | N26: IVA resultante por devoluciones en ventas anuladas. rescindidas o resueltas | O26: Tributario_Informantes_AG2022 | P26: 59
A27: 1006 | B27: 25 | C27: Prevalidador_Tributario_Informantes_AG2022_v3.0.0-23.xlsm | D27: *24 | E27: Tipo de Documento | F27: N | G27: 2 | H27: S | I27: Seleccione el tipo de documento de identificación del cliente y/o tercero a quien le facturó el correspondiente impuesto a las ventas. Cuando vaya a informar cuantías menores ó transacciones con personas o entidades del exterior que no posea número. Código o clave fiscal. Utilice el tipo de documento 43 | L27: tdoc | N27: Tipo de Documento | O27: Tributario_Informantes_AG2022 | P27: 60 | Q27: Tipo_Documento_Sin_ident
A28: 1006 | B28: 25 | C28: Prevalidador_Tributario_Informantes_AG2022_v3.0.0-23.xlsm | D28: *25 | E28: Número identificación | F28: A | G28: 20 | H28: S | I28: Indique el número de identificación que corresponda al beneficiario del pago informado. Si es por cuantías menores indique el Nit 222222222. Cuando sean transacciones con personas o entidades del exterior que no posea Número, Código o Clave Fiscal deberá informarse con Nit 444444001 aumentando en una unidad cada relacionado hasta el 444449999. | K28: E0064_1 | L28: nid | N28: Número identificación | O28: Tributario_Informantes_AG2022 | P28: 61
A29: 1006 | B29: 6 | C29: Prevalidador_Tributario_Informantes_AG2022_v3.0.0-23.xlsm | D29: 26 | E29: DV | F29: N | G29: 1 | H29: N | I29: Si el número de identificación informado es un NIT. relacione el dígito de verificación respectivo. | K29: E0012_2 | L29: dv | N29: DV | O29: Tributario_Informantes_AG2022 | P29: 62 | Q29: Digito_Verificacion
A30: 1006 | B30: =INT(20+Campos_x_Formato[[#This Row],[Longitud]]/4) -> 35 | C30: Prevalidador_Tributario_Informantes_AG2022_v3.0.0-23.xlsm | D30: 27 | E30: Primer apellido del informado | F30: A | G30: 60 | H30: N | I30: Indique el primer apellido del cliente y/o tercero informado. Si es una persona jurídica, deje este espacio en blanco. | K30: E0141_1(31) | L30: apl1 | N30: Primer apellido del informado | O30: Tributario_Informantes_AG2022 | P30: 63
A31: 1006 | B31: =INT(20+Campos_x_Formato[[#This Row],[Longitud]]/4) -> 35 | C31: Prevalidador_Tributario_Informantes_AG2022_v3.0.0-23.xlsm | D31: 28 | E31: Segundo apellido del informado | F31: A | G31: 60 | H31: N | I31: Indique el segundo apellido del cliente y/o tercero informado. Si no tiene segundo apellido o es una persona jurídica, deje este espacio en blanco. | K31: E0143_1 | L31: apl2 | N31: Segundo apellido del informado | O31: Tributario_Informantes_AG2022 | P31: 64
A32: 1006 | B32: =INT(20+Campos_x_Formato[[#This Row],[Longitud]]/4) -> 35 | C32: Prevalidador_Tributario_Informantes_AG2022_v3.0.0-23.xlsm | D32: 29 | E32: Primer nombre del informado | F32: A | G32: 60 | H32: N | I32: Indique el primer nombre del cliente y/o tercero informado. Si es una persona jurídica, deje este espacio en blanco. | K32: E0141_1(31) | L32: nom1 | N32: Primer nombre del informado | O32: Tributario_Informantes_AG2022 | P32: 65
A33: 1006 | B33: =INT(20+Campos_x_Formato[[#This Row],[Longitud]]/4) -> 35 | C33: Prevalidador_Tributario_Informantes_AG2022_v3.0.0-23.xlsm | D33: 30 | E33: Otros nombres del informado | F33: A | G33: 60 | H33: N | I33: Indique el segundo nombre u otros nombres del cliente y/o tercero informado. Si no tiene más nombres o es una persona jurídica, deje este espacio en blanco. | K33: E0143_1 | L33: nom2 | N33: Otros nombres del informado | O33: Tributario_Informantes_AG2022 | P33: 66
A34: 1006 | B34: =INT(20+Campos_x_Formato[[#This Row],[Longitud]]/4) -> 132 | C34: Prevalidador_Tributario_Informantes_AG2022_v3.0.0-23.xlsm | D34: 31 | E34: Razón social informado | F34: A | G34: 450 | H34: N | I34: Informe la razón social del cliente y/o tercero informado. Si es una persona natural, deje la casilla en blanco. Utilice "Cuantías menores" para el Nit 222222222. | K34: E0142_1(27|29) | L34: raz | N34: Razón social informado | O34: Tributario_Informantes_AG2022 | P34: 67
A35: 1006 | B35: 25 | C35: Prevalidador_Tributario_Informantes_AG2022_v3.0.0-23.xlsm | D35: 32 | E35: Impuesto generado | F35: N | G35: 20 | H35: S | I35: Informe el Valor de Impuesto a las ventas por pagar Generado. | K35: E0118_2 | L35: imp | N35: Impuesto generado | O35: Tributario_Informantes_AG2022 | P35: 68
A36: 1006 | B36: 25 | C36: Prevalidador_Tributario_Informantes_AG2022_v3.0.0-23.xlsm | D36: 33 | E36: IVA recuperado en devoluciones en compras anuladas. rescindidas o resueltas | F36: N | G36: 20 | H36: S | I36: Informe el valor del IVA Recuperado en Devoluciones en Compras Anuladas. Rescendidas o Resueltas. | K36: E0130_3(32|34) | L36: iva | N36: IVA recuperado en devoluciones en compras anuladas. rescindidas o resueltas | O36: Tributario_Informantes_AG2022 | P36: 69
A37: 1006 | B37: 25 | C37: Prevalidador_Tributario_Informantes_AG2022_v3.0.0-23.xlsm | D37: 34 | E37: Impuesto al consumo | F37: N | G37: 20 | H37: S | I37: Informe el Valor de Impuesto al Consumo | L37: icon | N37: Impuesto al consumo | O37: Tributario_Informantes_AG2022 | P37: 70
A38: 1647 | B38: 25 | C38: Prevalidador_Tributario_Informantes_AG2022_v3.0.0-23.xlsm | D38: *24 | E38: Concepto | F38: N | G38: 4 | H38: S | I38: Seleccione el concepto a que correspondan los ingresos recibidos | K38: E0124_1 | L38: con | N38: Concepto | O38: Tributario_Informantes_AG2022 | P38: 960 | Q38: Concepto_1647
A39: 1647 | B39: 25 | C39: Prevalidador_Tributario_Informantes_AG2022_v3.0.0-23.xlsm | D39: *25 | E39: Tipo de documento de quien se recibe ingreso | F39: N | G39: 2 | H39: S | I39: Seleccione el tipo de documento de identificación que posea la persona o entidad de quien se recibió el correspondiente ingreso. Cuando vaya a informar cuantías menores o personas o entidades del exterior, Utilice el tipo de Documento 43. Si la Persona o Entidad del exterior, tiene Número, Código o Clave Fiscal, Utilice 42. | L39: tdoc | N39: Tipo de documento de quien se recibe ingreso | O39: Tributario_Informantes_AG2022 | P39: 961 | Q39: Tipo_Documento_Sin_ident
A40: 1647 | B40: 25 | C40: Prevalidador_Tributario_Informantes_AG2022_v3.0.0-23.xlsm | D40: *26 | E40: Número identificación de quien se recibe ingreso | F40: A | G40: 20 | H40: S | I40: Indique el número de identificación que corresponda al informado. Si es por cuantías menores indique el Nit 222222222. Cuando sean transacciones con personas o entidades del exterior que no posean Número, Código o Clave Fiscal deberá informarse con Nit 444444001 aumentando en una unidad cada relacionado hasta el 444449999. | K40: E0064_1 | L40: nid | N40: Número identificación de quien se recibe ingreso | O40: Tributario_Informantes_AG2022 | P40: 962
A41: 1647 | B41: 6 | C41: Prevalidador_Tributario_Informantes_AG2022_v3.0.0-23.xlsm | D41: 27 | E41: DV | F41: N | G41: 1 | H41: N | I41: Si el número de identificación informado es un NIT, relacione el dígito de verificación respectivo. | K41: E0012_2 | L41: dv | N41: DV | O41: Tributario_Informantes_AG2022 | P41: 963 | Q41: Digito_Verificacion
A42: 1647 | B42: =INT(20+Campos_x_Formato[[#This Row],[Longitud]]/4) -> 35 | C42: Prevalidador_Tributario_Informantes_AG2022_v3.0.0-23.xlsm | D42: 28 | E42: Primer apellido de quien se recibe ingreso | F42: A | G42: 60 | H42: N | I42: Indique el primer apellido del cliente y/o tercero de quien se obtuvo el ingreso. Si es una persona jurídica, deje este espacio en blanco. | K42: E0141_1(32) | L42: apl1 | N42: Primer apellido de quien se recibe ingreso | O42: Tributario_Informantes_AG2022 | P42: 964
A43: 1647 | B43: =INT(20+Campos_x_Formato[[#This Row],[Longitud]]/4) -> 35 | C43: Prevalidador_Tributario_Informantes_AG2022_v3.0.0-23.xlsm | D43: 29 | E43: Segundo apellido de quien se recibe ingreso | F43: A | G43: 60 | H43: N | I43: Indique el segundo apellido del cliente y/o tercero de quien se obtuvo el ingreso. Si no tiene segundo apellido o es una persona jurídica, deje esta casilla en blanco. | K43: E0143_1 | L43: apl2 | N43: Segundo apellido de quien se recibe ingreso | O43: Tributario_Informantes_AG2022 | P43: 965
A44: 1647 | B44: =INT(20+Campos_x_Formato[[#This Row],[Longitud]]/4) -> 35 | C44: Prevalidador_Tributario_Informantes_AG2022_v3.0.0-23.xlsm | D44: 30 | E44: Primer nombre de quien se recibe ingreso | F44: A | G44: 60 | H44: N | I44: Indique el primer nombre del cliente y/o tercero de quien se recibió el ingreso. Si es una persona jurídica, deje este espacio en blanco. | K44: E0141_1(32) | L44: nom1 | N44: Primer nombre de quien se recibe ingreso | O44: Tributario_Informantes_AG2022 | P44: 966
A45: 1647 | B45: =INT(20+Campos_x_Formato[[#This Row],[Longitud]]/4) -> 35 | C45: Prevalidador_Tributario_Informantes_AG2022_v3.0.0-23.xlsm | D45: 31 | E45: Otros nombres de quien se recibe ingreso | F45: A | G45: 60 | H45: N | I45: Indique el segundo nombre u otros nombres del cliente y/o tercero de quien se recibió el ingreso. Si no tiene más nombres o es una persona jurídica, deje este espacio en blanco. | K45: E0143_1 | L45: nom2 | N45: Otros nombres de quien se recibe ingreso | O45: Tributario_Informantes_AG2022 | P45: 967
A46: 1647 | B46: =INT(20+Campos_x_Formato[[#This Row],[Longitud]]/4) -> 132 | C46: Prevalidador_Tributario_Informantes_AG2022_v3.0.0-23.xlsm | D46: 32 | E46: Razón social de quien se recibe ingreso | F46: A | G46: 450 | H46: N | I46: Relacione la razón social del cliente o tercero de quien generó el ingreso. Si es una persona natural, deje esta casilla en blanco. Utilice "Cuantías menores" cuando el Nit sea 222222222, y la razón social o nombre que corresponda para Nits 444444001 en adelante. | K46: E0142_1(28|30) | L46: raz | N46: Razón social de quien se recibe ingreso | O46: Tributario_Informantes_AG2022 | P46: 968
A47: 1647 | B47: 25 | C47: Prevalidador_Tributario_Informantes_AG2022_v3.0.0-23.xlsm | D47: 33 | E47: País de residencia o domicilio de quien se recibe ingreso | F47: N | G47: 4 | H47: S | I47: Seleccione el código del país al cual pertenece el informado. | K47: E0127_1 | L47: pais | N47: País de residencia o domicilio de quien se recibe ingreso | O47: Tributario_Informantes_AG2022 | P47: 969 | Q47: Paises
A48: 1647 | B48: 25 | C48: Prevalidador_Tributario_Informantes_AG2022_v3.0.0-23.xlsm | D48: 46 | E48: Valor total de la operación | F48: N | G48: 18 | H48: S | I48: Informe el valor total de la Operación | L48: vtotal | N48: Valor total de la operación | O48: Tributario_Informantes_AG2022 | P48: 970
A49: 1647 | B49: 25 | C49: Prevalidador_Tributario_Informantes_AG2022_v3.0.0-23.xlsm | D49: 47 | E49: Valor ingreso reintegrado transferido distribuido al tercero | F49: N | G49: 18 | H49: S | I49: Informe el valor del ingreso reintegro, tranferido o distribuido al tercero | L49: ving | N49: Valor ingreso reintegrado transferido distribuido al tercero | O49: Tributario_Informantes_AG2022 | P49: 971
A50: 1647 | B50: 25 | C50: Prevalidador_Tributario_Informantes_AG2022_v3.0.0-23.xlsm | D50: 48 | E50: Valor Retención reintegrada transferida distribuida al tercero | F50: N | G50: 18 | H50: S | I50: Informe el valor de la retencion que le efectu al tercero | K50: E0310_2(46,47) | L50: vret | N50: Valor Retención reintegrada transferida distribuida al tercero | O50: Tributario_Informantes_AG2022 | P50: 972
A51: 1647 | B51: 25 | C51: Prevalidador_Tributario_Informantes_AG2022_v3.0.0-23.xlsm | D51: *35 | E51: Tipo de documento del tercero para quien se recibió ingreso | F51: N | G51: 2 | H51: S | I51: Seleccione el tipo de documento de identificación que posea la persona o entidad para quien se recibió el correspondiente ingreso. Cuando vaya a informar cuantías menores o personas o entidades del exterior, Utilice el tipo de Documento 43. Si la Persona o Entidad del exterior, tiene Número, Código o Clave Fiscal, Utilice 42. | L51: tdoc2 | N51: Tipo de documento del tercero para quien se recibió ingreso | O51: Tributario_Informantes_AG2022 | P51: 973 | Q51: Tipo_Documento_Sin_ident
A52: 1647 | B52: 25 | C52: Prevalidador_Tributario_Informantes_AG2022_v3.0.0-23.xlsm | D52: *36 | E52: Identificación del tercero para quien se recibió ingreso | F52: A | G52: 20 | H52: S | I52: Indique el número de identificación que corresponda al informado. Si es por cuantías menores indique el Nit 222222222. Cuando sean transacciones con personas o entidades del exterior que no posean Número, Código o Clave Fiscal deberá informarse con Nit 444444001 aumentando en una unidad cada relacionado hasta el 444449999. | K52: E0064_1 | L52: nid2i | N52: Identificación del tercero para quien se recibió ingreso | O52: Tributario_Informantes_AG2022 | P52: 974
A53: 1647 | B53: =INT(20+Campos_x_Formato[[#This Row],[Longitud]]/4) -> 35 | C53: Prevalidador_Tributario_Informantes_AG2022_v3.0.0-23.xlsm | D53: 37 | E53: Primer apellido del tercero para quien se recibió ingreso | F53: A | G53: 60 | H53: N | I53: Indique el primer apellido del cliente y/o tercero para quien se obtuvo el ingreso. Si es una persona jurídica, deje este espacio en blanco. | K53: E0077_1 | L53: apl1i | N53: Primer apellido del tercero para quien se recibió ingreso | O53: Tributario_Informantes_AG2022 | P53: 975
A54: 1647 | B54: =INT(20+Campos_x_Formato[[#This Row],[Longitud]]/4) -> 35 | C54: Prevalidador_Tributario_Informantes_AG2022_v3.0.0-23.xlsm | D54: 38 | E54: Segundo apellido del tercero para quien se recibió ingreso | F54: A | G54: 60 | H54: N | I54: Indique el segundo apellido del cliente y/o tercero para quien se obtuvo el ingreso. Si no tiene segundo apellido o es una persona jurídica, deje esta casilla en blanco. | K54: E0078_1 | L54: apl2i | N54: Segundo apellido del tercero para quien se recibió ingreso | O54: Tributario_Informantes_AG2022 | P54: 976
A55: 1647 | B55: =INT(20+Campos_x_Formato[[#This Row],[Longitud]]/4) -> 35 | C55: Prevalidador_Tributario_Informantes_AG2022_v3.0.0-23.xlsm | D55: 39 | E55: Primer nombre del tercero para quien se recibió ingreso | F55: A | G55: 60 | H55: N | I55: Indique el primer nombre del cliente y/o tercero de para quien se recibió el ingreso. Si es una persona jurídica, deje este espacio en blanco. | K55: E0077_1 | L55: nom1i | N55: Primer nombre del tercero para quien se recibió ingreso | O55: Tributario_Informantes_AG2022 | P55: 977
A56: 1647 | B56: =INT(20+Campos_x_Formato[[#This Row],[Longitud]]/4) -> 35 | C56: Prevalidador_Tributario_Informantes_AG2022_v3.0.0-23.xlsm | D56: 40 | E56: Otros nombres del tercero para quien se recibió ingreso | F56: A | G56: 60 | H56: N | I56: Indique el segundo nombre u otros nombres del cliente y/o tercero de para quien se recibió el ingreso. Si no tiene más nombres o es una persona jurídica, deje este espacio en blanco. | K56: E0078_1 | L56: nom2i | N56: Otros nombres del tercero para quien se recibió ingreso | O56: Tributario_Informantes_AG2022 | P56: 978
A57: 1647 | B57: =INT(20+Campos_x_Formato[[#This Row],[Longitud]]/4) -> 132 | C57: Prevalidador_Tributario_Informantes_AG2022_v3.0.0-23.xlsm | D57: 41 | E57: Razón social del tercero para quien se recibió ingreso | F57: A | G57: 450 | H57: N | I57: Relacione la razón social del cliente o tercero de quien generó el ingreso. Si es una persona natural, deje esta casilla en blanco. Utilice Cuantías menores cuand el Nit sea 222222222 y la Razón social o nombre corresponda para Nits 444444001 en adelante. | K57: E0079_3 | L57: razi | N57: Razón social del tercero para quien se recibió ingreso | O57: Tributario_Informantes_AG2022 | P57: 979
A58: 1647 | B58: =INT(20+Campos_x_Formato[[#This Row],[Longitud]]/4) -> 70 | C58: Prevalidador_Tributario_Informantes_AG2022_v3.0.0-23.xlsm | D58: 42 | E58: Dirección | F58: A | G58: 200 | H58: N | I58: Relacione la dirección del tercero para quien se recibio el ingreso reportado. Cuando se refiera a cuantías menores indique la dirección del informante. Cuando se refiera a personas o entidades del exterior la dirección, no se diligencia. | K58: E0131_1(45|169|8) | L58: dir | N58: Dirección | O58: Tributario_Informantes_AG2022 | P58: 980
A59: 1647 | B59: 25 | C59: Prevalidador_Tributario_Informantes_AG2022_v3.0.0-23.xlsm | D59: 43 | E59: Código dpto | F59: N | G59: 2 | H59: N | I59: Seleccione el departamento al cual pertenece la dirección informada, conforme con los códigos indicados en las tablas del Dane, se deben incluir los ceros a la izquierda. Para personas o entidades del exterior este campo no se diligencia. | K59: E0075_1 | L59: cdpt | N59: Código dpto | O59: Tributario_Informantes_AG2022 | P59: 981 | Q59: ="Departamentos_@"&L61&"@" -> Departamentos_@paist@
A60: 1647 | B60: 25 | C60: Prevalidador_Tributario_Informantes_AG2022_v3.0.0-23.xlsm | D60: 44 | E60: Código mcp | F60: N | G60: 3 | H60: N | I60: Seleccione el municipio correspondiente a la dirección informada, conforme con los códigos indicados por el Dane, se deben incluir los ceros a la izquierda. Para personas o entidades del exterior este campo no se diligencia. | K60: E0076_1 | L60: cmcp | N60: Código mcp | O60: Tributario_Informantes_AG2022 | P60: 982 | Q60: Municipios_@cdpt@
A61: 1647 | B61: 25 | C61: Prevalidador_Tributario_Informantes_AG2022_v3.0.0-23.xlsm | D61: 45 | E61: País de residencia o domicilio | F61: N | G61: 4 | H61: S | I61: Seleccione el código del país al cual pertenece el informado. | K61: E0128_1 | L61: paist | N61: País de residencia o domicilio | O61: Tributario_Informantes_AG2022 | P61: 983 | Q61: Paises
A62: 5247 | B62: 25 | C62: Prevalidador_Tributario_CCE_AG2022_v3.0.0-23.xlsm | D62: *24 | E62: Tipo de Contrato | F62: N | G62: 2 | H62: S | I62: Seleccione el Tipo de Contrato por el cual efectuó el pago o abono en cuenta. | L62: tcon | N62: Tipo de Contrato | O62: CCE_AG2022 | P62: 1309 | Q62: Tipo_Contrato
A63: 5247 | B63: 25 | C63: Prevalidador_Tributario_CCE_AG2022_v3.0.0-23.xlsm | D63: *25 | E63: Concepto | F63: N | G63: 4 | H63: S | I63: Seleccione el concepto por el cual efectuó el pago o abono en cuenta. | K63: E0300_1(5061) | L63: cpt | N63: Concepto | O63: CCE_AG2022 | P63: 1310 | Q63: Concepto_5247
A64: 5247 | B64: 25 | C64: Prevalidador_Tributario_CCE_AG2022_v3.0.0-23.xlsm | D64: *26 | E64: Tipo de documento | F64: N | G64: 2 | H64: S | I64: Seleccione el tipo de documento de identificación que posee el informado. Cuando vaya a informar cuantías menores o personas o entidades del exterior, Utilice el tipo de Documento 43. Si la Persona o Entidad del exterior, tiene Número, Código o Clave Fiscal, Utilice 42. | L64: tdoc | N64: Tipo de documento | O64: CCE_AG2022 | P64: 1311 | Q64: Tipo_Documento_Sin_ident
A65: 5247 | B65: 25 | C65: Prevalidador_Tributario_CCE_AG2022_v3.0.0-23.xlsm | D65: *27 | E65: Número identificación | F65: A | G65: 20 | H65: S | I65: Indique el número de identificación que corresponda al beneficiario del pago informado. Si es por cuantías menores indique el Nit 222222222. Cuando sean transacciones con personas o entidades del exterior que no posea Número, Código o Clave Fiscal deberá informarse con Nit 444444001 aumentando en una unidad cada relacionado hasta el 444449999. | K65: E0064_2 | L65: nid | N65: Número identificación | O65: CCE_AG2022 | P65: 1312
A66: 5247 | B66: =INT(20+Campos_x_Formato[[#This Row],[Longitud]]/4) -> 35 | C66: Prevalidador_Tributario_CCE_AG2022_v3.0.0-23.xlsm | D66: 28 | E66: Primer apellido del informado | F66: A | G66: 60 | H66: N | I66: Indique el primer apellido del beneficiario del pago. Si es una persona jurídica, deje este espacio en blanco. | K66: E0314_1 | L66: apl1 | N66: Primer apellido del informado | O66: CCE_AG2022 | P66: 1313
A67: 5247 | B67: =INT(20+Campos_x_Formato[[#This Row],[Longitud]]/4) -> 35 | C67: Prevalidador_Tributario_CCE_AG2022_v3.0.0-23.xlsm | D67: 29 | E67: Segundo apellido del informado | F67: A | G67: 60 | H67: N | I67: Indique el segundo apellido del beneficiario del pago. Si no tiene segundo apellido o es una persona jurídica, deje este espacio en blanco | K67: E0054_1 | L67: apl2 | N67: Segundo apellido del informado | O67: CCE_AG2022 | P67: 1314
A68: 5247 | B68: =INT(20+Campos_x_Formato[[#This Row],[Longitud]]/4) -> 35 | C68: Prevalidador_Tributario_CCE_AG2022_v3.0.0-23.xlsm | D68: 30 | E68: Primer nombre del informado | F68: A | G68: 60 | H68: N | I68: Indique el primer nombre del beneficiario del pago. Si es una persona jurídica, deje este espacio en blanco. | K68: E0314_1 | L68: nom1 | N68: Primer nombre del informado | O68: CCE_AG2022 | P68: 1315
A69: 5247 | B69: =INT(20+Campos_x_Formato[[#This Row],[Longitud]]/4) -> 35 | C69: Prevalidador_Tributario_CCE_AG2022_v3.0.0-23.xlsm | D69: 31 | E69: Otros nombres del informado | F69: A | G69: 60 | H69: N | I69: Indique el segundo nombre u otros nombres del beneficiario del pago. Si no tiene más nombres o es una persona jurídica, deje este espacio en blanco. | K69: E0054_1 | L69: nom2 | N69: Otros nombres del informado | O69: CCE_AG2022 | P69: 1316
A70: 5247 | B70: =INT(20+Campos_x_Formato[[#This Row],[Longitud]]/4) -> 132 | C70: Prevalidador_Tributario_CCE_AG2022_v3.0.0-23.xlsm | D70: 32 | E70: Razón social informado | F70: A | G70: 450 | H70: N | I70: Indique la razón social del beneficiario del pago. Si es una persona natural, deje la casilla en blanco. Utilice "Cuantías menores" cuando el Nit sea 222222222 y la razón social o nombre que corresponda para Nits 444444001 en adelante. | K70: E0313_1 | L70: raz | N70: Razón social informado | O70: CCE_AG2022 | P70: 1317
A71: 5247 | B71: =INT(20+Campos_x_Formato[[#This Row],[Longitud]]/4) -> 70 | C71: Prevalidador_Tributario_CCE_AG2022_v3.0.0-23.xlsm | D71: 33 | E71: Dirección | F71: A | G71: 200 | H71: N | I71: Relacione la dirección del beneficiario del pago o abono en cuenta informado. Cuando se refiera a cuantías menores indique la dirección del informante. Cuando se refiera a personas o entidades del exterior la dirección, no se diligencia. | K71: E0074_3(8) | L71: dir | N71: Dirección | O71: CCE_AG2022 | P71: 1318
A72: 5247 | B72: 25 | C72: Prevalidador_Tributario_CCE_AG2022_v3.0.0-23.xlsm | D72: 34 | E72: Código dpto | F72: N | G72: 2 | H72: N | I72: Seleccione el departamento al cual pertenece la dirección informada, conforme con los códigos indicados en las tablas del Dane, se deben incluir los ceros a la izquierda. Para personas o entidades del exterior este campo no se diligencia. | K72: E0075_1 | L72: dpto | N72: Código dpto | O72: CCE_AG2022 | P72: 1319 | Q72: ="Departamentos_@"&L74&"@" -> Departamentos_@pais@
A73: 5247 | B73: 25 | C73: Prevalidador_Tributario_CCE_AG2022_v3.0.0-23.xlsm | D73: 35 | E73: Código mcp | F73: N | G73: 3 | H73: N | I73: Seleccione el municipio correspondiente a la dirección informada, conforme con los códigos indicados por el Dane, se deben incluir los ceros a la izquierda. Para personas o entidades del exterior este campo no se diligencia. | K73: E0076_1 | L73: mun | N73: Código mcp | O73: CCE_AG2022 | P73: 1320 | Q73: Municipios_@dpto@
A74: 5247 | B74: 25 | C74: Prevalidador_Tributario_CCE_AG2022_v3.0.0-23.xlsm | D74: 36 | E74: País de Residencia o domicilio | F74: N | G74: 4 | H74: S | I74: Seleccione el código del país al cual pertenece el informado. | K74: E0087_2 | L74: pais | N74: País de Residencia o domicilio | O74: CCE_AG2022 | P74: 1321 | Q74: Paises
A75: 5247 | B75: 25 | C75: Prevalidador_Tributario_CCE_AG2022_v3.0.0-23.xlsm | D75: 37 | E75: Pago o abono en cuenta | F75: N | G75: 18 | H75: S | I75: Digite los pagos o abonos en cuenta (causación) que constituyan costo o deducción o den derecho a impuesto descontable por beneficiario correspondiente al año gravable informado. | K75: E0130_3(38|39|40|41|42) | L75: pago | N75: Pago o abono en cuenta | O75: CCE_AG2022 | P75: 1322
A76: 5247 | B76: 25 | C76: Prevalidador_Tributario_CCE_AG2022_v3.0.0-23.xlsm | D76: 38 | E76: IVA mayor valor del costo o gasto | F76: N | G76: 18 | H76: S | I76: Informe el valor del IVA que llevo como Mayor Valor del Costo y solicitado como Deducible. | L76: ivam | N76: IVA mayor valor del costo o gasto | O76: CCE_AG2022 | P76: 1323
A77: 5247 | B77: 25 | C77: Prevalidador_Tributario_CCE_AG2022_v3.0.0-23.xlsm | D77: 39 | E77: Retención en la fuente practicada Renta | F77: N | G77: 18 | H77: S | I77: Informe el valor de la Retencion en la Fuente Practicada a Titulo de Renta. | L77: reprar | N77: Retención en la fuente practicada Renta | O77: CCE_AG2022 | P77: 1324
A78: 5247 | B78: 25 | C78: Prevalidador_Tributario_CCE_AG2022_v3.0.0-23.xlsm | D78: 40 | E78: Retención en la fuente asumida Renta | F78: N | G78: 18 | H78: S | I78: Informe el valor de la Retencion en la Fuente Asumida a Titulo de Renta. | L78: rasre | N78: Retención en la fuente asumida Renta | O78: CCE_AG2022 | P78: 1325
A79: 5247 | B79: 25 | C79: Prevalidador_Tributario_CCE_AG2022_v3.0.0-23.xlsm | D79: 41 | E79: Retención en la fuente practicada IVA Régimen común | F79: N | G79: 18 | H79: S | I79: Informe el valor de la Retencion en la Fuente Practica a Titulo de IVA a Regimen Comun. | L79: repric | N79: Retención en la fuente practicada IVA Régimen común | O79: CCE_AG2022 | P79: 1326
A80: 5247 | B80: 25 | C80: Prevalidador_Tributario_CCE_AG2022_v3.0.0-23.xlsm | D80: 42 | E80: Retención en la fuente asumida NO domiciliados | F80: N | G80: 18 | H80: S | I80: Informe el valor de la Retencion en la Fuente asumida a NO Domiciliados. | L80: rasnod | N80: Retención en la fuente asumida NO domiciliados | O80: CCE_AG2022 | P80: 1327
A81: 5247 | B81: 25 | C81: Prevalidador_Tributario_CCE_AG2022_v3.0.0-23.xlsm | D81: 43 | E81: Identificación del fideicomiso | F81: A | G81: 14 | H81: N | I81: Indique el numero de identificacion del fideicomiso | L81: idfi | N81: Identificación del fideicomiso | O81: CCE_AG2022 | P81: 1328
A82: 5247 | B82: 25 | C82: Prevalidador_Tributario_CCE_AG2022_v3.0.0-23.xlsm | D82: *44 | E82: Tipo documento participante en contrato | F82: N | G82: 2 | H82: S | I82: Seleccione el tipo de documento de identificación que posee el participante en contrato. Si la Persona o Entidad del exterior, tiene Número, Código o Clave Fiscal, Utilice 42. | L82: tdopa | N82: Tipo documento participante en contrato | O82: CCE_AG2022 | P82: 1329 | Q82: Tipo_Documento
A83: 5247 | B83: 25 | C83: Prevalidador_Tributario_CCE_AG2022_v3.0.0-23.xlsm | D83: *45 | E83: Identificación participante en contrato | F83: A | G83: 20 | H83: S | I83: Indique el número de identificación que corresponda al participate en contrato. | K83: E0315_1 | L83: nidpa | N83: Identificación participante en contrato | O83: CCE_AG2022 | P83: 1330

Sheet Terceros (hidden)
A1: Formato | B1: NIT | C1: DV | D1: Primer apellido | E1: Segundo apellido | F1: Primer nombre | G1: Otros nombres | H1: Razón social | I1: Estado
A2: 1001 | B2: nid | D2: apl1 | E2: apl2 | F2: nom1 | G2: nom2 | H2: raz | I2: 1
A3: 1003 | B3: nid | D3: apl1 | E3: apl2 | F3: nom1 | G3: nom2 | H3: raz | I3: 1
A4: 1004 | B4: nit | D4: pap | E4: sap | F4: pno | G4: ono | H4: raz | I4: 1
A5: 1005 | B5: nid | D5: apl1 | E5: apl2 | F5: nom1 | G5: nom2 | H5: raz | I5: 1
A6: 1006 | B6: nid | D6: apl1 | E6: apl2 | F6: nom1 | G6: nom2 | H6: raz | I6: 1
A7: 1007 | B7: nid | D7: apl1 | E7: apl2 | F7: nom1 | G7: nom2 | H7: raz | I7: 1
A8: 1008 | B8: nid | D8: apl1 | E8: apl2 | F8: nom1 | G8: nom2 | H8: raz | I8: 1
A9: 1009 | B9: nid | D9: apl1 | E9: apl2 | F9: nom1 | G9: nom2 | H9: raz | I9: 1
A10: 1010 | B10: nid | D10: apl1 | E10: apl2 | F10: nom1 | G10: nom2 | H10: raz | I10: 1
A11: 1012 | B11: nid | D11: apl1 | E11: apl2 | F11: nom1 | G11: nom2 | H11: raz | I11: 1
A12: 1013 | B12: nid | D12: apl1 | E12: apl2 | F12: nom1 | G12: nom2 | H12: raz | I12: 1
A13: 1014 | B13: nid | D13: apl1 | E13: apl2 | F13: nom1 | G13: nom2 | H13: raz | I13: 1
A14: 1019 | B14: nid | D14: apl1 | E14: apl2 | F14: nom1 | G14: nom2 | H14: raz | I14: 1
A15: 1020 | B15: nid | D15: apl1 | E15: apl2 | F15: nom1 | G15: nom2 | H15: raz | I15: 1
A16: 1021 | B16: nid | D16: apl1 | E16: apl2 | F16: nom1 | G16: nom2 | H16: raz | I16: 1
A17: 1022 | B17: nita | D17: papa | E17: sapa | F17: pnoa | G17: onoa | I17: 1
A18: 1023 | B18: nid | D18: apl1 | E18: apl2 | F18: nom1 | G18: nom2 | H18: raz | I18: 1
A19: 1024 | B19: nit | D19: apl1 | E19: apl2 | F19: nom1 | G19: nom2 | H19: raz | I19: 1
A20: 1026 | B20: nid | D20: apl1 | E20: apl2 | F20: nom1 | G20: nom2 | H20: raz | I20: 1
A21: 1028 | B21: nid | D21: apl1 | E21: apl2 | F21: nom1 | G21: nom2 | I21: 1
A22: 1032 | B22: nid | D22: apl1 | E22: apl2 | F22: nom1 | G22: nom2 | H22: raz | I22: 1
A23: 1032 | B23: nida | D23: apl1a | E23: apl2a | F23: nom1a | G23: nom2a | H23: raza | I23: 2
A24: 1035 | B24: nid | D24: apl1 | E24: apl2 | F24: nom1 | G24: nom2 | H24: raz | I24: 1
A25: 1036 | H25: razs | I25: 1
A26: 1037 | B26: nit | D26: apl1 | E26: apl2 | F26: nom1 | G26: nom2 | H26: raz | I26: 1
A27: 1038 | B27: nit | H27: raz | I27: 1
A28: 1039 | B28: nit | H28: raz | I28: 1
A29: 1041 | B29: nit | H29: raz | I29: 1
A30: 1042 | B30: nid | D30: apl1 | E30: apl2 | F30: nom1 | G30: nom2 | H30: raz | I30: 1
A31: 1056 | B31: nid | D31: apl1 | E31: apl2 | F31: nom1 | G31: nom2 | H31: raz | I31: 1
A32: 1058 | B32: nid | D32: apl1 | E32: apl2 | F32: nom1 | G32: nom2 | H32: raz | I32: 1
A33: 1159 | H33: raz | I33: 1
A34: 1406 | B34: nit | D34: pap | E34: sap | F34: pno | G34: ono | H34: raz | I34: 1
A35: 1476 | B35: nit | D35: pap | E35: sap | F35: pno | G35: ono | H35: raz | I35: 1
A36: 1480 | B36: nit | D36: pap | E36: sap | F36: pno | G36: ono | H36: raz | I36: 1
A37: 1481 | B37: nit | D37: pap | E37: sap | F37: pno | G37: ono | H37: raz | I37: 1
A38: 1647 | B38: nid | D38: apl1 | E38: apl2 | F38: nom1 | G38: nom2 | H38: raz | I38: 1
A39: 1647 | B39: nid2i | D39: apl1i | E39: apl2i | F39: nom1i | G39: nom2i | H39: razi | I39: 2
A40: 2273 | B40: nite | H40: raze | I40: 1
A41: 2273 | B41: niti | D41: aplinv1 | E41: aplinv2 | F41: pnoi | G41: onoi | H41: razi | I41: 2
A42: 2274 | B42: nita | D42: pap | E42: sap | F42: pno | G42: ono | I42: 1
A43: 2275 | B43: nit | D43: pap | E43: sap | F43: pno | G43: ono | H43: raz | I43: 1
A44: 2276 | B44: nitb | D44: pap | E44: sap | F44: pno | G44: ono | I44: 1
A45: 2276 | B45: nitpcc | I45: 2
A46: 2277 | B46: nita | D46: nita | E46: papa | F46: sapa | G46: pnoa | H46: onoa | I46: 1
A47: 2279 | B47: nitt | H47: raz | I47: 1
A48: 2280 | B48: nite | D48: pap | E48: sap | F48: pno | G48: ono | I48: 1
A49: 2574 | B49: nid | D49: apl1 | E49: apl2 | F49: nom1 | G49: nom2 | H49: raz | I49: 1
A50: 2574 | B50: nidov | D50: apl1ov | E50: apl2ov | F50: nom1ov | G50: nom2ov | H50: razov | I50: 2
A51: 2574 | B51: nidim | I51: 3
A52: 2575 | B52: nid | F52: prinom | G52: otronom | H52: raz | I52: 1
A53: 2631 | B53: nit | D53: pap | E53: sap | F53: pno | G53: ono | H53: raz | I53: 1
A54: 2683 | B54: nit | H54: raz | I54: 1
A55: 5247 | B55: nid | D55: apl1 | E55: apl2 | F55: nom1 | G55: nom2 | H55: raz | I55: 1
A56: 5247 | B56: nidpa | I56: 2
A57: 5248 | B57: nid | D57: apl1 | E57: apl2 | F57: nom1 | G57: nom2 | H57: raz | I57: 1
A58: 5248 | B58: nidpa | I58: 2
A59: 5249 | B59: nid | D59: apl1 | E59: apl2 | F59: nom1 | G59: nom2 | H59: raz | I59: 1
A60: 5249 | B60: nidpa | I60: 2
A61: 5250 | B61: nid | D61: apl1 | E61: apl2 | F61: nom1 | G61: nom2 | H61: raz | I61: 1
A62: 5250 | B62: nidpa | I62: 2
A63: 5251 | B63: nid | D63: apl1 | E63: apl2 | F63: nom1 | G63: nom2 | H63: raz | I63: 1
A64: 5251 | B64: nidpa | I64: 2
A65: 5252 | B65: nid | D65: apl1 | E65: apl2 | F65: nom1 | G65: nom2 | H65: raz | I65: 1
A66: 5252 | B66: nidpa | I66: 2
A100: NIT | B100: DV | C100: Primer apellido | D100: Segundo apellido | E100: Primer nombre | F100: Otros nombres | G100: Razón social | H100: Estado

Sheet Listas (hidden)
A1: Renombrado | B1: Mostrar_Lista | C1: ID | D1: Descripcion | E1: Orden
A2: Ubicación_del_Predio_1476 | B2: =Listas[[#This Row],[ID]]&" "&IF(Listas[[#This Row],[Descripcion]]="","","- "&Listas[[#This Row],[Descripcion]]) -> 1 - Predio rural | C2: 1 | D2: Predio rural | E2: 1
A3: Ubicación_del_Predio_1476 | B3: =Listas[[#This Row],[ID]]&" "&IF(Listas[[#This Row],[Descripcion]]="","","- "&Listas[[#This Row],[Descripcion]]) -> 2 - Predio urbano | C3: 2 | D3: Predio urbano | E3: 2
A4: Vehículo_Inversión_1036 | B4: =Listas[[#This Row],[ID]]&" "&IF(Listas[[#This Row],[Descripcion]]="","","- "&Listas[[#This Row],[Descripcion]]) -> 1 - Sociedades | C4: 1 | D4: Sociedades | E4: 3
A5: Vehículo_Inversión_1036 | B5: =Listas[[#This Row],[ID]]&" "&IF(Listas[[#This Row],[Descripcion]]="","","- "&Listas[[#This Row],[Descripcion]]) -> 2 - Patrimonios autónomo | C5: 2 | D5: Patrimonios autónomo | E5: 4
A6: Vehículo_Inversión_1036 | B6: =Listas[[#This Row],[ID]]&" "&IF(Listas[[#This Row],[Descripcion]]="","","- "&Listas[[#This Row],[Descripcion]]) -> 3 - Trust | C6: 3 | D6: Trust | E6: 5
A7: Vehículo_Inversión_1036 | B7: =Listas[[#This Row],[ID]]&" "&IF(Listas[[#This Row],[Descripcion]]="","","- "&Listas[[#This Row],[Descripcion]]) -> 4 - Fondos de inversión colectiva | C7: 4 | D7: Fondos de inversión colectiva | E7: 6
A8: Vehículo_Inversión_1036 | B8: =Listas[[#This Row],[ID]]&" "&IF(Listas[[#This Row],[Descripcion]]="","","- "&Listas[[#This Row],[Descripcion]]) -> 5 - Otros negocios fiduciarios | C8: 5 | D8: Otros negocios fiduciarios | E8: 7
A9: Vehículo_Inversión_1036 | B9: =Listas[[#This Row],[ID]]&" "&IF(Listas[[#This Row],[Descripcion]]="","","- "&Listas[[#This Row],[Descripcion]]) -> 6 - Fundaciones de interés privado | C9: 6 | D9: Fundaciones de interés privado | E9: 8
A10: Vehículo_Inversión_1036 | B10: =Listas[[#This Row],[ID]]&" "&IF(Listas[[#This Row],[Descripcion]]="","","- "&Listas[[#This Row],[Descripcion]]) -> 7 - Otros vehículos de inversión | C10: 7 | D10: Otros vehículos de inversión | E10: 9
A11: Destino_Económico_1476 | B11: =Listas[[#This Row],[ID]]&" "&IF(Listas[[#This Row],[Descripcion]]="","","- "&Listas[[#This Row],[Descripcion]]) -> A - Habitacional | C11: A | D11: Habitacional | E11: 10
A12: Destino_Económico_1476 | B12: =Listas[[#This Row],[ID]]&" "&IF(Listas[[#This Row],[Descripcion]]="","","- "&Listas[[#This Row],[Descripcion]]) -> B - Industrial | C12: B | D12: Industrial | E12: 11
A13: Destino_Económico_1476 | B13: =Listas[[#This Row],[ID]]&" "&IF(Listas[[#This Row],[Descripcion]]="","","- "&Listas[[#This Row],[Descripcion]]) -> C - Comercial | C13: C | D13: Comercial | E13: 12
A14: Destino_Económico_1476 | B14: =Listas[[#This Row],[ID]]&" "&IF(Listas[[#This Row],[Descripcion]]="","","- "&Listas[[#This Row],[Descripcion]]) -> D - Agropecuario | C14: D | D14: Agropecuario | E14: 13
A15: Destino_Económico_1476 | B15: =Listas[[#This Row],[ID]]&" "&IF(Listas[[#This Row],[Descripcion]]="","","- "&Listas[[#This Row],[Descripcion]]) -> E - Minero | C15: E | D15: Minero | E15: 14
A16: Destino_Económico_1476 | B16: =Listas[[#This Row],[ID]]&" "&IF(Listas[[#This Row],[Descripcion]]="","","- "&Listas[[#This Row],[Descripcion]]) -> F - Cultural | C16: F | D16: Cultural | E16: 15
A17: Destino_Económico_1476 | B17: =Listas[[#This Row],[ID]]&" "&IF(Listas[[#This Row],[Descripcion]]="","","- "&Listas[[#This Row],[Descripcion]]) -> G - Recreacional | C17: G | D17: Recreacional | E17: 16
A18: Destino_Económico_1476 | B18: =Listas[[#This Row],[ID]]&" "&IF(Listas[[#This Row],[Descripcion]]="","","- "&Listas[[#This Row],[Descripcion]]) -> H - Salubridad | C18: H | D18: Salubridad | E18: 17
A19: Destino_Económico_1476 | B19: =Listas[[#This Row],[ID]]&" "&IF(Listas[[#This Row],[Descripcion]]="","","- "&Listas[[#This Row],[Descripcion]]) -> I - Institucional o Estado | C19: I | D19: Institucional o Estado | E19: 18
A20: Destino_Económico_1476 | B20: =Listas[[#This Row],[ID]]&" "&IF(Listas[[#This Row],[Descripcion]]="","","- "&Listas[[#This Row],[Descripcion]]) -> J - Mixto | C20: J | D20: Mixto | E20: 19
A21: Destino_Económico_1476 | B21: =Listas[[#This Row],[ID]]&" "&IF(Listas[[#This Row],[Descripcion]]="","","- "&Listas[[#This Row],[Descripcion]]) -> K - Otro destino económico | C21: K | D21: Otro destino económico | E21: 20
A22: Digito_Verificacion | B22: =Listas[[#This Row],[ID]]&" "&IF(Listas[[#This Row],[Descripcion]]="","","- "&Listas[[#This Row],[Descripcion]]) -> 0 | C22: 0 | E22: 21
A23: Digito_Verificacion | B23: =Listas[[#This Row],[ID]]&" "&IF(Listas[[#This Row],[Descripcion]]="","","- "&Listas[[#This Row],[Descripcion]]) -> 1 | C23: 1 | E23: 22
A24: Digito_Verificacion | B24: =Listas[[#This Row],[ID]]&" "&IF(Listas[[#This Row],[Descripcion]]="","","- "&Listas[[#This Row],[Descripcion]]) -> 2 | C24: 2 | E24: 23
A25: Digito_Verificacion | B25: =Listas[[#This Row],[ID]]&" "&IF(Listas[[#This Row],[Descripcion]]="","","- "&Listas[[#This Row],[Descripcion]]) -> 3 | C25: 3 | E25: 24
A26: Digito_Verificacion | B26: =Listas[[#This Row],[ID]]&" "&IF(Listas[[#This Row],[Descripcion]]="","","- "&Listas[[#This Row],[Descripcion]]) -> 4 | C26: 4 | E26: 25
A27: Digito_Verificacion | B27: =Listas[[#This Row],[ID]]&" "&IF(Listas[[#This Row],[Descripcion]]="","","- "&Listas[[#This Row],[Descripcion]]) -> 5 | C27: 5 | E27: 26
A28: Digito_Verificacion | B28: =Listas[[#This Row],[ID]]&" "&IF(Listas[[#This Row],[Descripcion]]="","","- "&Listas[[#This Row],[Descripcion]]) -> 6 | C28: 6 | E28: 27
A29: Digito_Verificacion | B29: =Listas[[#This Row],[ID]]&" "&IF(Listas[[#This Row],[Descripcion]]="","","- "&Listas[[#This Row],[Descripcion]]) -> 7 | C29: 7 | E29: 28
A30: Digito_Verificacion | B30: =Listas[[#This Row],[ID]]&" "&IF(Listas[[#This Row],[Descripcion]]="","","- "&Listas[[#This Row],[Descripcion]]) -> 8 | C30: 8 | E30: 29
A31: Digito_Verificacion | B31: =Listas[[#This Row],[ID]]&" "&IF(Listas[[#This Row],[Descripcion]]="","","- "&Listas[[#This Row],[Descripcion]]) -> 9 | C31: 9 | E31: 30
A32: Forma_Control_1036 | B32: =Listas[[#This Row],[ID]]&" "&IF(Listas[[#This Row],[Descripcion]]="","","- "&Listas[[#This Row],[Descripcion]]) -> 1 - Directo | C32: 1 | D32: Directo | E32: 31
A33: Forma_Control_1036 | B33: =Listas[[#This Row],[ID]]&" "&IF(Listas[[#This Row],[Descripcion]]="","","- "&Listas[[#This Row],[Descripcion]]) -> 2 - Indirecto | C33: 2 | D33: Indirecto | E33: 32
A34: Tipo_vínculo_1036 | B34: =Listas[[#This Row],[ID]]&" "&IF(Listas[[#This Row],[Descripcion]]="","","- "&Listas[[#This Row],[Descripcion]]) -> 1 - Subordinación | C34: 1 | D34: Subordinación | E34: 33
A35: Tipo_vínculo_1036 | B35: =Listas[[#This Row],[ID]]&" "&IF(Listas[[#This Row],[Descripcion]]="","","- "&Listas[[#This Row],[Descripcion]]) -> 2 - Otras formas de vinculación | C35: 2 | D35: Otras formas de vinculación | E35: 34
A36: Concepto_1056 | B36: =Listas[[#This Row],[ID]]&" "&IF(Listas[[#This Row],[Descripcion]]="","","- "&Listas[[#This Row],[Descripcion]]) -> 5002 - Honorarios | C36: 5002 | D36: Honorarios | E36: 35
A37: Concepto_1056 | B37: =Listas[[#This Row],[ID]]&" "&IF(Listas[[#This Row],[Descripcion]]="","","- "&Listas[[#This Row],[Descripcion]]) -> 5003 - Comisiones | C37: 5003 | D37: Comisiones | E37: 36
A38: Concepto_1056 | B38: =Listas[[#This Row],[ID]]&" "&IF(Listas[[#This Row],[Descripcion]]="","","- "&Listas[[#This Row],[Descripcion]]) -> 5004 - Servicios | C38: 5004 | D38: Servicios | E38: 37
A39: Concepto_1056 | B39: =Listas[[#This Row],[ID]]&" "&IF(Listas[[#This Row],[Descripcion]]="","","- "&Listas[[#This Row],[Descripcion]]) -> 5005 - Arrendamientos | C39: 5005 | D39: Arrendamientos | E39: 38
A40: Concepto_1056 | B40: =Listas[[#This Row],[ID]]&" "&IF(Listas[[#This Row],[Descripcion]]="","","- "&Listas[[#This Row],[Descripcion]]) -> 5006 - Intereses y rendimientos financieros causados | C40: 5006 | D40: Intereses y rendimientos financieros causados | E40: 39
A41: Concepto_1056 | B41: =Listas[[#This Row],[ID]]&" "&IF(Listas[[#This Row],[Descripcion]]="","","- "&Listas[[#This Row],[Descripcion]]) -> 5007 - Compra de activos movibles (artículo 60 del ET) | C41: 5007 | D41: Compra de activos movibles (artículo 60 del ET) | E41: 40
A42: Concepto_1056 | B42: =Listas[[#This Row],[ID]]&" "&IF(Listas[[#This Row],[Descripcion]]="","","- "&Listas[[#This Row],[Descripcion]]) -> 5008 - Compra de activos fijos (artículo 60 del ET) | C42: 5008 | D42: Compra de activos fijos (artículo 60 del ET) | E42: 41
A43: Concepto_1056 | B43: =Listas[[#This Row],[ID]]&" "&IF(Listas[[#This Row],[Descripcion]]="","","- "&Listas[[#This Row],[Descripcion]]) -> 5010 - Los pagos o abonos en cuenta por concepto de aportes parafiscales al SENA, a las Cajas de Compensación Familiar y al Instituto Colombiano de Bienestar Familiar | C43: 5010 | D43: Los pagos o abonos en cuenta por concepto de aportes parafiscales al SENA, a las Cajas de Compensación Familiar y al Instituto Colombiano de Bienestar Familiar | E43: 42
A44: Concepto_1056 | B44: =Listas[[#This Row],[ID]]&" "&IF(Listas[[#This Row],[Descripcion]]="","","- "&Listas[[#This Row],[Descripcion]]) -> 5011 - Los pagos o abonos en cuenta efectuados a las empresas promotoras de salud EPS y los aportes al Sistema de Riesgos Laborales, incluidos los aportes del trabajador | C44: 5011 | D44: Los pagos o abonos en cuenta efectuados a las empresas promotoras de salud EPS y los aportes al Sistema de Riesgos Laborales, incluidos los aportes del trabajador | E44: 43
A45: Concepto_1056 | B45: =Listas[[#This Row],[ID]]&" "&IF(Listas[[#This Row],[Descripcion]]="","","- "&Listas[[#This Row],[Descripcion]]) -> 5012 - Los pagos o abonos en cuenta por concepto de aportes obligatorios para pensiones efectuados a los Fondos de Pensiones, incluidos los aportes del trabajador. | C45: 5012 | D45: Los pagos o abonos en cuenta por concepto de aportes obligatorios para pensiones efectuados a los Fondos de Pensiones, incluidos los aportes del trabajador. | E45: 44
A46: Concepto_1056 | B46: =Listas[[#This Row],[ID]]&" "&IF(Listas[[#This Row],[Descripcion]]="","","- "&Listas[[#This Row],[Descripcion]]) -> 5013 - Las donaciones en dinero efectuadas, a las entidades señaladas en los artículos 125, 125-4, 126-2 y 158-1 del Estatuto Tributario y la establecida en el artículo 16 de la Ley 814 de 2003, y demás que determine la ley. | C46: 5013 | D46: Las donaciones en dinero efectuadas, a las entidades señaladas en los artículos 125, 125-4, 126-2 y 158-1 del Estatuto Tributario y la establecida en el artículo 16 de la Ley 814 de 2003, y demás que determine la ley. | E46: 45
A47: Concepto_1056 | B47: =Listas[[#This Row],[ID]]&" "&IF(Listas[[#This Row],[Descripcion]]="","","- "&Listas[[#This Row],[Descripcion]]) -> 5014 - Las donaciones en activos diferentes a dinero efectuadas a las entidades señaladas en los artículos 125, 125-4, 126-2 y 158-1 del Estatuto Tributario y la establecida en el artículo 16 de la Ley 814 de 2003, y demás que determine la ley. | C47: 5014 | D47: Las donaciones en activos diferentes a dinero efectuadas a las entidades señaladas en los artículos 125, 125-4, 126-2 y 158-1 del Estatuto Tributario y la establecida en el artículo 16 de la Ley 814 de 2003, y demás que determine la ley. | E47: 46
A48: Concepto_1056 | B48: =Listas[[#This Row],[ID]]&" "&IF(Listas[[#This Row],[Descripcion]]="","","- "&Listas[[#This Row],[Descripcion]]) -> 5015 - El valor de los impuestos solicitados como deducción. | C48: 5015 | D48: El valor de los impuestos solicitados como deducción. | E48: 47
A49: Concepto_1056 | B49: =Listas[[#This Row],[ID]]&" "&IF(Listas[[#This Row],[Descripcion]]="","","- "&Listas[[#This Row],[Descripcion]]) -> 5016 - Los demás costos y deducciones. | C49: 5016 | D49: Los demás costos y deducciones. | E49: 48
A50: Concepto_1056 | B50: =Listas[[#This Row],[ID]]&" "&IF(Listas[[#This Row],[Descripcion]]="","","- "&Listas[[#This Row],[Descripcion]]) -> 5018 - El importe de las primas de reaseguros pagados o abonados en cuenta. | C50: 5018 | D50: El importe de las primas de reaseguros pagados o abonados en cuenta. | E50: 49
A51: Concepto_1056 | B51: =Listas[[#This Row],[ID]]&" "&IF(Listas[[#This Row],[Descripcion]]="","","- "&Listas[[#This Row],[Descripcion]]) -> 5019 - El monto de las amortizaciones realizadas. | C51: 5019 | D51: El monto de las amortizaciones realizadas. | E51: 50
A52: Concepto_1056 | B52: =Listas[[#This Row],[ID]]&" "&IF(Listas[[#This Row],[Descripcion]]="","","- "&Listas[[#This Row],[Descripcion]]) -> 5020 - Compra de activos fijos reales productivos sobre los cuales solicitó deducción, E.T. art. 158-3. El valor acumulado pagado o abonado en cuenta. Este valor no debe incluirse en el concepto 5008. | C52: 5020 | D52: Compra de activos fijos reales productivos sobre los cuales solicitó deducción, E.T. art. 158-3. El valor acumulado pagado o abonado en cuenta. Este valor no debe incluirse en el concepto 5008. | E52: 51
A53: Concepto_1056 | B53: =Listas[[#This Row],[ID]]&" "&IF(Listas[[#This Row],[Descripcion]]="","","- "&Listas[[#This Row],[Descripcion]]) -> 5023 - El valor acumulado de los pagos o abonos en cuenta al exterior por asistencia técnica. | C53: 5023 | D53: El valor acumulado de los pagos o abonos en cuenta al exterior por asistencia técnica. | E53: 52
A54: Concepto_1056 | B54: =Listas[[#This Row],[ID]]&" "&IF(Listas[[#This Row],[Descripcion]]="","","- "&Listas[[#This Row],[Descripcion]]) -> 5024 - El valor acumulado de los pagos o abonos en cuenta al exterior por marcas. | C54: 5024 | D54: El valor acumulado de los pagos o abonos en cuenta al exterior por marcas. | E54: 53
A55: Concepto_1056 | B55: =Listas[[#This Row],[ID]]&" "&IF(Listas[[#This Row],[Descripcion]]="","","- "&Listas[[#This Row],[Descripcion]]) -> 5025 - El valor acumulado de los pagos o abonos en cuenta al exterior por patentes. | C55: 5025 | D55: El valor acumulado de los pagos o abonos en cuenta al exterior por patentes. | E55: 54
A56: Concepto_1056 | B56: =Listas[[#This Row],[ID]]&" "&IF(Listas[[#This Row],[Descripcion]]="","","- "&Listas[[#This Row],[Descripcion]]) -> 5026 - El valor acumulado de los pagos o abonos en cuenta al exterior por regalías. | C56: 5026 | D56: El valor acumulado de los pagos o abonos en cuenta al exterior por regalías. | E56: 55
A57: Concepto_1056 | B57: =Listas[[#This Row],[ID]]&" "&IF(Listas[[#This Row],[Descripcion]]="","","- "&Listas[[#This Row],[Descripcion]]) -> 5027 - El valor acumulado de los pagos o abonos en cuenta al exterior por servicios técnicos. | C57: 5027 | D57: El valor acumulado de los pagos o abonos en cuenta al exterior por servicios técnicos. | E57: 56
A58: Concepto_1056 | B58: =Listas[[#This Row],[ID]]&" "&IF(Listas[[#This Row],[Descripcion]]="","","- "&Listas[[#This Row],[Descripcion]]) -> 5028 - El valor acumulado de la devolución de pagos o abonos en cuenta y retenciones correspondientes a operaciones de años anteriores. | C58: 5028 | D58: El valor acumulado de la devolución de pagos o abonos en cuenta y retenciones correspondientes a operaciones de años anteriores. | E58: 57
A59: Concepto_1056 | B59: =Listas[[#This Row],[ID]]&" "&IF(Listas[[#This Row],[Descripcion]]="","","- "&Listas[[#This Row],[Descripcion]]) -> 5029 - Gastos pagados por anticipado por Compras | C59: 5029 | D59: Gastos pagados por anticipado por Compras | E59: 58
A60: Concepto_1056 | B60: =Listas[[#This Row],[ID]]&" "&IF(Listas[[#This Row],[Descripcion]]="","","- "&Listas[[#This Row],[Descripcion]]) -> 5030 - Gastos pagados por anticipado por Honorarios | C60: 5030 | D60: Gastos pagados por anticipado por Honorarios | E60: 59
A61: Concepto_1056 | B61: =Listas[[#This Row],[ID]]&" "&IF(Listas[[#This Row],[Descripcion]]="","","- "&Listas[[#This Row],[Descripcion]]) -> 5031 - Gastos pagados por anticipado por Comisiones | C61: 5031 | D61: Gastos pagados por anticipado por Comisiones | E61: 60
A62: Concepto_1056 | B62: =Listas[[#This Row],[ID]]&" "&IF(Listas[[#This Row],[Descripcion]]="","","- "&Listas[[#This Row],[Descripcion]]) -> 5032 - Gastos pagados por anticipado por Servicios | C62: 5032 | D62: Gastos pagados por anticipado por Servicios | E62: 61
A63: Concepto_1056 | B63: =Listas[[#This Row],[ID]]&" "&IF(Listas[[#This Row],[Descripcion]]="","","- "&Listas[[#This Row],[Descripcion]]) -> 5033 - Gastos pagados por anticipado por arrendamientos | C63: 5033 | D63: Gastos pagados por anticipado por arrendamientos | E63: 62
A64: Concepto_1056 | B64: =Listas[[#This Row],[ID]]&" "&IF(Listas[[#This Row],[Descripcion]]="","","- "&Listas[[#This Row],[Descripcion]]) -> 5034 - Gastos pagados por anticipado por intereses y rendimientos financieros | C64: 5034 | D64: Gastos pagados por anticipado por intereses y rendimientos financieros | E64: 63
A65: Concepto_1056 | B65: =Listas[[#This Row],[ID]]&" "&IF(Listas[[#This Row],[Descripcion]]="","","- "&Listas[[#This Row],[Descripcion]]) -> 5035 - Gastos pagados por anticipado por otros conceptos | C65: 5035 | D65: Gastos pagados por anticipado por otros conceptos | E65: 64
A66: Concepto_1056 | B66: =Listas[[#This Row],[ID]]&" "&IF(Listas[[#This Row],[Descripcion]]="","","- "&Listas[[#This Row],[Descripcion]]) -> 5044 - El pago por loterías, rifas, apuestas y similares. | C66: 5044 | D66: El pago por loterías, rifas, apuestas y similares. | E66: 65
A67: Concepto_1056 | B67: =Listas[[#This Row],[ID]]&" "&IF(Listas[[#This Row],[Descripcion]]="","","- "&Listas[[#This Row],[Descripcion]]) -> 5045 - Retención sobre ingresos de tarjetas débito y crédito. | C67: 5045 | D67: Retención sobre ingresos de tarjetas débito y crédito. | E67: 66
A68: Concepto_1056 | B68: =Listas[[#This Row],[ID]]&" "&IF(Listas[[#This Row],[Descripcion]]="","","- "&Listas[[#This Row],[Descripcion]]) -> 5046 - Enajenación de activos fijos de personas naturales ante oficinas de tránsito y otras entidades autorizadas. | C68: 5046 | D68: Enajenación de activos fijos de personas naturales ante oficinas de tránsito y otras entidades autorizadas. | E68: 67
A69: Concepto_1056 | B69: =Listas[[#This Row],[ID]]&" "&IF(Listas[[#This Row],[Descripcion]]="","","- "&Listas[[#This Row],[Descripcion]]) -> 5047 - El importe de los siniestros por lucro cesante pagados o abonados en cuenta. | C69: 5047 | D69: El importe de los siniestros por lucro cesante pagados o abonados en cuenta. | E69: 68
A70: Concepto_1056 | B70: =Listas[[#This Row],[ID]]&" "&IF(Listas[[#This Row],[Descripcion]]="","","- "&Listas[[#This Row],[Descripcion]]) -> 5048 - El importe de los siniestros por daño emergente pagados o abonados en cuenta. | C70: 5048 | D70: El importe de los siniestros por daño emergente pagados o abonados en cuenta. | E70: 69
A71: Concepto_1056 | B71: =Listas[[#This Row],[ID]]&" "&IF(Listas[[#This Row],[Descripcion]]="","","- "&Listas[[#This Row],[Descripcion]]) -> 5053 - Retenciones practicadas a título de timbre. | C71: 5053 | D71: Retenciones practicadas a título de timbre. | E71: 70
A72: Concepto_1056 | B72: =Listas[[#This Row],[ID]]&" "&IF(Listas[[#This Row],[Descripcion]]="","","- "&Listas[[#This Row],[Descripcion]]) -> 5054 - La devolución de retenciones a título de impuesto de timbre, correspondientes a operaciones de años anteriores. | C72: 5054 | D72: La devolución de retenciones a título de impuesto de timbre, correspondientes a operaciones de años anteriores. | E72: 71
A73: Concepto_1056 | B73: =Listas[[#This Row],[ID]]&" "&IF(Listas[[#This Row],[Descripcion]]="","","- "&Listas[[#This Row],[Descripcion]]) -> 5055 - Viáticos | C73: 5055 | D73: Viáticos | E73: 72
A74: Concepto_1056 | B74: =Listas[[#This Row],[ID]]&" "&IF(Listas[[#This Row],[Descripcion]]="","","- "&Listas[[#This Row],[Descripcion]]) -> 5056 - Gastos de representación | C74: 5056 | D74: Gastos de representación | E74: 73
A75: Concepto_1056 | B75: =Listas[[#This Row],[ID]]&" "&IF(Listas[[#This Row],[Descripcion]]="","","- "&Listas[[#This Row],[Descripcion]]) -> 5058 - El valor de los aportes, tasas y contribuciones solicitados como deducción. | C75: 5058 | D75: El valor de los aportes, tasas y contribuciones solicitados como deducción. | E75: 74
A76: Concepto_1056 | B76: =Listas[[#This Row],[ID]]&" "&IF(Listas[[#This Row],[Descripcion]]="","","- "&Listas[[#This Row],[Descripcion]]) -> 5059 - El pago o abono en cuenta realizado a cada uno de los cooperados, del valor del Fondo para revalorización de aportes. | C76: 5059 | D76: El pago o abono en cuenta realizado a cada uno de los cooperados, del valor del Fondo para revalorización de aportes. | E76: 75
A77: Concepto_1056 | B77: =Listas[[#This Row],[ID]]&" "&IF(Listas[[#This Row],[Descripcion]]="","","- "&Listas[[#This Row],[Descripcion]]) -> 5060 - Redención de inversiones en lo que corresponde al rembolso del capital por títulos de capitalización. | C77: 5060 | D77: Redención de inversiones en lo que corresponde al rembolso del capital por títulos de capitalización. | E77: 76
A78: Concepto_1056 | B78: =Listas[[#This Row],[ID]]&" "&IF(Listas[[#This Row],[Descripcion]]="","","- "&Listas[[#This Row],[Descripcion]]) -> 5061 - Las utilidades pagadas o abonadas en cuenta, cuando el beneficiario es diferente al fideicomitente, se informarán en el Formato 1014. | C78: 5061 | D78: Las utilidades pagadas o abonadas en cuenta, cuando el beneficiario es diferente al fideicomitente, se informarán en el Formato 1014. | E78: 77
A79: Concepto_1056 | B79: =Listas[[#This Row],[ID]]&" "&IF(Listas[[#This Row],[Descripcion]]="","","- "&Listas[[#This Row],[Descripcion]]) -> 5063 - Intereses y rendimientos financieros efectivamente pagados | C79: 5063 | D79: Intereses y rendimientos financieros efectivamente pagados | E79: 78
A80: Concepto_1056 | B80: =Listas[[#This Row],[ID]]&" "&IF(Listas[[#This Row],[Descripcion]]="","","- "&Listas[[#This Row],[Descripcion]]) -> 5064 - Devoluciones de saldos de aportes pensionales pagados. | C80: 5064 | D80: Devoluciones de saldos de aportes pensionales pagados. | E80: 79
A81: Concepto_1056 | B81: =Listas[[#This Row],[ID]]&" "&IF(Listas[[#This Row],[Descripcion]]="","","- "&Listas[[#This Row],[Descripcion]]) -> 5065 - Excedentes pensionales de libre disponibilidad componente de capital pagados. | C81: 5065 | D81: Excedentes pensionales de libre disponibilidad componente de capital pagados. | E81: 80
A82: Concepto_1056 | B82: =Listas[[#This Row],[ID]]&" "&IF(Listas[[#This Row],[Descripcion]]="","","- "&Listas[[#This Row],[Descripcion]]) -> 5066 - El valor del impuesto nacional al consumo solicitado como deducción (artículo 512-1 del ET). | C82: 5066 | D82: El valor del impuesto nacional al consumo solicitado como deducción (artículo 512-1 del ET). | E82: 81
A83: Concepto_1056 | B83: =Listas[[#This Row],[ID]]&" "&IF(Listas[[#This Row],[Descripcion]]="","","- "&Listas[[#This Row],[Descripcion]]) -> 5067 - El valor acumulado de los pagos o abonos en cuenta al exterior por consultoría. | C83: 5067 | D83: El valor acumulado de los pagos o abonos en cuenta al exterior por consultoría. | E83: 82
A84: Concepto_1056 | B84: =Listas[[#This Row],[ID]]&" "&IF(Listas[[#This Row],[Descripcion]]="","","- "&Listas[[#This Row],[Descripcion]]) -> 5068 - Participaciones o dividendos pagados o abonados en cuenta en calidad de exigibles correspondientes a 2016 y anteriores, Parágrafo 2 artículo 49 E.T. | C84: 5068 | D84: Participaciones o dividendos pagados o abonados en cuenta en calidad de exigibles correspondientes a 2016 y anteriores, Parágrafo 2 artículo 49 E.T. | E84: 83
A85: Concepto_1056 | B85: =Listas[[#This Row],[ID]]&" "&IF(Listas[[#This Row],[Descripcion]]="","","- "&Listas[[#This Row],[Descripcion]]) -> 5069 - Participaciones o dividendos pagados o abonados en cuenta en calidad de exigibles correspondientes a 2016 y anteriores, numeral 3 del artículo 49 E.T. | C85: 5069 | D85: Participaciones o dividendos pagados o abonados en cuenta en calidad de exigibles correspondientes a 2016 y anteriores, numeral 3 del artículo 49 E.T. | E85: 84
A86: Concepto_1056 | B86: =Listas[[#This Row],[ID]]&" "&IF(Listas[[#This Row],[Descripcion]]="","","- "&Listas[[#This Row],[Descripcion]]) -> 5070 - Participaciones o dividendos pagados o abonados en cuenta en calidad de exigibles correspondientes a 2017 y siguientes, Parágrafo 2 artículo 49 E.T. No incluir las retenciones en la fuente del concepto 5086. | C86: 5070 | D86: Participaciones o dividendos pagados o abonados en cuenta en calidad de exigibles correspondientes a 2017 y siguientes, Parágrafo 2 artículo 49 E.T. No incluir las retenciones en la fuente del concepto 5086. | E86: 85
A87: Concepto_1056 | B87: =Listas[[#This Row],[ID]]&" "&IF(Listas[[#This Row],[Descripcion]]="","","- "&Listas[[#This Row],[Descripcion]]) -> 5071 - Participaciones o dividendos pagados o abonados en cuenta en calidad de exigibles correspondientes a 2017 y siguientes, numeral 3 del artículo 49 E.T. No incluir las retenciones en la fuente del concepto 5086. | C87: 5071 | D87: Participaciones o dividendos pagados o abonados en cuenta en calidad de exigibles correspondientes a 2017 y siguientes, numeral 3 del artículo 49 E.T. No incluir las retenciones en la fuente del concepto 5086. | E87: 86
A88: Concepto_1056 | B88: =Listas[[#This Row],[ID]]&" "&IF(Listas[[#This Row],[Descripcion]]="","","- "&Listas[[#This Row],[Descripcion]]) -> 5072 - El importe de los siniestros por seguros de vida pagados o abonados en cuenta. | C88: 5072 | D88: El importe de los siniestros por seguros de vida pagados o abonados en cuenta. | E88: 87
A89: Concepto_1056 | B89: =Listas[[#This Row],[ID]]&" "&IF(Listas[[#This Row],[Descripcion]]="","","- "&Listas[[#This Row],[Descripcion]]) -> 5073 - Desembolsos por depósitos judiciales. Se debe identificar al beneficiario. | C89: 5073 | D89: Desembolsos por depósitos judiciales. Se debe identificar al beneficiario. | E89: 88
A90: Concepto_1056 | B90: =Listas[[#This Row],[ID]]&" "&IF(Listas[[#This Row],[Descripcion]]="","","- "&Listas[[#This Row],[Descripcion]]) -> 5074 - Desembolsos por reintegros de depósitos judiciales. Se debe identificar al beneficiario. | C90: 5074 | D90: Desembolsos por reintegros de depósitos judiciales. Se debe identificar al beneficiario. | E90: 89
A91: Concepto_1056 | B91: =Listas[[#This Row],[ID]]&" "&IF(Listas[[#This Row],[Descripcion]]="","","- "&Listas[[#This Row],[Descripcion]]) -> 5075 - Regalías y explotación de la propiedad intelectual: El valor acumulado pagado o abonado en cuenta. | C91: 5075 | D91: Regalías y explotación de la propiedad intelectual: El valor acumulado pagado o abonado en cuenta. | E91: 90
A92: Concepto_1056 | B92: =Listas[[#This Row],[ID]]&" "&IF(Listas[[#This Row],[Descripcion]]="","","- "&Listas[[#This Row],[Descripcion]]) -> 5076 - Valor de utilidades distribuidas provenientes de diferimiento de ingresos. E.T. art. 23-1, inc.4. | C92: 5076 | D92: Valor de utilidades distribuidas provenientes de diferimiento de ingresos. E.T. art. 23-1, inc.4. | E92: 91
A93: Concepto_1056 | B93: =Listas[[#This Row],[ID]]&" "&IF(Listas[[#This Row],[Descripcion]]="","","- "&Listas[[#This Row],[Descripcion]]) -> 5078 - Retenciones contribución laudos arbitrales. | C93: 5078 | D93: Retenciones contribución laudos arbitrales. | E93: 92
A94: Concepto_1056 | B94: =Listas[[#This Row],[ID]]&" "&IF(Listas[[#This Row],[Descripcion]]="","","- "&Listas[[#This Row],[Descripcion]]) -> 5079 - Intereses por deuda a vinculados en subcapitalización. E.T. art.118-1 El valor abonado en cuenta. Este valor no debe incluirse en el concepto 5006. | C94: 5079 | D94: Intereses por deuda a vinculados en subcapitalización. E.T. art.118-1 El valor abonado en cuenta. Este valor no debe incluirse en el concepto 5006. | E94: 93
A95: Concepto_1056 | B95: =Listas[[#This Row],[ID]]&" "&IF(Listas[[#This Row],[Descripcion]]="","","- "&Listas[[#This Row],[Descripcion]]) -> 5080 - El valor acumulado de los pagos o abonos efectuados a proveedores del exterior por servicios audiovisuales digitales (entre otros, de música, videos, películas y juegos de cualquier tipo, así como la radiodifusión de cualquier tipo de evento). E.T. art.437-2 num.8. | C95: 5080 | D95: El valor acumulado de los pagos o abonos efectuados a proveedores del exterior por servicios audiovisuales digitales (entre otros, de música, videos, películas y juegos de cualquier tipo, así como la radiodifusión de cualquier tipo de evento). E.T. art.437-2 num.8. | E95: 94
A96: Concepto_1056 | B96: =Listas[[#This Row],[ID]]&" "&IF(Listas[[#This Row],[Descripcion]]="","","- "&Listas[[#This Row],[Descripcion]]) -> 5081 - El valor acumulado de los pagos o abonos efectuados a proveedores del exterior por servicios prestados a través de plataformas digitales. E.T. art.437-2 num.8 | C96: 5081 | D96: El valor acumulado de los pagos o abonos efectuados a proveedores del exterior por servicios prestados a través de plataformas digitales. E.T. art.437-2 num.8 | E96: 95
A97: Concepto_1056 | B97: =Listas[[#This Row],[ID]]&" "&IF(Listas[[#This Row],[Descripcion]]="","","- "&Listas[[#This Row],[Descripcion]]) -> 5082 - El valor acumulado de los pagos o abonos efectuados a proveedores del exterior por suministro de servicios de publicidad online. E.T. art.437-2 num.8 | C97: 5082 | D97: El valor acumulado de los pagos o abonos efectuados a proveedores del exterior por suministro de servicios de publicidad online. E.T. art.437-2 num.8 | E97: 96
A98: Concepto_1056 | B98: =Listas[[#This Row],[ID]]&" "&IF(Listas[[#This Row],[Descripcion]]="","","- "&Listas[[#This Row],[Descripcion]]) -> 5083 - El valor acumulado de los pagos o abonos efectuados a proveedores del exterior por suministro de enseñanza o entrenamiento a distancia. E.T. art.437-2 num.8 | C98: 5083 | D98: El valor acumulado de los pagos o abonos efectuados a proveedores del exterior por suministro de enseñanza o entrenamiento a distancia. E.T. art.437-2 num.8 | E98: 97
A99: Concepto_1056 | B99: =Listas[[#This Row],[ID]]&" "&IF(Listas[[#This Row],[Descripcion]]="","","- "&Listas[[#This Row],[Descripcion]]) -> 5084 - El valor acumulado de los pagos o abonos efectuados a proveedores del exterior por suministro de derechos de uso o explotación de intangibles. E.T. art.437-2 num.8 | C99: 5084 | D99: El valor acumulado de los pagos o abonos efectuados a proveedores del exterior por suministro de derechos de uso o explotación de intangibles. E.T. art.437-2 num.8 | E99: 98
A100: Concepto_1056 | B100: =Listas[[#This Row],[ID]]&" "&IF(Listas[[#This Row],[Descripcion]]="","","- "&Listas[[#This Row],[Descripcion]]) -> 5085 - El valor acumulado de los pagos o abonos efectuados a proveedores del exterior por otros servicios electrónicos o digitales con destino a usuarios ubicados en Colombia. E.T. art.437-2 num.8 | C100: 5085 | D100: El valor acumulado de los pagos o abonos efectuados a proveedores del exterior por otros servicios electrónicos o digitales con destino a usuarios ubicados en Colombia. E.T. art.437-2 num.8 | E100: 99
A101: Concepto_1056 | B101: =Listas[[#This Row],[ID]]&" "&IF(Listas[[#This Row],[Descripcion]]="","","- "&Listas[[#This Row],[Descripcion]]) -> 5086 - Valor retención en la fuente trasladada a terceros por participaciones o dividendos recibidos de sociedades nacionales E.T. art. 242-1 par.1 | C101: 5086 | D101: Valor retención en la fuente trasladada a terceros por participaciones o dividendos recibidos de sociedades nacionales E.T. art. 242-1 par.1 | E101: 100
A102: Concepto_1056 | B102: =Listas[[#This Row],[ID]]&" "&IF(Listas[[#This Row],[Descripcion]]="","","- "&Listas[[#This Row],[Descripcion]]) -> 5087 - Valor de los puntos premio redimidos en el período que afectan el gasto directamente, procedentes de programas de fidelización. | C102: 5087 | D102: Valor de los puntos premio redimidos en el período que afectan el gasto directamente, procedentes de programas de fidelización. | E102: 101
A103: Lista_Seccionales_DIAN | B103: =Listas[[#This Row],[ID]]&" "&IF(Listas[[#This Row],[Descripcion]]="","","- "&Listas[[#This Row],[Descripcion]]) -> 00 - Nivel Central | C103: 00 | D103: Nivel Central | E103: 102
A104: Lista_Seccionales_DIAN | B104: =Listas[[#This Row],[ID]]&" "&IF(Listas[[#This Row],[Descripcion]]="","","- "&Listas[[#This Row],[Descripcion]]) -> 01 - Dirección Seccional de Impuestos y Aduanas de Armenia | C104: 01 | D104: Dirección Seccional de Impuestos y Aduanas de Armenia | E104: 103
A105: Lista_Seccionales_DIAN | B105: =Listas[[#This Row],[ID]]&" "&IF(Listas[[#This Row],[Descripcion]]="","","- "&Listas[[#This Row],[Descripcion]]) -> 02 - Dirección Seccional de Impuestos de Barranquilla | C105: 02 | D105: Dirección Seccional de Impuestos de Barranquilla | E105: 104
A106: Lista_Seccionales_DIAN | B106: =Listas[[#This Row],[ID]]&" "&IF(Listas[[#This Row],[Descripcion]]="","","- "&Listas[[#This Row],[Descripcion]]) -> 03 - Dirección Seccional de Aduanas de Bogotá – Aeropuerto El Dorado | C106: 03 | D106: Dirección Seccional de Aduanas de Bogotá – Aeropuerto El Dorado | E106: 105
A107: Lista_Seccionales_DIAN | B107: =Listas[[#This Row],[ID]]&" "&IF(Listas[[#This Row],[Descripcion]]="","","- "&Listas[[#This Row],[Descripcion]]) -> 04 - Dirección Seccional de Impuestos y Aduanas de Bucaramanga | C107: 04 | D107: Dirección Seccional de Impuestos y Aduanas de Bucaramanga | E107: 106
A108: Lista_Seccionales_DIAN | B108: =Listas[[#This Row],[ID]]&" "&IF(Listas[[#This Row],[Descripcion]]="","","- "&Listas[[#This Row],[Descripcion]]) -> 05 - Dirección Seccional de Impuestos de Cali | C108: 05 | D108: Dirección Seccional de Impuestos de Cali | E108: 107
A109: Lista_Seccionales_DIAN | B109: =Listas[[#This Row],[ID]]&" "&IF(Listas[[#This Row],[Descripcion]]="","","- "&Listas[[#This Row],[Descripcion]]) -> 06 - Dirección Seccional de Impuestos de Cartagena | C109: 06 | D109: Dirección Seccional de Impuestos de Cartagena | E109: 108
A110: Lista_Seccionales_DIAN | B110: =Listas[[#This Row],[ID]]&" "&IF(Listas[[#This Row],[Descripcion]]="","","- "&Listas[[#This Row],[Descripcion]]) -> 07 - Dirección Seccional de Impuestos de Cúcuta | C110: 07 | D110: Dirección Seccional de Impuestos de Cúcuta | E110: 109
A111: Lista_Seccionales_DIAN | B111: =Listas[[#This Row],[ID]]&" "&IF(Listas[[#This Row],[Descripcion]]="","","- "&Listas[[#This Row],[Descripcion]]) -> 08 - Dirección Seccional de Impuestos y Aduanas de Girardot | C111: 08 | D111: Dirección Seccional de Impuestos y Aduanas de Girardot | E111: 110
A112: Lista_Seccionales_DIAN | B112: =Listas[[#This Row],[ID]]&" "&IF(Listas[[#This Row],[Descripcion]]="","","- "&Listas[[#This Row],[Descripcion]]) -> 09 - Dirección Seccional de Impuestos y Aduanas de Ibagué | C112: 09 | D112: Dirección Seccional de Impuestos y Aduanas de Ibagué | E112: 111
A113: Lista_Seccionales_DIAN | B113: =Listas[[#This Row],[ID]]&" "&IF(Listas[[#This Row],[Descripcion]]="","","- "&Listas[[#This Row],[Descripcion]]) -> 10 - Dirección Seccional de Impuestos y Aduanas de Manizales | C113: 10 | D113: Dirección Seccional de Impuestos y Aduanas de Manizales | E113: 112
A114: Lista_Seccionales_DIAN | B114: =Listas[[#This Row],[ID]]&" "&IF(Listas[[#This Row],[Descripcion]]="","","- "&Listas[[#This Row],[Descripcion]]) -> 11 - Dirección Seccional de Impuestos de Medellín | C114: 11 | D114: Dirección Seccional de Impuestos de Medellín | E114: 113
A115: Lista_Seccionales_DIAN | B115: =Listas[[#This Row],[ID]]&" "&IF(Listas[[#This Row],[Descripcion]]="","","- "&Listas[[#This Row],[Descripcion]]) -> 12 - Dirección Seccional de Impuestos y Aduanas de Montería | C115: 12 | D115: Dirección Seccional de Impuestos y Aduanas de Montería | E115: 114
A116: Lista_Seccionales_DIAN | B116: =Listas[[#This Row],[ID]]&" "&IF(Listas[[#This Row],[Descripcion]]="","","- "&Listas[[#This Row],[Descripcion]]) -> 13 - Dirección Seccional de Impuestos y Aduanas de Neiva | C116: 13 | D116: Dirección Seccional de Impuestos y Aduanas de Neiva | E116: 115
A117: Lista_Seccionales_DIAN | B117: =Listas[[#This Row],[ID]]&" "&IF(Listas[[#This Row],[Descripcion]]="","","- "&Listas[[#This Row],[Descripcion]]) -> 14 - Dirección Seccional de Impuestos y Aduanas de Pasto | C117: 14 | D117: Dirección Seccional de Impuestos y Aduanas de Pasto | E117: 116
A118: Lista_Seccionales_DIAN | B118: =Listas[[#This Row],[ID]]&" "&IF(Listas[[#This Row],[Descripcion]]="","","- "&Listas[[#This Row],[Descripcion]]) -> 15 - Dirección Seccional de Impuestos y Aduanas de Palmira | C118: 15 | D118: Dirección Seccional de Impuestos y Aduanas de Palmira | E118: 117
A119: Lista_Seccionales_DIAN | B119: =Listas[[#This Row],[ID]]&" "&IF(Listas[[#This Row],[Descripcion]]="","","- "&Listas[[#This Row],[Descripcion]]) -> 16 - Dirección Seccional de Impuestos y Aduanas de Pereira | C119: 16 | D119: Dirección Seccional de Impuestos y Aduanas de Pereira | E119: 118
A120: Lista_Seccionales_DIAN | B120: =Listas[[#This Row],[ID]]&" "&IF(Listas[[#This Row],[Descripcion]]="","","- "&Listas[[#This Row],[Descripcion]]) -> 17 - Dirección Seccional de Impuestos y Aduanas de Popayán | C120: 17 | D120: Dirección Seccional de Impuestos y Aduanas de Popayán | E120: 119
A121: Lista_Seccionales_DIAN | B121: =Listas[[#This Row],[ID]]&" "&IF(Listas[[#This Row],[Descripcion]]="","","- "&Listas[[#This Row],[Descripcion]]) -> 18 - Dirección Seccional de Impuestos y Aduanas de Quibdó | C121: 18 | D121: Dirección Seccional de Impuestos y Aduanas de Quibdó | E121: 120
A122: Lista_Seccionales_DIAN | B122: =Listas[[#This Row],[ID]]&" "&IF(Listas[[#This Row],[Descripcion]]="","","- "&Listas[[#This Row],[Descripcion]]) -> 19 - Dirección Seccional de Impuestos y Aduanas de Santa Marta | C122: 19 | D122: Dirección Seccional de Impuestos y Aduanas de Santa Marta | E122: 121
A123: Lista_Seccionales_DIAN | B123: =Listas[[#This Row],[ID]]&" "&IF(Listas[[#This Row],[Descripcion]]="","","- "&Listas[[#This Row],[Descripcion]]) -> 20 - Dirección Seccional de Impuestos y Aduanas de Tunja | C123: 20 | D123: Dirección Seccional de Impuestos y Aduanas de Tunja | E123: 122
A124: Lista_Seccionales_DIAN | B124: =Listas[[#This Row],[ID]]&" "&IF(Listas[[#This Row],[Descripcion]]="","","- "&Listas[[#This Row],[Descripcion]]) -> 21 - Dirección Seccional de Impuestos y Aduanas de Tuluá | C124: 21 | D124: Dirección Seccional de Impuestos y Aduanas de Tuluá | E124: 123
A125: Lista_Seccionales_DIAN | B125: =Listas[[#This Row],[ID]]&" "&IF(Listas[[#This Row],[Descripcion]]="","","- "&Listas[[#This Row],[Descripcion]]) -> 22 - Dirección Seccional de Impuestos y Aduanas de Villavicencio | C125: 22 | D125: Dirección Seccional de Impuestos y Aduanas de Villavicencio | E125: 124
A126: Lista_Seccionales_DIAN | B126: =Listas[[#This Row],[ID]]&" "&IF(Listas[[#This Row],[Descripcion]]="","","- "&Listas[[#This Row],[Descripcion]]) -> 23 - Dirección Seccional de Impuestos y Aduanas de Sincelejo | C126: 23 | D126: Dirección Seccional de Impuestos y Aduanas de Sincelejo | E126: 125
A127: Lista_Seccionales_DIAN | B127: =Listas[[#This Row],[ID]]&" "&IF(Listas[[#This Row],[Descripcion]]="","","- "&Listas[[#This Row],[Descripcion]]) -> 24 - Dirección Seccional de Impuestos y Aduanas de Valledupar | C127: 24 | D127: Dirección Seccional de Impuestos y Aduanas de Valledupar | E127: 126
A128: Lista_Seccionales_DIAN | B128: =Listas[[#This Row],[ID]]&" "&IF(Listas[[#This Row],[Descripcion]]="","","- "&Listas[[#This Row],[Descripcion]]) -> 25 - Dirección Seccional de Impuestos y Aduanas de Riohacha | C128: 25 | D128: Dirección Seccional de Impuestos y Aduanas de Riohacha | E128: 127
A129: Lista_Seccionales_DIAN | B129: =Listas[[#This Row],[ID]]&" "&IF(Listas[[#This Row],[Descripcion]]="","","- "&Listas[[#This Row],[Descripcion]]) -> 26 - Dirección Seccional de Impuestos y Aduanas de Sogamoso | C129: 26 | D129: Dirección Seccional de Impuestos y Aduanas de Sogamoso | E129: 128
A130: Lista_Seccionales_DIAN | B130: =Listas[[#This Row],[ID]]&" "&IF(Listas[[#This Row],[Descripcion]]="","","- "&Listas[[#This Row],[Descripcion]]) -> 27 - Dirección Seccional de Impuestos y Aduanas de San Andrés | C130: 27 | D130: Dirección Seccional de Impuestos y Aduanas de San Andrés | E130: 129
A131: Lista_Seccionales_DIAN | B131: =Listas[[#This Row],[ID]]&" "&IF(Listas[[#This Row],[Descripcion]]="","","- "&Listas[[#This Row],[Descripcion]]) -> 28 - Dirección Seccional de Impuestos y Aduanas de Florencia | C131: 28 | D131: Dirección Seccional de Impuestos y Aduanas de Florencia | E131: 130
A132: Lista_Seccionales_DIAN | B132: =Listas[[#This Row],[ID]]&" "&IF(Listas[[#This Row],[Descripcion]]="","","- "&Listas[[#This Row],[Descripcion]]) -> 29 - Dirección Seccional de Impuestos y Aduanas de Barrancabermeja | C132: 29 | D132: Dirección Seccional de Impuestos y Aduanas de Barrancabermeja | E132: 131
A133: Lista_Seccionales_DIAN | B133: =Listas[[#This Row],[ID]]&" "&IF(Listas[[#This Row],[Descripcion]]="","","- "&Listas[[#This Row],[Descripcion]]) -> 31 - Dirección Operativa de Grandes Contribuyentes | C133: 31 | D133: Dirección Operativa de Grandes Contribuyentes | E133: 132
A134: Lista_Seccionales_DIAN | B134: =Listas[[#This Row],[ID]]&" "&IF(Listas[[#This Row],[Descripcion]]="","","- "&Listas[[#This Row],[Descripcion]]) -> 32 - Dirección Seccional de Impuestos de Bogotá | C134: 32 | D134: Dirección Seccional de Impuestos de Bogotá | E134: 133
A135: Lista_Seccionales_DIAN | B135: =Listas[[#This Row],[ID]]&" "&IF(Listas[[#This Row],[Descripcion]]="","","- "&Listas[[#This Row],[Descripcion]]) -> 34 - Dirección Seccional de Impuestos y Aduanas de Arauca | C135: 34 | D135: Dirección Seccional de Impuestos y Aduanas de Arauca | E135: 134
A136: Lista_Seccionales_DIAN | B136: =Listas[[#This Row],[ID]]&" "&IF(Listas[[#This Row],[Descripcion]]="","","- "&Listas[[#This Row],[Descripcion]]) -> 35 - Dirección Seccional de Impuestos y Aduanas de Buenaventura | C136: 35 | D136: Dirección Seccional de Impuestos y Aduanas de Buenaventura | E136: 135
A137: Lista_Seccionales_DIAN | B137: =Listas[[#This Row],[ID]]&" "&IF(Listas[[#This Row],[Descripcion]]="","","- "&Listas[[#This Row],[Descripcion]]) -> 37 - Dirección Seccional de Impuestos y Aduanas de Ipiales | C137: 37 | D137: Dirección Seccional de Impuestos y Aduanas de Ipiales | E137: 136
A138: Lista_Seccionales_DIAN | B138: =Listas[[#This Row],[ID]]&" "&IF(Listas[[#This Row],[Descripcion]]="","","- "&Listas[[#This Row],[Descripcion]]) -> 38 - Dirección Seccional de Impuestos y Aduanas de Leticia | C138: 38 | D138: Dirección Seccional de Impuestos y Aduanas de Leticia | E138: 137
A139: Lista_Seccionales_DIAN | B139: =Listas[[#This Row],[ID]]&" "&IF(Listas[[#This Row],[Descripcion]]="","","- "&Listas[[#This Row],[Descripcion]]) -> 39 - Dirección Seccional de Impuestos y Aduanas de Maicao | C139: 39 | D139: Dirección Seccional de Impuestos y Aduanas de Maicao | E139: 138
A140: Lista_Seccionales_DIAN | B140: =Listas[[#This Row],[ID]]&" "&IF(Listas[[#This Row],[Descripcion]]="","","- "&Listas[[#This Row],[Descripcion]]) -> 40 - Dirección Seccional de Impuestos y Aduanas de Tumaco | C140: 40 | D140: Dirección Seccional de Impuestos y Aduanas de Tumaco | E140: 139
A141: Lista_Seccionales_DIAN | B141: =Listas[[#This Row],[ID]]&" "&IF(Listas[[#This Row],[Descripcion]]="","","- "&Listas[[#This Row],[Descripcion]]) -> 41 - Dirección Seccional de Impuestos y Aduanas de Urabá | C141: 41 | D141: Dirección Seccional de Impuestos y Aduanas de Urabá | E141: 140
A142: Lista_Seccionales_DIAN | B142: =Listas[[#This Row],[ID]]&" "&IF(Listas[[#This Row],[Descripcion]]="","","- "&Listas[[#This Row],[Descripcion]]) -> 42 - Dirección Seccional Delegada de Impuestos y Aduanas de Puerto Carreño | C142: 42 | D142: Dirección Seccional Delegada de Impuestos y Aduanas de Puerto Carreño | E142: 141
A143: Lista_Seccionales_DIAN | B143: =Listas[[#This Row],[ID]]&" "&IF(Listas[[#This Row],[Descripcion]]="","","- "&Listas[[#This Row],[Descripcion]]) -> 43 - Dirección Seccional Delegada de Impuestos y Aduanas de Puerto Inírida | C143: 43 | D143: Dirección Seccional Delegada de Impuestos y Aduanas de Puerto Inírida | E143: 142
A144: Lista_Seccionales_DIAN | B144: =Listas[[#This Row],[ID]]&" "&IF(Listas[[#This Row],[Descripcion]]="","","- "&Listas[[#This Row],[Descripcion]]) -> 44 - Dirección Seccional de Impuestos y Aduanas de Yopal | C144: 44 | D144: Dirección Seccional de Impuestos y Aduanas de Yopal | E144: 143
A145: Lista_Seccionales_DIAN | B145: =Listas[[#This Row],[ID]]&" "&IF(Listas[[#This Row],[Descripcion]]="","","- "&Listas[[#This Row],[Descripcion]]) -> 45 - Dirección Seccional Delegada de Impuestos y Aduanas Mitú | C145: 45 | D145: Dirección Seccional Delegada de Impuestos y Aduanas Mitú | E145: 144
A146: Lista_Seccionales_DIAN | B146: =Listas[[#This Row],[ID]]&" "&IF(Listas[[#This Row],[Descripcion]]="","","- "&Listas[[#This Row],[Descripcion]]) -> 46 - Dirección Seccional de Impuestos y Aduanas de Puerto Asís | C146: 46 | D146: Dirección Seccional de Impuestos y Aduanas de Puerto Asís | E146: 145
A147: Lista_Seccionales_DIAN | B147: =Listas[[#This Row],[ID]]&" "&IF(Listas[[#This Row],[Descripcion]]="","","- "&Listas[[#This Row],[Descripcion]]) -> 48 - Dirección Seccional de Aduanas de Cartagena | C147: 48 | D147: Dirección Seccional de Aduanas de Cartagena | E147: 146
A148: Lista_Seccionales_DIAN | B148: =Listas[[#This Row],[ID]]&" "&IF(Listas[[#This Row],[Descripcion]]="","","- "&Listas[[#This Row],[Descripcion]]) -> 78 - Dirección Seccional Delegada de Impuestos y Aduanas de San José de Guaviare | C148: 78 | D148: Dirección Seccional Delegada de Impuestos y Aduanas de San José de Guaviare | E148: 147
A149: Lista_Seccionales_DIAN | B149: =Listas[[#This Row],[ID]]&" "&IF(Listas[[#This Row],[Descripcion]]="","","- "&Listas[[#This Row],[Descripcion]]) -> 86 - Dirección Seccional Delegada de Impuestos y Aduanas de Pamplona | C149: 86 | D149: Dirección Seccional Delegada de Impuestos y Aduanas de Pamplona | E149: 148
A150: Lista_Seccionales_DIAN | B150: =Listas[[#This Row],[ID]]&" "&IF(Listas[[#This Row],[Descripcion]]="","","- "&Listas[[#This Row],[Descripcion]]) -> 87 - Dirección Seccional de Aduanas de Barranquilla | C150: 87 | D150: Dirección Seccional de Aduanas de Barranquilla | E150: 149
A151: Lista_Seccionales_DIAN | B151: =Listas[[#This Row],[ID]]&" "&IF(Listas[[#This Row],[Descripcion]]="","","- "&Listas[[#This Row],[Descripcion]]) -> 88 - Dirección Seccional de Aduanas de Cali | C151: 88 | D151: Dirección Seccional de Aduanas de Cali | E151: 150
A152: Lista_Seccionales_DIAN | B152: =Listas[[#This Row],[ID]]&" "&IF(Listas[[#This Row],[Descripcion]]="","","- "&Listas[[#This Row],[Descripcion]]) -> 89 - Dirección Seccional de Aduanas de Cúcuta | C152: 89 | D152: Dirección Seccional de Aduanas de Cúcuta | E152: 151
A153: Lista_Seccionales_DIAN | B153: =Listas[[#This Row],[ID]]&" "&IF(Listas[[#This Row],[Descripcion]]="","","- "&Listas[[#This Row],[Descripcion]]) -> 90 - Dirección Seccional de Aduanas de Medellín | C153: 90 | D153: Dirección Seccional de Aduanas de Medellín | E153: 152
A154: Lista_Seccionales_DIAN | B154: =Listas[[#This Row],[ID]]&" "&IF(Listas[[#This Row],[Descripcion]]="","","- "&Listas[[#This Row],[Descripcion]]) -> 91 - Dirección Seccional de Aduanas de Bogotá | C154: 91 | D154: Dirección Seccional de Aduanas de Bogotá | E154: 153
A155: Tipo_Documento_Sin_ident | B155: =Listas[[#This Row],[ID]]&" "&IF(Listas[[#This Row],[Descripcion]]="","","- "&Listas[[#This Row],[Descripcion]]) -> 11 - Registro civil de nacimiento | C155: 11 | D155: Registro civil de nacimiento | E155: 154
A156: Tipo_Documento_Sin_ident | B156: =Listas[[#This Row],[ID]]&" "&IF(Listas[[#This Row],[Descripcion]]="","","- "&Listas[[#This Row],[Descripcion]]) -> 12 - Tarjeta de identidad | C156: 12 | D156: Tarjeta de identidad | E156: 155
A157: Tipo_Documento_Sin_ident | B157: =Listas[[#This Row],[ID]]&" "&IF(Listas[[#This Row],[Descripcion]]="","","- "&Listas[[#This Row],[Descripcion]]) -> 13 - Cédula de ciudadanía | C157: 13 | D157: Cédula de ciudadanía | E157: 156
A158: Tipo_Documento_Sin_ident | B158: =Listas[[#This Row],[ID]]&" "&IF(Listas[[#This Row],[Descripcion]]="","","- "&Listas[[#This Row],[Descripcion]]) -> 21 - Tarjeta de extranjería | C158: 21 | D158: Tarjeta de extranjería | E158: 157
A159: Tipo_Documento_Sin_ident | B159: =Listas[[#This Row],[ID]]&" "&IF(Listas[[#This Row],[Descripcion]]="","","- "&Listas[[#This Row],[Descripcion]]) -> 22 - Cédula de extranjería | C159: 22 | D159: Cédula de extranjería | E159: 158
A160: Tipo_Documento_Sin_ident | B160: =Listas[[#This Row],[ID]]&" "&IF(Listas[[#This Row],[Descripcion]]="","","- "&Listas[[#This Row],[Descripcion]]) -> 31 - Nit | C160: 31 | D160: Nit | E160: 159
A161: Tipo_Documento_Sin_ident | B161: =Listas[[#This Row],[ID]]&" "&IF(Listas[[#This Row],[Descripcion]]="","","- "&Listas[[#This Row],[Descripcion]]) -> 41 - Pasaporte | C161: 41 | D161: Pasaporte | E161: 160
A162: Tipo_Documento_Sin_ident | B162: =Listas[[#This Row],[ID]]&" "&IF(Listas[[#This Row],[Descripcion]]="","","- "&Listas[[#This Row],[Descripcion]]) -> 42 - Tipo de documento Extranjero | C162: 42 | D162: Tipo de documento Extranjero | E162: 161
A163: Tipo_Documento_Sin_ident | B163: =Listas[[#This Row],[ID]]&" "&IF(Listas[[#This Row],[Descripcion]]="","","- "&Listas[[#This Row],[Descripcion]]) -> 43 - Sin identificación del exterior o para uso definido por la DIAN | C163: 43 | D163: Sin identificación del exterior o para uso definido por la DIAN | E163: 162
A164: Tipo_Documento_Sin_ident | B164: =Listas[[#This Row],[ID]]&" "&IF(Listas[[#This Row],[Descripcion]]="","","- "&Listas[[#This Row],[Descripcion]]) -> 47 - Permiso Especial de Permanencia | C164: 47 | D164: Permiso Especial de Permanencia | E164: 163
A165: Tipo_Documento_Sin_ident | B165: =Listas[[#This Row],[ID]]&" "&IF(Listas[[#This Row],[Descripcion]]="","","- "&Listas[[#This Row],[Descripcion]]) -> 48 - Permiso por Protección Temporal | C165: 48 | D165: Permiso por Protección Temporal | E165: 164
A166: Concepto_1003 | B166: =Listas[[#This Row],[ID]]&" "&IF(Listas[[#This Row],[Descripcion]]="","","- "&Listas[[#This Row],[Descripcion]]) -> 1301 - Retenciones por salarios y demàs pagos laborales | C166: 1301 | D166: Retenciones por salarios y demàs pagos laborales | E166: 165
A167: Concepto_1003 | B167: =Listas[[#This Row],[ID]]&" "&IF(Listas[[#This Row],[Descripcion]]="","","- "&Listas[[#This Row],[Descripcion]]) -> 1302 - Retenciones por ventas | C167: 1302 | D167: Retenciones por ventas | E167: 166
A168: Concepto_1003 | B168: =Listas[[#This Row],[ID]]&" "&IF(Listas[[#This Row],[Descripcion]]="","","- "&Listas[[#This Row],[Descripcion]]) -> 1303 - Retenciones por Servicios | C168: 1303 | D168: Retenciones por Servicios | E168: 167
A169: Concepto_1003 | B169: =Listas[[#This Row],[ID]]&" "&IF(Listas[[#This Row],[Descripcion]]="","","- "&Listas[[#This Row],[Descripcion]]) -> 1304 - Retenciones por Honorarios | C169: 1304 | D169: Retenciones por Honorarios | E169: 168
A170: Concepto_1003 | B170: =Listas[[#This Row],[ID]]&" "&IF(Listas[[#This Row],[Descripcion]]="","","- "&Listas[[#This Row],[Descripcion]]) -> 1305 - Retenciones por Comisiones | C170: 1305 | D170: Retenciones por Comisiones | E170: 169
A171: Concepto_1003 | B171: =Listas[[#This Row],[ID]]&" "&IF(Listas[[#This Row],[Descripcion]]="","","- "&Listas[[#This Row],[Descripcion]]) -> 1306 - Retenciones por Intereses y Rendimientos Financieros | C171: 1306 | D171: Retenciones por Intereses y Rendimientos Financieros | E171: 170
A172: Concepto_1003 | B172: =Listas[[#This Row],[ID]]&" "&IF(Listas[[#This Row],[Descripcion]]="","","- "&Listas[[#This Row],[Descripcion]]) -> 1307 - Retenciones por Arrendamientos | C172: 1307 | D172: Retenciones por Arrendamientos | E172: 171
A173: Concepto_1003 | B173: =Listas[[#This Row],[ID]]&" "&IF(Listas[[#This Row],[Descripcion]]="","","- "&Listas[[#This Row],[Descripcion]]) -> 1308 - Retencion por Otros conceptos | C173: 1308 | D173: Retencion por Otros conceptos | E173: 172
A174: Concepto_1003 | B174: =Listas[[#This Row],[ID]]&" "&IF(Listas[[#This Row],[Descripcion]]="","","- "&Listas[[#This Row],[Descripcion]]) -> 1309 - Retención en la fuente en el Impuesto a las ventas. | C174: 1309 | D174: Retención en la fuente en el Impuesto a las ventas. | E174: 173
A175: Concepto_1003 | B175: =Listas[[#This Row],[ID]]&" "&IF(Listas[[#This Row],[Descripcion]]="","","- "&Listas[[#This Row],[Descripcion]]) -> 1310 - Retención por dividendos y participaciones | C175: 1310 | D175: Retención por dividendos y participaciones | E175: 174
A176: Concepto_1003 | B176: =Listas[[#This Row],[ID]]&" "&IF(Listas[[#This Row],[Descripcion]]="","","- "&Listas[[#This Row],[Descripcion]]) -> 1311 - Retención por enajenación de activos fijos de personas naturales ante oficinas de tránsito y otras entidades autorizadas | C176: 1311 | D176: Retención por enajenación de activos fijos de personas naturales ante oficinas de tránsito y otras entidades autorizadas | E176: 175
A177: Concepto_1003 | B177: =Listas[[#This Row],[ID]]&" "&IF(Listas[[#This Row],[Descripcion]]="","","- "&Listas[[#This Row],[Descripcion]]) -> 1312 - Retención por ingresos de tarjetas débito y crédito | C177: 1312 | D177: Retención por ingresos de tarjetas débito y crédito | E177: 176
A178: Concepto_1003 | B178: =Listas[[#This Row],[ID]]&" "&IF(Listas[[#This Row],[Descripcion]]="","","- "&Listas[[#This Row],[Descripcion]]) -> 1313 - Retención por loterías, rifas, apuestas y similares | C178: 1313 | D178: Retención por loterías, rifas, apuestas y similares | E178: 177
A179: Concepto_1003 | B179: =Listas[[#This Row],[ID]]&" "&IF(Listas[[#This Row],[Descripcion]]="","","- "&Listas[[#This Row],[Descripcion]]) -> 1314 - Retención por Impuesto de Timbre | C179: 1314 | D179: Retención por Impuesto de Timbre | E179: 178
A180: Concepto_1003 | B180: =Listas[[#This Row],[ID]]&" "&IF(Listas[[#This Row],[Descripcion]]="","","- "&Listas[[#This Row],[Descripcion]]) -> 1320 - Retención por dividendos y participaciones recibidas por sociedades nacionales art. 242-1 del E.T. | C180: 1320 | D180: Retención por dividendos y participaciones recibidas por sociedades nacionales art. 242-1 del E.T. | E180: 179
A181: Concepto_1009 | B181: =Listas[[#This Row],[ID]]&" "&IF(Listas[[#This Row],[Descripcion]]="","","- "&Listas[[#This Row],[Descripcion]]) -> 2201 - Saldo de los pasivos con proveedores | C181: 2201 | D181: Saldo de los pasivos con proveedores | E181: 180
A182: Concepto_1009 | B182: =Listas[[#This Row],[ID]]&" "&IF(Listas[[#This Row],[Descripcion]]="","","- "&Listas[[#This Row],[Descripcion]]) -> 2202 - Saldo de los pasivos con compañías vinculadas accionistas y socios | C182: 2202 | D182: Saldo de los pasivos con compañías vinculadas accionistas y socios | E182: 181
A183: Concepto_1009 | B183: =Listas[[#This Row],[ID]]&" "&IF(Listas[[#This Row],[Descripcion]]="","","- "&Listas[[#This Row],[Descripcion]]) -> 2203 - Saldo de las obligaciones financieras | C183: 2203 | D183: Saldo de las obligaciones financieras | E183: 182
A184: Concepto_1009 | B184: =Listas[[#This Row],[ID]]&" "&IF(Listas[[#This Row],[Descripcion]]="","","- "&Listas[[#This Row],[Descripcion]]) -> 2204 - Saldo de los pasivos por impuestos, gravámenes y tasas | C184: 2204 | D184: Saldo de los pasivos por impuestos, gravámenes y tasas | E184: 183
A185: Concepto_1009 | B185: =Listas[[#This Row],[ID]]&" "&IF(Listas[[#This Row],[Descripcion]]="","","- "&Listas[[#This Row],[Descripcion]]) -> 2206 - Saldo de los demás pasivos, | C185: 2206 | D185: Saldo de los demás pasivos, | E185: 184
A186: Concepto_1009 | B186: =Listas[[#This Row],[ID]]&" "&IF(Listas[[#This Row],[Descripcion]]="","","- "&Listas[[#This Row],[Descripcion]]) -> 2207 - Saldo del Pasivo determinado por el cálculo Actuarial, con el NIT del informante | C186: 2207 | D186: Saldo del Pasivo determinado por el cálculo Actuarial, con el NIT del informante | E186: 185
A187: Concepto_1009 | B187: =Listas[[#This Row],[ID]]&" "&IF(Listas[[#This Row],[Descripcion]]="","","- "&Listas[[#This Row],[Descripcion]]) -> 2208 - Pasivos respaldados en documento de fecha cierta | C187: 2208 | D187: Pasivos respaldados en documento de fecha cierta | E187: 186
A188: Concepto_1009 | B188: =Listas[[#This Row],[ID]]&" "&IF(Listas[[#This Row],[Descripcion]]="","","- "&Listas[[#This Row],[Descripcion]]) -> 2209 - Pasivos exclusivos de las compañías de seguros | C188: 2209 | D188: Pasivos exclusivos de las compañías de seguros | E188: 187
A189: Concepto_1009 | B189: =Listas[[#This Row],[ID]]&" "&IF(Listas[[#This Row],[Descripcion]]="","","- "&Listas[[#This Row],[Descripcion]]) -> 2211 - Valor de los pasivos por depósitos judiciales | C189: 2211 | D189: Valor de los pasivos por depósitos judiciales | E189: 188
A190: Concepto_1009 | B190: =Listas[[#This Row],[ID]]&" "&IF(Listas[[#This Row],[Descripcion]]="","","- "&Listas[[#This Row],[Descripcion]]) -> 2212 - valor del pasivo por ingresos diferidos por puntos premio otorgados en programas de fidelización | C190: 2212 | D190: valor del pasivo por ingresos diferidos por puntos premio otorgados en programas de fidelización | E190: 189
A191: Concepto_1009 | B191: =Listas[[#This Row],[ID]]&" "&IF(Listas[[#This Row],[Descripcion]]="","","- "&Listas[[#This Row],[Descripcion]]) -> 2213 - valor del pasivo por ingresos diferidos contemplados en el art. 23-1 del E.T., | C191: 2213 | D191: valor del pasivo por ingresos diferidos contemplados en el art. 23-1 del E.T., | E191: 190
A192: Concepto_1009 | B192: =Listas[[#This Row],[ID]]&" "&IF(Listas[[#This Row],[Descripcion]]="","","- "&Listas[[#This Row],[Descripcion]]) -> 2214 - Saldo de los pasivos por aportes parafiscales, salud, pensión y cesantías. | C192: 2214 | D192: Saldo de los pasivos por aportes parafiscales, salud, pensión y cesantías. | E192: 191
A193: Concepto_1009 | B193: =Listas[[#This Row],[ID]]&" "&IF(Listas[[#This Row],[Descripcion]]="","","- "&Listas[[#This Row],[Descripcion]]) -> 2215 - Saldo de los pasivos laborales reales consolidados en cabeza del trabajador, sin incluir cesantias | C193: 2215 | D193: Saldo de los pasivos laborales reales consolidados en cabeza del trabajador, sin incluir cesantias | E193: 192
A194: Concepto_1004 | B194: =Listas[[#This Row],[ID]]&" "&IF(Listas[[#This Row],[Descripcion]]="","","- "&Listas[[#This Row],[Descripcion]]) -> 8303 - Descuento tributario por impuestos pagados en el exterior solicitado como descuento por los contribuyentes nacionales que perciban rentas de fuente extranjera. E.T., art. 254. | C194: 8303 | D194: Descuento tributario por impuestos pagados en el exterior solicitado como descuento por los contribuyentes nacionales que perciban rentas de fuente extranjera. E.T., art. 254. | E194: 193
A195: Concepto_1004 | B195: =Listas[[#This Row],[ID]]&" "&IF(Listas[[#This Row],[Descripcion]]="","","- "&Listas[[#This Row],[Descripcion]]) -> 8305 - Descuento tributario empresas de servicios públicos domiciliarios que presten servicios de acueducto y alcantarillado. L. 788/2002, art. 104. | C195: 8305 | D195: Descuento tributario empresas de servicios públicos domiciliarios que presten servicios de acueducto y alcantarillado. L. 788/2002, art. 104. | E195: 194
A196: Concepto_1004 | B196: =Listas[[#This Row],[ID]]&" "&IF(Listas[[#This Row],[Descripcion]]="","","- "&Listas[[#This Row],[Descripcion]]) -> 8316 - Descuento tributario por donaciones dirigida a programas de becas o créditos condonables. E.T. Art. 256, Parágrafo 2, num. i) | C196: 8316 | D196: Descuento tributario por donaciones dirigida a programas de becas o créditos condonables. E.T. Art. 256, Parágrafo 2, num. i) | E196: 195
A197: Concepto_1004 | B197: =Listas[[#This Row],[ID]]&" "&IF(Listas[[#This Row],[Descripcion]]="","","- "&Listas[[#This Row],[Descripcion]]) -> 8317 - Descuento tributario por inversiones en investigación, desarrollo tecnológico e innovación. E.T., art. 158-1 y 256, modificado L. 1819/2016, art. 91 y 104. | C197: 8317 | D197: Descuento tributario por inversiones en investigación, desarrollo tecnológico e innovación. E.T., art. 158-1 y 256, modificado L. 1819/2016, art. 91 y 104. | E197: 196
A198: Concepto_1004 | B198: =Listas[[#This Row],[ID]]&" "&IF(Listas[[#This Row],[Descripcion]]="","","- "&Listas[[#This Row],[Descripcion]]) -> 8318 - Descuento por donaciones efectuadas a entidades sin ánimo de lucro pertenecientes al régimen tributario especial. E.T., art. 257, creado L.1819/2016, art. 105. | C198: 8318 | D198: Descuento por donaciones efectuadas a entidades sin ánimo de lucro pertenecientes al régimen tributario especial. E.T., art. 257, creado L.1819/2016, art. 105. | E198: 197
A199: Concepto_1004 | B199: =Listas[[#This Row],[ID]]&" "&IF(Listas[[#This Row],[Descripcion]]="","","- "&Listas[[#This Row],[Descripcion]]) -> 8319 - Descuento tributario por donaciones efectuadas a entidades sin ánimo de lucro no contribuyentes de que tratan los artículos 22 y 23 del estatuto tributario. E.T., art. 257, creado L. 1819/2016, art. 105. | C199: 8319 | D199: Descuento tributario por donaciones efectuadas a entidades sin ánimo de lucro no contribuyentes de que tratan los artículos 22 y 23 del estatuto tributario. E.T., art. 257, creado L. 1819/2016, art. 105. | E199: 198
A200: Concepto_1004 | B200: =Listas[[#This Row],[ID]]&" "&IF(Listas[[#This Row],[Descripcion]]="","","- "&Listas[[#This Row],[Descripcion]]) -> 8320 - Descuento tributario para inversiones realizadas en control, conservación y mejoramiento del medio ambiente. E.T., Art. 255, creado L. 1819/2016, art. 103. | C200: 8320 | D200: Descuento tributario para inversiones realizadas en control, conservación y mejoramiento del medio ambiente. E.T., Art. 255, creado L. 1819/2016, art. 103. | E200: 199
... 2943 more rows

Sheet Tabla_Formatos_x_Informante (hidden)
A1: Nombre del formato | B1: Número | C1: Versión | D1: ¿Cambió la versión para el reporte de este año? | E1: Información que debe reportarse en cada formato | F1: Corte con que se debe elaborar el formato | G1: Artículos de la Resolución 000124 que mencionan la exigencia de los reportes | H1: Artículos del Estatuto Tributario que son la base para solicitar la información | I1: Prevalidador que contiene a dicho formato | J1: Persona o entidad informante | K1: Listado | L1: Formato | M1: raiz | N1: sum | O1: CasNIT | P1: CasNitSec | Q1: Llave | R1: Hijos
A2: Descuentos Tributarios Solicitados | B2: 1004 | C2: 8 | D2: No | E2: Se deberá suministrar la información de los terceros y los valores que dieron lugar a la solicitud de descuentos tributarios en la declaración de renta o en la declaración anual consolidada del Régimen Simple del año gravable. | F2: Anual | G2: Artículos 1 y Numeral 26.1 del artículo 26 | H2: Literal d) y k) del 631 | I2: Prevalidador de Informantes Tributarios | J2: Informantes tributarios | K2: =Tabla_Formatos_x_Informante[[#This Row],[Número]]&" - "&Tabla_Formatos_x_Informante[[#This Row],[Nombre del formato]] -> 1004 - Descuentos Tributarios Solicitados | L2: F1004 | M2: descuentos | N2: tdoc | O2: 4 | Q2: 1|2|3
A3: Impuesto a las Ventas por Pagar (Descontable) | B3: 1005 | C3: 7 | D3: No | E3: Se debe reportar el valor del impuesto sobre las ventas - IVA descontable y el valor del impuesto sobre las ventas - IVA resultante por devoluciones en ventas anuladas, rescindidas o resueltas, correspondientes al año gravable, indicando los apellidos y nombres o razón social e identificación de cada uno de los terceros. | F3: Anual | G3: Numeral 20.1 del artículo 20 | H3: Literales e) y f) del 631 y 631-3 | I3: Prevalidador de Informantes Tributarios | J3: Informantes tributarios | K3: =Tabla_Formatos_x_Informante[[#This Row],[Número]]&" - "&Tabla_Formatos_x_Informante[[#This Row],[Nombre del formato]] -> 1005 - Impuesto a las Ventas por Pagar (Descontable) | L3: F1005 | M3: impventas | N3: tdoc | O3: 3 | Q3: 1|2
A4: Impuesto a las Ventas por Pagar (Generado) e Impuesto al Consumo | B4: 1006 | C4: 8 | D4: No | E4: Se debe reportar el valor del impuesto sobre las ventas - IVA generado y/o el impuesto nacional al consumo y el valor del impuesto sobre las ventas - IVA recuperado en devoluciones en compras anuladas, rescindidas o resueltas, correspondientes al año gravable, se debe reportar indicando los apellidos y nombres o razón social e identificación de cada uno de los terceros. | F4: Anual | G4: Artículos 1 y 19 | H4: Literal f) del 631 | I4: Prevalidador de Informantes Tributarios | J4: Informantes tributarios | K4: =Tabla_Formatos_x_Informante[[#This Row],[Número]]&" - "&Tabla_Formatos_x_Informante[[#This Row],[Nombre del formato]] -> 1006 - Impuesto a las Ventas por Pagar (Generado) e Impuesto al Consumo | L4: F1006 | M4: impoventas | N4: tdoc | O4: 3 | Q4: 1|2
A5: Ingresos Recibidos para Terceros | B5: 1647 | C5: 2 | D5: No | E5: Se deberán reportar apellidos y nombres o razón social, identificación y país de residencia o domicilio de cada una de las personas o entidades nacionales o extranjeras, de quienes se recibieron ingresos para terceros y los apellidos y nombres o razón social, identificación, dirección y país de residencia o domicilio de cada una de las personas o entidades nacionales o extranjeras del tercero para quien se recibió el ingreso, indicando el valor total de la operación, el valor de los ingresos reintegrados, transferidos o distribuidos al tercero y el valor de la retención en la fuente transferida o distribuida al tercero, con el concepto 4070. El valor mínimo a reportar corresponderá al valor anual acumulado de los ingresos recibidos para terceros, reintegrados, transferidos o distribuidos a cada beneficiario cuando la cuantía sea superior a un millón de pesos ($1.000.000). Para los ingresos obtenidos de entidades o sociedades del exterior, al reportar el número de identificación se debe diligenciar con el número, código o clave de identificación, tal como figura en el registro fiscal tributario del país de residencia o domicilio y tipo de documento 42. Cuando en dicho país no se utilice número, código o clave fiscal, se debe informar con identificación 444444001 en forma ascendente, variando consecutivamente en una unidad hasta el 444449999 y con tipo de documento 43. | F5: Anual | G5: Artículo 24 | H5: Literal g) del 631 | I5: Prevalidador de Informantes Tributarios | J5: Informantes tributarios | K5: =Tabla_Formatos_x_Informante[[#This Row],[Número]]&" - "&Tabla_Formatos_x_Informante[[#This Row],[Nombre del formato]] -> 1647 - Ingresos Recibidos para Terceros | L5: F1647 | M5: ingresos | N5: vtotal | O5: 4 | P5: 16 | Q5: 1|2|3|14|15
A6: Pagos o abonos en cuenta y retenciones practicadas en contratos de colaboración empresarial | B6: 5247 | C6: 1 | D6: No | E6: Se debe reportar el valor total de las operaciones realizadas durante el año gravable inherentes a las actividades ejecutadas en desarrollo de cada uno de los contratos de colaboración, tales como, consorcios o uniones temporales, contratos de mandato o administración delegada, contratos de exploración y explotación de hidrocarburos, gases y minerales, joint venture, cuentas en participación y convenios de cooperación con entidades públicas. | F6: Anual | G6: Artículo 27 | H6: Literales b), e), f), h) e i) del 631 | I6: Prevalidador de CCE - Contratos, Consorcios y Exploración | J6: Contratos de cooperación empresarial | K6: =Tabla_Formatos_x_Informante[[#This Row],[Número]]&" - "&Tabla_Formatos_x_Informante[[#This Row],[Nombre del formato]] -> 5247 - Pagos o abonos en cuenta y retenciones practicadas en contratos de colaboración empresarial | L6: F5247 | M6: pagos | N6: cpt | O6: 5 | Q6: 1|2|3|4|21|22
